{"text_format":"1","workbook":"xlsx","n_sheets":4,"sheets":["المرحلة الابتدائية","أيتام","سدد","لم يسدد"],"not_rendered":{"charts":0,"images":0,"macros":1,"external_links":0,"defined_names":2,"comments":0,"pivot_tables":0},"unopened":[],"bounds":{"document_bytes":16777216,"sheet_cells":100000,"rows_first":2000,"rows_last":500,"rows_between":2000,"halvings":0,"cell_chars":16384,"cell_head_chars":4096},"cells_cut":0,"cells_raw":0,"read":"whole","date_system":"1900"}

{"sheet":"المرحلة الابتدائية","index":0,"n_rows":1194,"n_cols":16,"rows_kept":1194,"cut":false,"hidden":false,"merged":[]}
["م","الاســـــــــــــــــــــــم","الرقم القومي","النوع","الديانة","الصف",null,"حالة القيد","الصف","الأول","الثاني","الثالث","الرابع","الخامس","السادس","جملة"]
[1,"احمد اشرف عبدالحميد رضا",31109292601239,"ذكر","مسلم","الأول أ","سدد","مستجد","سدد",{"$f":"COUNTIF(G2:G283,\"سدد\")","v":277},{"$f":"COUNTIF(G284:G508,\"سدد\")","v":110},{"$f":"COUNTIF(G509:G706,\"سدد\")","v":96},{"$f":"COUNTIF(G707:G875,\"سدد\")","v":0},{"$f":"COUNTIF(G876:G1038,\"سدد\")","v":0},{"$f":"COUNTIF(G1039:G1104,\"سدد\")","v":0},{"$f":"SUM(J2:O2)","v":483}]
[2,"احمد بسام ابوالعلا احمد",31202012609493,"ذكر","مسلم","الأول أ","سدد","مستجد","لم يسدد",{"$f":"COUNTIF(G2:G283,\"لم يسدد\")","v":0},{"$f":"COUNTIF(G284:G508,\"لم يسدد\")","v":106},{"$f":"COUNTIF(G509:G706,\"لم يسدد\")","v":1},{"$f":"COUNTIF(G707:G875,\"لم يسدد\")","v":0},{"$f":"COUNTIF(G876:G1038,\"لم يسدد\")","v":0},{"$f":"COUNTIF(G1039:G1104,\"لم يسدد\")","v":0},{"$f":"SUM(J3:O3)","v":107}]
[3,"احمد بلال محمد شاكر",31110102603638,"ذكر","مسلم","الأول أ","سدد","مستجد","أيتام",{"$f":"COUNTIF(G2:G283,\"أيتام\")","v":5},{"$f":"COUNTIF(G284:G508,\"أيتام\")","v":9},{"$f":"COUNTIF(G509:G706,\"أيتام\")","v":4},{"$f":"COUNTIF(G707:G875,\"أيتام\")","v":7},{"$f":"COUNTIF(G876:G1038,\"أيتام\")","v":8},{"$f":"COUNTIF(G1039:G11904,\"أيتام\")","v":6},39]
[4,"احمد جابر مصطفى النادي",31207182601677,"ذكر","مسلم","الأول أ","سدد","مستجد","مستجد",{"$f":"COUNTIF(H2:H284,\"مستجد\")","v":283},null,null,null,null,null,283]
[5,"احمد حارس محمود طلب",31210012616298,"ذكر","مسلم","الأول أ","سدد","مستجد","باق",{"$f":"COUNTIF(H3:H285,\"مستجد\")","v":283},null,null,null,null,null,283]
[6,"احمد حشمت أحمد برعى",31207012617692,"ذكر","مسلم","الأول أ","أيتام","مستجد","ذكر",{"$f":"COUNTIF(G5:G286,\"أيتام\")","v":5},null,null,null,null,null,5]
[7,"احمد حشمت محمد عبدالا",31101232601433,"ذكر","مسلم","الأول أ","سدد","مستجد","أنثى",{"$f":"COUNTIF(G6:G287,\"أيتام\")","v":5},null,null,null,null,null,5]
[8,"احمد عادل الصافي سباق",31201012623716,"ذكر","مسلم","الأول أ","سدد","مستجد"]
[9,"احمد عاطف رشاد توفيق",31208202606375,"ذكر","مسلم","الأول أ","سدد","مستجد"]
[10,"احمد عبدالرحيم السيد محمود",31111112619717,"ذكر","مسلم","الأول أ","أيتام","مستجد"]
[11,"احمد علاء احمد عبدالرحيم",31208282602014,"ذكر","مسلم","الأول أ","سدد","مستجد"]
[12,"احمد عيد عبدالنظير نورالدين",31204142603392,"ذكر","مسلم","الأول أ","سدد","مستجد"]
[13,"احمد كمال حسونه رضوان",31112102601794,"ذكر","مسلم","الأول أ","سدد","مستجد"]
[14,"احمد مازن كامل طلب",31201252610611,"ذكر","مسلم","الأول أ","سدد","مستجد"]
[15,"احمد محمد الضبع جادالكريم",31201012624453,"ذكر","مسلم","الأول أ","سدد","مستجد"]
[16,"اسلام عيد شحاته شاكر",31205102605917,"ذكر","مسلم","الأول أ","سدد","مستجد"]
[17,"اشرف صابر محمد فرج",31203202604257,"ذكر","مسلم","الأول أ","سدد","مستجد"]
[18,"انس عبدالعليم حمدي عجور",31201252611936,"ذكر","مسلم","الأول أ","سدد","مستجد"]
[19,"ايمن صالح عبداللاه طلب",31110162601219,"ذكر","مسلم","الأول أ","سدد","مستجد"]
[20,"باسم احمد عجور عبدالنبي",31206202601737,"ذكر","مسلم","الأول أ","سدد","مستجد"]
[21,"بدر اشرف حمدي محمد",31103192602094,"ذكر","مسلم","الأول أ","سدد","مستجد"]
[22,"ثروت شبيب حلمي احمد",31202012609558,"ذكر","مسلم","الأول أ","أيتام","مستجد"]
[23,"حبيب الله محمد عبدالحميد جادالكريم",31112232601354,"ذكر","مسلم","الأول أ","سدد","مستجد"]
[24,"حسام صبري رضا عابدين",31012012615791,"ذكر","مسلم","الأول أ","سدد","مستجد"]
[25,"حماده أحمد حسين محمد",31208012625152,"ذكر","مسلم","الأول أ","سدد","مستجد"]
[26,"حماده حارس عبدالعليم عثمان",31201252611898,"ذكر","مسلم","الأول أ","سدد","مستجد"]
[27,"حمدي شبيب ابراهيم احمد",31110202603953,"ذكر","مسلم","الأول أ","سدد","مستجد"]
[28,"حمدي محمد حماد عبدالمبدي",31110102603654,"ذكر","مسلم","الأول أ","سدد","مستجد"]
[29,"حمزه عبدالمبدي محمود محمد",31206202601915,"ذكر","مسلم","الأول أ","سدد","مستجد"]
[30,"خالد ابراهيم العربي عبدلا",31202122601978,"ذكر","مسلم","الأول أ","سدد","مستجد"]
[31,"خالد سليمان احمد علي",31206012617513,"ذكر","مسلم","الأول أ","سدد","مستجد"]
[32,"خالد معلاوي شحاته شاكر",31207262600299,"ذكر","مسلم","الأول أ","سدد","مستجد"]
[33,"خلف عطا نورالدين سليمان",31110162601316,"ذكر","مسلم","الأول أ","سدد","مستجد"]
[34,"رفعت فوزي ابوالمجد صادق",31208012611836,"ذكر","مسلم","الأول أ","سدد","مستجد"]
[35,"زياد ابوالعلا محمد عبدالاه",31108042602756,"ذكر","مسلم","الأول أ","سدد","مستجد"]
[36,"زياد رأفت حمدي محمد",31203202605431,"ذكر","مسلم","الأول أ","سدد","مستجد"]
[37,"زياد رفعت فاروق ابراهيم",31203202604273,"ذكر","مسلم","الأول أ","سدد","مستجد"]
[38,"زياد محمود حمدان عبدالحميد",31207012617676,"ذكر","مسلم","الأول أ","سدد","مستجد"]
[39,"سيف رمضان عبداللطيف محمد",31203012614574,"ذكر","مسلم","الأول أ","سدد","مستجد"]
[40,"شريف اشرف اسعد محمود",31208012625314,"ذكر","مسلم","الأول أ","سدد","مستجد"]
[41,"شنوده رأفت بخيت جرجس",31205222601451,"ذكر","مسيحى","الأول أ","سدد","مستجد"]
[42,"طلال ياسر عاطف رشاد",31110202603899,"ذكر","مسلم","الأول أ","سدد","مستجد"]
[43,"عادل حمد فتحي احمد",31203202605458,"ذكر","مسلم","الأول أ","سدد","مستجد"]
[44,"عاطف ناجح فتحي العربي",31204012619394,"ذكر","مسلم","الأول أ","سدد","مستجد"]
[45,"عامر كمال الصغير احمد",31205012618831,"ذكر","مسلم","الأول أ","سدد","مستجد"]
[46,"عبدالحكيم عامر خلف احمد",31207172602659,"ذكر","مسلم","الأول أ","سدد","مستجد"]
[47,"عبدالحميد اشرف عبدالحميد عبدالعال",31203012606954,"ذكر","مسلم","الأول أ","سدد","مستجد"]
[48,"عبدالحميد عيد عبدالحميد عبداللاه",31210012617014,"ذكر","مسلم","الأول أ","سدد","مستجد"]
[49,"عبدالحميد محروس الصغير احمد",31202012609655,"ذكر","مسلم","الأول أ","سدد","مستجد"]
[50,"عبدالرحمن الشريف الديب فندي",31208282601972,"ذكر","مسلم","الأول أ","سدد","مستجد"]
[51,"عبدالرحمن خيري فاضل رضوان",31203012607012,"ذكر","مسلم","الأول أ","سدد","مستجد"]
[52,"عبدالرحمن عبدالشافي عبدالحميد علي",31201252610514,"ذكر","مسلم","الأول أ","سدد","مستجد"]
[53,"عبدالرحمن محمد زكي عثمان",31203202605474,"ذكر","مسلم","الأول أ","سدد","مستجد"]
[54,"عبدالرحمن مصطفى عباس فتحي",31202122601935,"ذكر","مسلم","الأول أ","سدد","مستجد"]
[55,"عبدالرحمن ناصر محمد حمدي",31205012619315,"ذكر","مسلم","الأول أ","سدد","مستجد"]
[56,"عبدالرحيم صالح عبداللاه طلب",31110162601235,"ذكر","مسلم","الأول أ","سدد","مستجد"]
[57,"عبدالعليم عبدالمنعم عبدالسميع ابوالحسن",31208202606456,"ذكر","مسلم","الأول أ","سدد","مستجد"]
[58,"عبداللطيف صبرى عبدالرحيم عبداللطيف",31112102601816,"ذكر","مسلم","الأول أ","سدد","مستجد"]
[59,"عبدالله حارس حمدان محمد",31207152605953,"ذكر","مسلم","الأول أ","سدد","مستجد"]
[60,"عبدالله عبده عبدالمعبود جادالكريم",31201152609497,"ذكر","مسلم","الأول أ","سدد","مستجد"]
[61,"عبدالله محمد حمدي عجور",31201252612371,"ذكر","مسلم","الأول أ","سدد","مستجد"]
[62,"عبدالله نصري العبد طلب",31206012617491,"ذكر","مسلم","الأول أ","سدد","مستجد"]
[63,"عبدالهادي احمد محمود عبداللاه",31202152603754,"ذكر","مسلم","الأول أ","سدد","مستجد"]
[64,"عبده اشرف الصغير احمد",31201012657556,"ذكر","مسلم","الأول أ","سدد","مستجد"]
[65,"علام محمد عدلي احمد",31204042605959,"ذكر","مسلم","الأول أ","سدد","مستجد"]
[66,"علي رمضان علي عبدالرمن",31209192603271,"ذكر","مسلم","الأول أ","سدد","مستجد"]
[67,"علي سالمان محمد علي",31201252611871,"ذكر","مسلم","الأول أ","سدد","مستجد"]
[68,"علي عبدالشافي سليم كامل",31209012626651,"ذكر","مسلم","الأول أ","سدد","مستجد"]
[69,"علي عرفات ابوالمجد علي",31111112619695,"ذكر","مسلم","الأول أ","سدد","مستجد"]
[70,"علي فاضل عبده احمد",31207202602195,"ذكر","مسلم","الأول أ","سدد","مستجد"]
[71,"علي فراج محمد احمد",31111202602732,"ذكر","مسلم","الأول أ","سدد","مستجد"]
[72,"علي محمد عبدالرحيم محمد",31206152605159,"ذكر","مسلم","الأول أ","سدد","مستجد"]
[73,"علي معتمد كليب صادق",31201252610492,"ذكر","مسلم","الأول أ","سدد","مستجد"]
[74,"عمر عبدالناصر محمد علي",31107202608075,"ذكر","مسلم","الأول أ","سدد","مستجد"]
[75,"عمر فندي كمال الدين حسن",31208282602154,"ذكر","مسلم","الأول أ","سدد","مستجد"]
[76,"عمر محمد كليب حمدى",31206122603437,"ذكر","مسلم","الأول أ","سدد","مستجد"]
[77,"عمر محمود حسين محمد",31208282602111,"ذكر","مسلم","الأول أ","سدد","مستجد"]
[78,"عمر ناصر كليب صادق",31205102605976,"ذكر","مسلم","الأول أ","سدد","مستجد"]
[79,"عمر هاني رفاعي حشمت أحمد",31201102605997,"ذكر","مسلم","الأول أ","سدد","مستجد"]
[80,"عمرو السيد محمد عبدالحي",31201012657599,"ذكر","مسلم","الأول أ","سدد","مستجد"]
[81,"عمرو عصمت محمد جميل",31203202605415,"ذكر","مسلم","الأول أ","سدد","مستجد"]
[82,"عمرو علاء عبده علي",31202122601951,"ذكر","مسلم","الأول أ","سدد","مستجد"]
[83,"فادي محمود وادي ابراهيم",31203122603497,"ذكر","مسلم","الأول أ","سدد","مستجد"]
[84,"فاروق ايمن علي عبدالعليم",31112102601832,"ذكر","مسلم","الأول أ","سدد","مستجد"]
[85,"فاروق حازم فاروق عبدالعظيم",31210012616271,"ذكر","مسلم","الأول أ","سدد","مستجد"]
[86,"كامل عامر صلاح محمد",31111012600431,"ذكر","مسلم","الأول أ","سدد","مستجد"]
[87,"كريم رأفت مسعد احمد",31111012612111,"ذكر","مسلم","الأول أ","سدد","مستجد"]
[88,"كريم رفاعي ابوالمجد صادق",31204042605916,"ذكر","مسلم","الأول أ","سدد","مستجد"]
[89,"كريم محمد عبدالراووف رضا",31205202609855,"ذكر","مسلم","الأول أ","سدد","مستجد"]
[90,"كريم محمد محمود حمزه",31112102601875,"ذكر","مسلم","الأول أ","سدد","مستجد"]
[91,"مازن محمد حمدان محمد",31110082101738,"ذكر","مسلم","الأول أ","سدد","مستجد"]
[92,"محمد احمد علي بديوي",31111112619733,"ذكر","مسلم","الأول أ","سدد","مستجد"]
[93,"محمد انور اسعد محمود",31109082602097,"ذكر","مسلم","الأول أ","سدد","مستجد"]
[94,"محمد صالح عبدالكريم ابوالحمد",31206202601672,"ذكر","مسلم","الأول أ","سدد","مستجد"]
[95,"محمد صديق الديب احمد",31201012657572,"ذكر","مسلم","الأول أ","سدد","مستجد"]
[96,"محمد عاطف مهدي السيد",31203012606938,"ذكر","مسلم","الأول أ","سدد","مستجد"]
[97,"محمد عبدالحارس صابر مرسي",31202202603394,"ذكر","مسلم","الأول أ","سدد","مستجد"]
[98,"محمد عبدالحميد ابراهيم كامل",31206012617718,"ذكر","مسلم","الأول أ","سدد","مستجد"]
[99,"محمد عبدالحميد محمد عبدالحميد",31205292602013,"ذكر","مسلم","الأول أ","سدد","مستجد"]
[100,"محمد عبدالله عبدالمنصف محمد",31205252604315,"ذكر","مسلم","الأول أ","سدد","مستجد"]
[101,"محمد عبدالهادي سليم كامل",31203102604497,"ذكر","مسلم","الأول أ","سدد","مستجد"]
[102,"محمد عرفات محمد احمد",31208012625357,"ذكر","مسلم","الأول أ","سدد","مستجد"]
[103,"محمد كليب علي خربطلي",31208202606359,"ذكر","مسلم","الأول أ","سدد","مستجد"]
[104,"محمد محمود ابراهيم محمود",31202132602298,"ذكر","مسلم","الأول أ","سدد","مستجد"]
[105,"محمد وائل شحات عبدالعال",31202202603416,"ذكر","مسلم","الأول أ","سدد","مستجد"]
[106,"محمود احمد عناني احمد",31202152606478,"ذكر","مسلم","الأول أ","سدد","مستجد"]
[107,"محمود السيد عيد ابوالعلا",31201102606039,"ذكر","مسلم","الأول أ","سدد","مستجد"]
[108,"محمود صديق عبدالعليم محمد",31202012609639,"ذكر","مسلم","الأول أ","سدد","مستجد"]
[109,"محمود عبدالحميد محمد عبدالحميد",31205292602056,"ذكر","مسلم","الأول أ","سدد","مستجد"]
[110,"محمود علي عبداللطيف موسى",31201012620377,"ذكر","مسلم","الأول أ","سدد","مستجد"]
[111,"محمود محمد عبدالعظيم احمد",31110162601332,"ذكر","مسلم","الأول أ","سدد","مستجد"]
[112,"مراد احمد عبداللاه صابر",31202012609574,"ذكر","مسلم","الأول أ","سدد","مستجد"]
[113,"مصطفى الطيب محمود احمد",31110062602595,"ذكر","مسلم","الأول أ","سدد","مستجد"]
[114,"مصطفى شعبان مشوادي مدني",31111112619792,"ذكر","مسلم","الأول أ","سدد","مستجد"]
[115,"مصطفى كامل سليم كامل",31112102601778,"ذكر","مسلم","الأول أ","سدد","مستجد"]
[116,"مصطفى محمود مفتاح محمد",31206152605132,"ذكر","مسلم","الأول أ","سدد","مستجد"]
[117,"ممدوح عبدالعليم علي صديق",31208012611917,"ذكر","مسلم","الأول أ","سدد","مستجد"]
[118,"مهند هاشم محمود اسماعيل",31203202605334,"ذكر","مسلم","الأول أ","سدد","مستجد"]
[119,"ناصر حازم حسني فهلي",31106202607196,"ذكر","مسلم","الأول أ","سدد","مستجد"]
[120,"ناصر عباس احمد زيدان",31109062601817,"ذكر","مسلم","الأول أ","سدد","مستجد"]
[121,"هلال زيدان هلال زيدان",31111202602678,"ذكر","مسلم","الأول أ","سدد","مستجد"]
[122,"وليد محمود حسونه عبدالحميد",31202202603378,"ذكر","مسلم","الأول أ","سدد","مستجد"]
[123,"وليد ناصر احمد عبدالغفار",31111162602297,"ذكر","مسلم","الأول أ","سدد","مستجد"]
[124,"ياسر هيثم حناوي توفيق",31203012606873,"ذكر","مسلم","الأول أ","سدد","مستجد"]
[125,"ياسين علي عبدالرؤف رضا",31205012618858,"ذكر","مسلم","الأول أ","سدد","مستجد"]
[126,"ياسين محمد عباس السيد",31209152603538,"ذكر","مسلم","الأول أ","سدد","مستجد"]
[127,"يحيى رفعت عبدالغفار عثمان",31110162601197,"ذكر","مسلم","الأول أ","سدد","مستجد"]
[128,"يوسف اسماعيل عبده احمد",31201012620334,"ذكر","مسلم","الأول أ","سدد","مستجد"]
[129,"يوسف تمام عبداللطيف محمد",31202012609477,"ذكر","مسلم","الأول أ","سدد","مستجد"]
[130,"يوسف جابر اسماعيل محمد",31201252610557,"ذكر","مسلم","الأول أ","سدد","مستجد"]
[131,"يوسف حماد فهيم برعي",31108012617996,"ذكر","مسلم","الأول أ","سدد","مستجد"]
[132,"يوسف عباس ابراهيم كامل",31204042605975,"ذكر","مسلم","الأول أ","سدد","مستجد"]
[133,"يوسف عرفات عابدين محمود علي",31209202601353,"ذكر","مسلم","الأول أ","سدد","مستجد"]
[134,"يوسف علي عبده علي",31110102603611,"ذكر","مسلم","الأول أ","سدد","مستجد"]
[135,"يوسف فراج حمدي عباس",31204022601051,"ذكر","مسلم","الأول أ","سدد","مستجد"]
[136,"يوسف محروس عجور عبدالنبي",31111012612073,"ذكر","مسلم","الأول أ","سدد","مستجد"]
[137,"يوسف محمد احمد محمود",31210012616999,"ذكر","مسلم","الأول أ","سدد","مستجد"]
[138,"يوسف محمود ابراهيم محمود",31207012617714,"ذكر","مسلم","الأول أ","سدد","مستجد"]
[139,"يوسف منصور اسماعيل عبدالغفار",31205222601419,"ذكر","مسلم","الأول أ","سدد","مستجد"]
[140,"احلام احمد نظير احمد",31205222601648,"انثى","مسلم","الأول أ","سدد","مستجد"]
[141,"احلام حماده محمد السيد",31206012616169,"انثى","مسلم","الأول أ","سدد","مستجد"]
[142,"ارزاق قنديل علي جادالكريم",31112022601025,"انثى","مسلم","الأول أ","سدد","مستجد"]
[143,"اروى السيد كمال عبدالمجيد",31205202609383,"انثى","مسلم","الأول أ","سدد","مستجد"]
[144,"اروى حسين أحمد بطيخ",31202132603286,"انثى","مسلم","الأول أ","سدد","مستجد"]
[145,"اروى علي عبداللاه عبداللطيف",31205222601621,"انثى","مسلم","الأول أ","سدد","مستجد"]
[146,"اروى هشام احمد محمود",31112162601505,"انثى","مسلم","الأول أ","سدد","مستجد"]
[147,"ازهار السيد صابر حسين",31203221303144,"انثى","مسلم","الأول أ","سدد","مستجد"]
[148,"اسراء عارف محمد شاكر",31201012651841,"انثى","مسلم","الأول أ","سدد","مستجد"]
[149,"اسماء حمدي ابوالعلا خربطلي",31203012605583,"انثى","مسلم","الأول أ","سدد","مستجد"]
[150,"اسماء شبيب عباس السيد",30912062603104,"انثى","مسلم","الأول أ","سدد","مستجد"]
[151,"اسيه عصام حمدان مصطفى",31204012619483,"انثى","مسلم","الأول أ","سدد","مستجد"]
[152,"افنان عبدالخالق حسن علي",31207182603548,"انثى","مسلم","الأول أ","سدد","مستجد"]
[153,"اكرام محمد العربي عبدلي",31110012613421,"انثى","مسلم","الأول أ","سدد","مستجد"]
[154,"الزهراء موسى علي بديوي",31111112616963,"انثى","مسلم","الأول أ","سدد","مستجد"]
[155,"امل عبدالعاطي احمد حسانين",31210012614465,"انثى","مسلم","الأول أ","سدد","مستجد"]
[156,"امل عماد محمود علي",31206012616142,"انثى","مسلم","الأول أ","سدد","مستجد"]
[157,"امنه ممدوح حشمت مدني",31204042605967,"انثى","مسلم","الأول أ","سدد","مستجد"]
[158,"اميره احمد محمد محمود",31201252608005,"انثى","مسلم","الأول أ","سدد","مستجد"]
[159,"ايريني صبري صدقي شنوده",31204242603101,"انثى","مسيحى","الأول أ","سدد","مستجد"]
[160,"ايمان محمد علي ابراهيم",31108102605202,"انثى","مسلم","الأول أ","سدد","مستجد"]
[161,"ايه خليفه محمد عبدالحق",31102082601843,"انثى","مسلم","الأول أ","سدد","مستجد"]
[162,"ايه محمد عبدالناصر كامل",31207152605384,"انثى","مسلم","الأول أ","سدد","مستجد"]
[163,"ايه منصور مشوادي محمود",31201252608927,"انثى","مسلم","الأول أ","سدد","مستجد"]
[164,"بسمه علي عبده علي",31210012614449,"انثى","مسلم","الأول أ","سدد","مستجد"]
[165,"بسمه محمد فهيم ابراهيم",31105202604204,"انثى","مسلم","الأول أ","أيتام","مستجد"]
[166,"بسمه يونس عبدالنظير نورالدين",31201012651825,"انثى","مسلم","الأول أ","سدد","مستجد"]
[167,"بسنت هشام شبيب عبدالراضي",31202222605288,"انثى","مسلم","الأول أ","سدد","مستجد"]
[168,"بشاير صلاح احمد سعدالدين",31112232600986,"انثى","مسلم","الأول أ","سدد","مستجد"]
[169,"بيان صلاح محمود احمد",31204242603047,"انثى","مسلم","الأول أ","سدد","مستجد"]
[170,"جنات تمام عبداللطيف محمد",31202012607784,"انثى","مسلم","الأول أ","سدد","مستجد"]
[171,"جنات رمضان رفاعي عبدالقادر",31203012605664,"انثى","مسلم","الأول أ","سدد","مستجد"]
[172,"جنات فاضل عبده احمد",31207202602209,"انثى","مسلم","الأول أ","سدد","مستجد"]
[173,"جنة الله حماده خلف عبدالهادي",31205202609405,"انثى","مسلم","الأول أ","سدد","مستجد"]
[174,"جنى حمدي احمد عبداللاه",31208012611526,"انثى","مسلم","الأول أ","سدد","مستجد"]
[175,"جيهاد الضاحي عبدالراضي عبدالموجود",31205102605887,"انثى","مسلم","الأول أ","سدد","مستجد"]
[176,"حبيبه رفاعي فوزي احمد",31207012616084,"انثى","مسلم","الأول أ","سدد","مستجد"]
[177,"حبيبه محمد فراج ابراهيم",31201252608021,"انثى","مسلم","الأول أ","سدد","مستجد"]
[178,"حسونه حمدي ابوالعلا خربطلي",31203012605702,"انثى","مسلم","الأول أ","سدد","مستجد"]
[179,"حليمه محمود محمد فهيم",31108042602764,"انثى","مسلم","الأول أ","سدد","مستجد"]
[180,"حنين السيد حسن محمد",31112162601386,"انثى","مسلم","الأول أ","سدد","مستجد"]
[181,"حنين السيد خليفه رسلان",31007102604264,"انثى","مسلم","الأول أ","سدد","مستجد"]
[182,"حنين خلف عزت محمود",31207152605244,"انثى","مسلم","الأول أ","سدد","مستجد"]
[183,"حنين قنديل على جادالكريم",31112022601009,"انثى","مسلم","الأول أ","سدد","مستجد"]
[184,"حنين وليد عبدالنظير عابدين",31111112617048,"انثى","مسلم","الأول أ","سدد","مستجد"]
[185,"خلود عاطف حمدي ابوالعلا",31201282603385,"انثى","مسلم","الأول أ","سدد","مستجد"]
[186,"خلود عاطف علي اسماعيل",31112162601521,"انثى","مسلم","الأول أ","أيتام","مستجد"]
[187,"داليا حسين عبدالنظير محمد",31111202602988,"انثى","مسلم","الأول أ","سدد","مستجد"]
[188,"داليا علي محمد طلب",31112142601924,"انثى","مسلم","الأول أ","سدد","مستجد"]
[189,"دعاء محمد علي صادق",31204042605886,"انثى","مسلم","الأول أ","سدد","مستجد"]
[190,"دنيا جمال عبدالعليم عجور",31202012607946,"انثى","مسلم","الأول أ","سدد","مستجد"]
[191,"دنيا عامر كليب صادق",31201102605601,"انثى","مسلم","الأول أ","سدد","مستجد"]
[192,"دينا عبدالشافي حمدان عبداللاه",31205052608529,"انثى","مسلم","الأول أ","سدد","مستجد"]
[193,"دينا عزت محمد فهيم",31205052608588,"انثى","مسلم","الأول أ","سدد","مستجد"]
[194,"رانيا احمد رفاعي احمد",31209012626007,"انثى","مسلم","الأول أ","سدد","مستجد"]
[195,"رتاج عبدالمؤمن عيد محمد",31202012607849,"انثى","مسلم","الأول أ","سدد","مستجد"]
[196,"رحاب عبدالخالق عبدالستار احمد",31109082602267,"انثى","مسلم","الأول أ","سدد","مستجد"]
[197,"رحمه ايمن حمدي مدني",31209012626023,"انثى","مسلم","الأول أ","سدد","مستجد"]
[198,"رشا محمد بكري محمد",31204042605908,"انثى","مسلم","الأول أ","سدد","مستجد"]
[199,"رشا مؤمن حسني علي",31012252601682,"انثى","مسلم","الأول أ","سدد","مستجد"]
[200,"روان علي محمود علي",31208012611461,"انثى","مسلم","الأول أ","سدد","مستجد"]
[201,"رويدا محمد عيد رضوان",31111022602025,"انثى","مسلم","الأول أ","سدد","مستجد"]
[202,"ريهام عبدالرحمن فهلي عبدالسلام",31208202606464,"انثى","مسلم","الأول أ","سدد","مستجد"]
[203,"زاهيه ابراهيم منصور رضا",31205052608561,"انثى","مسلم","الأول أ","سدد","مستجد"]
[204,"زهراء حماده موسى كامل",31205012617983,"انثى","مسلم","الأول أ","سدد","مستجد"]
[205,"زهره عبدالعال عبدالحميد عبدالعال",31106052601585,"انثى","مسلم","الأول أ","سدد","مستجد"]
[206,"ساره عبدالحارس صابر مرسي",31003012603786,"انثى","مسلم","الأول أ","سدد","مستجد"]
[207,"سلمى محمود محمد عجور",31207102606363,"انثى","مسلم","الأول أ","سدد","مستجد"]
[208,"سمر سالم فتحي مدني",31208012611747,"انثى","مسلم","الأول أ","سدد","مستجد"]
[209,"شاهندا ابوالحجاج محمد ثابت",31112012613424,"انثى","مسلم","الأول أ","سدد","مستجد"]
[210,"شاهنده عبدالشافي علي حافظ",31201012619883,"انثى","مسلم","الأول أ","سدد","مستجد"]
[211,"شروق عبدالرحيم محمود عبدالرحيم",31107012613005,"انثى","مسلم","الأول أ","سدد","مستجد"]
[212,"شمس رمضان حمدي عجور",31202012607806,"انثى","مسلم","الأول أ","سدد","مستجد"]
[213,"شهد السيد جادالكريم احمد",31205202609448,"انثى","مسلم","الأول أ","سدد","مستجد"]
[214,"شهد عامر عبدالحميد حفني",31205052608545,"انثى","مسلم","الأول أ","سدد","مستجد"]
[215,"شهد عثمان فهلي محمد",31103032603582,"انثى","مسلم","الأول أ","سدد","مستجد"]
[216,"شهد محمد حشمت محمد",31109202601944,"انثى","مسلم","الأول أ","سدد","مستجد"]
[217,"شهد يسين عسران السيد",31109052607183,"انثى","مسلم","الأول أ","سدد","مستجد"]
[218,"شهده رمضان علي ابوالحسن",31112022601041,"انثى","مسلم","الأول أ","سدد","مستجد"]
[219,"شيرين الشنبري حشمت محمد",31205052608626,"انثى","مسلم","الأول أ","سدد","مستجد"]
[220,"شيرين عمار سعدالدين ابراهيم",31106122603009,"انثى","مسلم","الأول أ","سدد","مستجد"]
[221,"شيماء حمدي محمد حسن",31209202601264,"انثى","مسلم","الأول أ","سدد","مستجد"]
[222,"شيماء محمد ابراهيم توفيق",31110202603902,"انثى","مسلم","الأول أ","سدد","مستجد"]
[223,"صباح محمد عبدالعزيز ابراهيم",31207012616068,"انثى","مسلم","الأول أ","سدد","مستجد"]
[224,"صبرين زيدان هلال زيدان",31111202602848,"انثى","مسلم","الأول أ","سدد","مستجد"]
[225,"عائشه حازم رمضان محمود",31203202604303,"انثى","مسلم","الأول أ","سدد","مستجد"]
[226,"عبير متولي عبداللاه صابر",31110222603488,"انثى","مسلم","الأول أ","سدد","مستجد"]
[227,"عزه قناوي الضبع جادالكريم احمد",31103122602569,"انثى","مسلم","الأول أ","سدد","مستجد"]
[228,"عفاف راضي يونس ابراهيم",31110012613367,"انثى","مسلم","الأول أ","سدد","مستجد"]
[229,"علا عاطف حمدي ابوالعلا",31006202602181,"انثى","مسلم","الأول أ","سدد","مستجد"]
[230,"فاطمه السيد محمد السيد",31202012607822,"انثى","مسلم","الأول أ","سدد","مستجد"]
[231,"فاطمه رفعت عبدالغفار عثمان",31110162601642,"انثى","مسلم","الأول أ","سدد","مستجد"]
[232,"فاطمه عبدالموجود تمساح عبدالموجود",31201252608048,"انثى","مسلم","الأول أ","سدد","مستجد"]
[233,"فرح سلامه عبدالحميد عبدالعال",31203202603005,"انثى","مسلم","الأول أ","سدد","مستجد"]
[234,"كريمان عبدالهادى أحمد عبدالعظيم",31204242603063,"انثى","مسلم","الأول أ","سدد","مستجد"]
[235,"مايا عاطف احمد عبداللاه",31208202606405,"انثى","مسلم","الأول أ","سدد","مستجد"]
[236,"مروه عمر حامد محمد",31202122602508,"انثى","مسلم","الأول أ","سدد","مستجد"]
[237,"مروه محمد علي حافظ",31208202606367,"انثى","مسلم","الأول أ","سدد","مستجد"]
[238,"مريم ابراهيم العراقي عبداللاه",31209052604642,"انثى","مسلم","الأول أ","سدد","مستجد"]
[239,"مريم رمضان حشمت مدني",31207012616106,"انثى","مسلم","الأول أ","سدد","مستجد"]
[240,"مريم علاء زهران عبدالنبي",31208012625926,"انثى","مسلم","الأول أ","سدد","مستجد"]
[241,"مريم ناجح العربي عبدلي",31106122602983,"انثى","مسلم","الأول أ","سدد","مستجد"]
[242,"مريم ناصر العبد محمد",31108012615624,"انثى","مسلم","الأول أ","سدد","مستجد"]
[243,"ملك اشرف السيد عوض",31201012624585,"انثى","مسلم","الأول أ","سدد","مستجد"]
[244,"ملك بخيت عبدالراضي السيد",31106092600743,"انثى","مسلم","الأول أ","سدد","مستجد"]
[245,"ملك حماده العربى عاكف",31201102605563,"انثى","مسلم","الأول أ","سدد","مستجد"]
[246,"ملك حمام عدلي محمد",31208012625985,"انثى","مسلم","الأول أ","سدد","مستجد"]
[247,"ملك رياض حشمت محمد",31108042602748,"انثى","مسلم","الأول أ","سدد","مستجد"]
[248,"ملك شعبان العربي توفيق",31106122602967,"انثى","مسلم","الأول أ","سدد","مستجد"]
[249,"ملك عصمت حمدان مصطفى",31209012625981,"انثى","مسلم","الأول أ","سدد","مستجد"]
[250,"ملك عمادالدين عبدالرحمن علي طلب",31209012626287,"انثى","مسلم","الأول أ","سدد","مستجد"]
[251,"ملك قاعود حمدى احمد",31204142602825,"انثى","مسلم","الأول أ","سدد","مستجد"]
[252,"ملك محروس حسن محمد",31205202609421,"انثى","مسلم","الأول أ","سدد","مستجد"]
[253,"ملك معلاوي شحاته شاكر",31207262600566,"انثى","مسلم","الأول أ","سدد","مستجد"]
[254,"منار عمر كمال أحمد",31111102606285,"انثى","مسلم","الأول أ","سدد","مستجد"]
[255,"منه محمد محمود عبدالعظيم",31208012625969,"انثى","مسلم","الأول أ","سدد","مستجد"]
[256,"ندى شحاته الضبع جادالكريم",31101122602663,"انثى","مسلم","الأول أ","سدد","مستجد"]
[257,"ندى عبدالحميد محمد عبدالحميد",31205292602285,"انثى","مسلم","الأول أ","سدد","مستجد"]
[258,"نرمين ربيع عبدالواحد التهامي",31201102601681,"انثى","مسلم","الأول أ","سدد","مستجد"]
[259,"نسمه محمود قنعاوي مدني",31104232601882,"انثى","مسلم","الأول أ","سدد","مستجد"]
[260,"نور اسعد الديب فندي",31204012619467,"انثى","مسلم","الأول أ","سدد","مستجد"]
[261,"نور العبد عمر حسن",31207012616122,"انثى","مسلم","الأول أ","سدد","مستجد"]
[262,"نور ربيع عطيه محمد فندي",31112102601867,"انثى","مسلم","الأول أ","سدد","مستجد"]
[263,"نور صلاح أحمد محمد",31111202609869,"انثى","مسلم","الأول أ","سدد","مستجد"]
[264,"نور ناصر محمد حمدي",31205012618203,"انثى","مسلم","الأول أ","سدد","مستجد"]
[265,"نورا عبدالفتاح محمد عبدالحكيم",31103292601923,"انثى","مسلم","الأول أ","سدد","مستجد"]
[266,"نوران ايمن راجح السيد",31111112617005,"انثى","مسلم","الأول أ","سدد","مستجد"]
[267,"نوره عاطف زهمول محمد",31205052608642,"انثى","مسلم","الأول أ","سدد","مستجد"]
[268,"نورهان رفعت سيف النصر علي",31206152604403,"انثى","مسلم","الأول أ","سدد","مستجد"]
[269,"نورهان عوض محمود زيدان",31208012625861,"انثى","مسلم","الأول أ","سدد","مستجد"]
[270,"نيجار خلف ابوالعلا احمد",31201012619824,"انثى","مسلم","الأول أ","سدد","مستجد"]
[271,"هاجر ابراهيم كيلاني محمد",31112162601424,"انثى","مسلم","الأول أ","سدد","مستجد"]
[272,"هاجر هيثم حمدي مدني",31110202603961,"انثى","مسلم","الأول أ","سدد","مستجد"]
[273,"هاله محمد صابر عبداللطيف",31209012626082,"انثى","مسلم","الأول أ","سدد","مستجد"]
[274,"هبه محمود فايز محمد",31209012626104,"انثى","مسلم","الأول أ","سدد","مستجد"]
[275,"هدى عيد مصطفى محمد",31203102604268,"انثى","مسلم","الأول أ","سدد","مستجد"]
[276,"هنا عبدالحميد محمود محمد",31104052604425,"انثى","مسلم","الأول أ","سدد","مستجد"]
[277,"ولاء طارق هلال زيدان",31104102608362,"انثى","مسلم","الأول أ","سدد","مستجد"]
[278,"ياسمين احمد عسران محمد",31011012611986,"انثى","مسلم","الأول أ","سدد","مستجد"]
[279,"ياسمين حمدي مصطفى النادى كمال",31111202603046,"انثى","مسلم","الأول أ","سدد","مستجد"]
[280,"ياسمين علي كمال عبدالمجيد",31202122602443,"انثى","مسلم","الأول أ","سدد","مستجد"]
[281,"ياسمين واليد احمد محمد",31102222601288,"انثى","مسلم","الأول أ","سدد","مستجد"]
[282,"ياسمينه ايمن قنديل احمد",31110012613405,"انثى","مسلم","الأول أ","سدد","مستجد"]
[1,"ابراهيم احمد عبد العزيز ابراهيم",31101012627695,"ذكر","مسلم","الثاني أ","سدد","مستجد"]
[2,"ابراهيم كامل ابراهيم جادالرب",31105052604499,"ذكر","مسلم","الثاني أ","سدد","مستجد"]
[3,"احمد خلف أحمد محمد",31012202601452,"ذكر","مسلم","الثاني أ","لم يسدد","مستجد"]
[4,"احمد رمضان عبدالستار عبدالمعبود",31103022602057,"ذكر","مسلم","الثاني أ","سدد","مستجد"]
[5,"احمد سليمان احمد على",31009202605694,"ذكر","مسلم","الثاني أ","سدد","مستجد"]
[6,"احمد علي محمد عثمان",31108102605016,"ذكر","مسلم","الثاني أ","أيتام","مستجد"]
[7,"احمد محمد خلف كامل",31011062603151,"ذكر","مسلم","الثاني أ","لم يسدد","مستجد"]
[8,"احمد محمود جادالكريم حسن",31105312600697,"ذكر","مسلم","الثاني أ","لم يسدد","مستجد"]
[9,"احمد مؤمن كليب علي",31102122600993,"ذكر","مسلم","الثاني أ","لم يسدد","مستجد"]
[10,"اسلام عمر رمضان شفاعي",31104112603156,"ذكر","مسلم","الثاني أ","سدد","مستجد"]
[11,"اسلام محمد حسونه عبدالحميد",31107072605796,"ذكر","مسلم","الثاني أ","لم يسدد","مستجد"]
[12,"اسلام محمود على صادق",31012102601692,"ذكر","مسلم","الثاني أ","سدد","مستجد"]
[13,"اشرف احمد عجور عبدالنبي",31012202601371,"ذكر","مسلم","الثاني أ","لم يسدد","مستجد"]
[14,"اشرف صبري فوزي محمود",31107202608032,"ذكر","مسلم","الثاني أ","لم يسدد","مستجد"]
[15,"المعتصم بالله عبدالراضى على بديوى",31102122600977,"ذكر","مسلم","الثاني أ","سدد","مستجد"]
[16,"ايمن رجب عبدالعزيز محمد",31103122602291,"ذكر","مسلم","الثاني أ","سدد","مستجد"]
[17,"ايهاب عاطف عبدالله جبرائيل",31103042600751,"ذكر","مسيحى","الثاني أ","لم يسدد","مستجد"]
[18,"بدر عادل محمد حسن",31103122604154,"ذكر","مسلم","الثاني أ","لم يسدد","مستجد"]
[19,"بشير حماده صبرى بدوى",31108012626057,"ذكر","مسلم","الثاني أ","لم يسدد","مستجد"]
[20,"بشير خلف صديق عبداللاه",31108202607954,"ذكر","مسلم","الثاني أ","سدد","مستجد"]
[21,"بهاء عوض حسونه حسانين",31108012618054,"ذكر","مسلم","الثاني أ","سدد","مستجد"]
[22,"جمال عبدالناصر محمد ثابت",31105142601871,"ذكر","مسلم","الثاني أ","لم يسدد","مستجد"]
[23,"حامد حمدي خلف عبدالهادي",31109202602134,"ذكر","مسلم","الثاني أ","لم يسدد","مستجد"]
[24,"حسام رشاد وعد محمد",31102082602157,"ذكر","مسلم","الثاني أ","سدد","مستجد"]
[25,"حسان خيرت محمد جميل",31105102605696,"ذكر","مسلم","الثاني أ","لم يسدد","مستجد"]
[26,"حماده محمد عباس السيد",31102052603175,"ذكر","مسلم","الثاني أ","سدد","مستجد"]
[27,"حمدى اشرف حمدى محمد",31103192602078,"ذكر","مسلم","الثاني أ","سدد","مستجد"]
[28,"حمزه احمد مدني قايد",31009012623351,"ذكر","مسلم","الثاني أ","لم يسدد","مستجد"]
[29,"خالد شعبان صابر رضا",31008012613112,"ذكر","مسلم","الثاني أ","سدد","مستجد"]
[30,"خالد عاطف حمدان عبدالحميد",31010062602434,"ذكر","مسلم","الثاني أ","لم يسدد","مستجد"]
[31,"خالد ناصر فتحي احمد",31101012627717,"ذكر","مسلم","الثاني أ","سدد","مستجد"]
[32,"زياد إبراهيم محمود عسران حمايت الله",31101012627792,"ذكر","مسلم","الثاني أ","أيتام","مستجد"]
[33,"زياد احمد كمال محمد",31012202601274,"ذكر","مسلم","الثاني أ","سدد","مستجد"]
[34,"زياد علي كامل محمد",31011062603119,"ذكر","مسلم","الثاني أ","سدد","مستجد"]
[35,"سيف أحمد عبدالفتاح محمود",31107012615636,"ذكر","مسلم","الثاني أ","سدد","مستجد"]
[36,"صابر فراج صابر نورالدين",31103232602637,"ذكر","مسلم","الثاني أ","لم يسدد","مستجد"]
[37,"صالح أحمد محمود محمد",31108012618038,"ذكر","مسلم","الثاني أ","لم يسدد","مستجد"]
[38,"ضياء عبداللاه عبدالرازق علي",31011062604336,"ذكر","مسلم","الثاني أ","سدد","مستجد"]
[39,"طارق بيومى موسى كامل",31104012616617,"ذكر","مسلم","الثاني أ","سدد","مستجد"]
[40,"عادل عباس عبدالباقي احمد",31012012615872,"ذكر","مسلم","الثاني أ","لم يسدد","مستجد"]
[41,"عبدالحكيم احمد عبدالصبور حسين",31103032603833,"ذكر","مسلم","الثاني أ","لم يسدد","مستجد"]
[42,"عبدالحميد احمد طاهر بهلول",31103192602116,"ذكر","مسلم","الثاني أ","سدد","مستجد"]
[43,"عبدالحميد حازم محمد حسن",31108102605032,"ذكر","مسلم","الثاني أ","لم يسدد","مستجد"]
[44,"عبدالحميد عيد حماد احمد",31106012617918,"ذكر","مسلم","الثاني أ","لم يسدد","مستجد"]
[45,"عبدالحميد ياسر عبدالحميد جادالكريم",31102052603213,"ذكر","مسلم","الثاني أ","لم يسدد","مستجد"]
[46,"عبدالخالق علي احمد بطيخ",31010142601374,"ذكر","مسلم","الثاني أ","سدد","مستجد"]
[47,"عبدالرحمن ابوالعلا عبداللطيف موسى",31102012603113,"ذكر","مسلم","الثاني أ","لم يسدد","مستجد"]
[48,"عبدالرحمن احمد حناوي جيلاني",30911262600278,"ذكر","مسلم","الثاني أ","لم يسدد","مستجد"]
[49,"عبدالرحمن عطا احمد صديق",31101062601077,"ذكر","مسلم","الثاني أ","سدد","مستجد"]
[50,"عبدالرحمن محمد عبدالفتاح محمود",31108092603214,"ذكر","مسلم","الثاني أ","لم يسدد","مستجد"]
[51,"عبدالرحيم احمد عبدالرحيم مرسي",31105142601855,"ذكر","مسلم","الثاني أ","لم يسدد","مستجد"]
[52,"عبدالسلام امام فهلى عبدالسلام",31103232602599,"ذكر","مسلم","الثاني أ","لم يسدد","مستجد"]
[53,"عبدالعليم ممدوح عبدالعليم احمد",31109012618972,"ذكر","مسلم","الثاني أ","لم يسدد","مستجد"]
[54,"عبداللاه صبري فوزي محمود",31107202608016,"ذكر","مسلم","الثاني أ","سدد","مستجد"]
[55,"عبدالله احمد الدكروني احمد",31010202606214,"ذكر","مسلم","الثاني أ","لم يسدد","مستجد"]
[56,"عبدالله احمد كمال عبدالمجيد",31107012617914,"ذكر","مسلم","الثاني أ","لم يسدد","مستجد"]
[57,"عبدالله عبدالراضي زكي عثمان",31107072605753,"ذكر","مسلم","الثاني أ","سدد","مستجد"]
[58,"عبدالله عبدالرؤوف مسعد احمد عوض",31102082601894,"ذكر","مسلم","الثاني أ","لم يسدد","مستجد"]
[59,"عبدالله قصيدي حمدان برعي",31102122600918,"ذكر","مسلم","الثاني أ","لم يسدد","مستجد"]
[60,"عبدالله قنعاوي خليفه فاضل",31109202602096,"ذكر","مسلم","الثاني أ","سدد","مستجد"]
[61,"عبدالله محمود محمد شاكر",31104142603959,"ذكر","مسلم","الثاني أ","لم يسدد","مستجد"]
[62,"عبدالله ممدوح خلف محمد",31104142603991,"ذكر","مسلم","الثاني أ","لم يسدد","مستجد"]
[63,"عبدالله نصر الدين احمد على",31009012623416,"ذكر","مسلم","الثاني أ","لم يسدد","مستجد"]
[64,"عبدالله هاشم احمد بطيخ",31103222602515,"ذكر","مسلم","الثاني أ","سدد","مستجد"]
[65,"علاء احمد حمدى قايد",31105142601839,"ذكر","مسلم","الثاني أ","سدد","مستجد"]
[66,"علي رمضان خلف محمد",30910122602193,"ذكر","مسلم","الثاني أ","سدد","مستجد"]
[67,"علي محمد رمضان محمد",31104012616579,"ذكر","مسلم","الثاني أ","لم يسدد","مستجد"]
[68,"علي محمود علي اسماعيل",31005152602855,"ذكر","مسلم","الثاني أ","لم يسدد","مستجد"]
[69,"علي محمود فهيم برعى",31012202601312,"ذكر","مسلم","الثاني أ","لم يسدد","مستجد"]
[70,"عماد حمدى فهيم برعى",31010012621152,"ذكر","مسلم","الثاني أ","لم يسدد","مستجد"]
[71,"فارس علي عبداللاه صابر",31006222603613,"ذكر","مسلم","الثاني أ","لم يسدد","مستجد"]
[72,"قاسم صلاح محمود أحمد",31012012615813,"ذكر","مسلم","الثاني أ","سدد","مستجد"]
[73,"كريم ابوبكر مختار محمد",31105052604332,"ذكر","مسلم","الثاني أ","سدد","مستجد"]
[74,"كريم احمد اسماعيل عبدالغفار",31012252602077,"ذكر","مسلم","الثاني أ","أيتام","مستجد"]
[75,"كريم رمضان عبدالستار عبدالمعبود",31109082601953,"ذكر","مسلم","الثاني أ","لم يسدد","مستجد"]
[76,"كريم عبدالشافى يوسف احمد",31103122602275,"ذكر","مسلم","الثاني أ","أيتام","مستجد"]
[77,"كريم علاء محمد عبد اللاه",31003012603433,"ذكر","مسلم","الثاني أ","لم يسدد","مستجد"]
[78,"كريم عنتر ابراهيم عبدالحميد",31109082602038,"ذكر","مسلم","الثاني أ","سدد","مستجد"]
[79,"محمد ابوالعلا شعبان محمد",31010202606176,"ذكر","مسلم","الثاني أ","لم يسدد","مستجد"]
[80,"محمد احمد كمال محمد",31012202601258,"ذكر","مسلم","الثاني أ","سدد","مستجد"]
[81,"محمد جمال خلف أحمد",31102112601355,"ذكر","مسلم","الثاني أ","سدد","مستجد"]
[82,"محمد حمدي كمال الدين",31010142601315,"ذكر","مسلم","الثاني أ","لم يسدد","مستجد"]
[83,"محمد خلف على صادق",31102172601532,"ذكر","مسلم","الثاني أ","لم يسدد","مستجد"]
[84,"محمد رفاعى عبدالغفار عثمان",31102012603172,"ذكر","مسلم","الثاني أ","سدد","مستجد"]
[85,"محمد شعبان عبدالعزيز محمد",31109202602118,"ذكر","مسلم","الثاني أ","لم يسدد","مستجد"]
[86,"محمد عادل ابراهيم سباق",31109012619138,"ذكر","مسلم","الثاني أ","لم يسدد","مستجد"]
[87,"محمد عامر خلف احمد",31103202606735,"ذكر","مسلم","الثاني أ","سدد","مستجد"]
[88,"محمد عبد الخالق عبد الصبور ابو العلا",31011012612893,"ذكر","مسلم","الثاني أ","لم يسدد","مستجد"]
[89,"محمد عبدالحميد صديق عبدالمجيد",31102012603156,"ذكر","مسلم","الثاني أ","سدد","مستجد"]
[90,"محمد عبدالحميد عمر حسن",31110012612077,"ذكر","مسلم","الثاني أ","سدد","مستجد"]
[91,"محمد عبدالعاطى احمد حسانين",31103192602175,"ذكر","مسلم","الثاني أ","لم يسدد","مستجد"]
[92,"محمد عبدالغفار احمد عبدالغفار",31010142601358,"ذكر","مسلم","الثاني أ","سدد","مستجد"]
[93,"محمد عبدالفتاح حماد عبدالمبدى",31012012615856,"ذكر","مسلم","الثاني أ","سدد","مستجد"]
[94,"محمد عزت محمود احمد",31109202602193,"ذكر","مسلم","الثاني أ","أيتام","مستجد"]
[95,"محمد عصام محمد محمود طلب",31107202608059,"ذكر","مسلم","الثاني أ","لم يسدد","مستجد"]
[96,"محمد علي محمود صابر",31106122602975,"ذكر","مسلم","الثاني أ","سدد","مستجد"]
[97,"محمد عمرو مرعي علي",31105302601377,"ذكر","مسلم","الثاني أ","سدد","مستجد"]
[98,"محمد عنتر محمد احمد",31102052603159,"ذكر","مسلم","الثاني أ","لم يسدد","مستجد"]
[99,"محمد محمود جادالكريم حسن",31105312600719,"ذكر","مسلم","الثاني أ","سدد","مستجد"]
[100,"محمد وليد محمد عبدالرحيم",31106012617896,"ذكر","مسلم","الثاني أ","لم يسدد","مستجد"]
[101,"محمود حربي عبدالسميع ابوالحسن",31010062602493,"ذكر","مسلم","الثاني أ","سدد","مستجد"]
[102,"محمود حماده علي صادق",31012102601676,"ذكر","مسلم","الثاني أ","لم يسدد","مستجد"]
[103,"محمود عادل عبدالسميع عبداللطيف",31011062603054,"ذكر","مسلم","الثاني أ","سدد","مستجد"]
[104,"محمود عاطف علي اسماعيل",30909272603777,"ذكر","مسلم","الثاني أ","أيتام","مستجد"]
[105,"محمود قناوى عبدالراضى عبدلى",31101122602973,"ذكر","مسلم","الثاني أ","سدد","مستجد"]
[106,"محمود محمد حناوي توفيق",31010062602515,"ذكر","مسلم","الثاني أ","سدد","مستجد"]
[107,"محمود مصطفى محمود عبداللاه",31011072603095,"ذكر","مسلم","الثاني أ","سدد","مستجد"]
[108,"مروان احمد محمد عثمان",31105052604596,"ذكر","مسلم","الثاني أ","لم يسدد","مستجد"]
[109,"مروان محمد على بديوى",31101122602914,"ذكر","مسلم","الثاني أ","سدد","مستجد"]
[110,"مصطفى ابوالعلا عبدالقادر عبداللاه",31011122600858,"ذكر","مسلم","الثاني أ","لم يسدد","مستجد"]
[111,"مصطفى سعد علي احمد",31101102601415,"ذكر","مسلم","الثاني أ","سدد","مستجد"]
[112,"مصطفى طه فتح الباب محمد طه",31107072605834,"ذكر","مسلم","الثاني أ","سدد","مستجد"]
[113,"مصطفى عادل عبدالباقى احمد",31101232601395,"ذكر","مسلم","الثاني أ","سدد","مستجد"]
[114,"مكاريوس يسري بخيت جرجس",31106202607153,"ذكر","مسيحى","الثاني أ","سدد","مستجد"]
[115,"منصور إبراهيم منصور رضا",31012252602115,"ذكر","مسلم","الثاني أ","سدد","مستجد"]
[116,"هيثم عيد مصطفى محمد",31103232602572,"ذكر","مسلم","الثاني أ","سدد","مستجد"]
[117,"وليد نورالدين حمدي قايد",31011012612931,"ذكر","مسلم","الثاني أ","سدد","مستجد"]
[118,"ياسر عرفات الديب فندي",31011012612915,"ذكر","مسلم","الثاني أ","سدد","مستجد"]
[119,"يوسف احمد رجائى عبدالمنصف",31107072605699,"ذكر","مسلم","الثاني أ","سدد","مستجد"]
[120,"يوسف اشرف عبدالحميد عبدالعال",31102122600934,"ذكر","مسلم","الثاني أ","لم يسدد","مستجد"]
[121,"يوسف الشنبري ابراهيم توفيق",31109122604675,"ذكر","مسلم","الثاني أ","لم يسدد","مستجد"]
[122,"يوسف عابدين عبد النظير عابدين",31105052604456,"ذكر","مسلم","الثاني أ","لم يسدد","مستجد"]
[123,"يوسف على حمدى عبدالعال",31109062601795,"ذكر","مسلم","الثاني أ","لم يسدد","مستجد"]
[124,"يوسف علي عبد اللاه صابر",31101012627776,"ذكر","مسلم","الثاني أ","لم يسدد","مستجد"]
[125,"يوسف محمد على محمود",31102012603199,"ذكر","مسلم","الثاني أ","لم يسدد","مستجد"]
[126,"ابرار على عبدالباقى فرج",31109082602186,"انثى","مسلم","الثاني أ","لم يسدد","مستجد"]
[127,"اثنات عصمت حمدان مصطفى",31101122602647,"انثى","مسلم","الثاني أ","سدد","مستجد"]
[128,"اسراء كليب طلب حسن",31102172601222,"انثى","مسلم","الثاني أ","لم يسدد","مستجد"]
[129,"اسماء احمد حناوي جيلاني",31108012615586,"انثى","مسلم","الثاني أ","سدد","مستجد"]
[130,"اسماء احمد محمد احمد",31010252606002,"انثى","مسلم","الثاني أ","سدد","مستجد"]
[131,"اسماء اسعد محمد محمود",31108202607105,"انثى","مسلم","الثاني أ","لم يسدد","مستجد"]
[132,"اسماء السيد مدني قايد",31102172601168,"انثى","مسلم","الثاني أ","لم يسدد","مستجد"]
[133,"اسماء محمد يوسف محمود",31010142601382,"انثى","مسلم","الثاني أ","لم يسدد","مستجد"]
[134,"افنان عاطف العربى عاكف",31101012626842,"انثى","مسلم","الثاني أ","لم يسدد","مستجد"]
[135,"اكرام كرم عبد الرحيم السمان",31012252601607,"انثى","مسلم","الثاني أ","سدد","مستجد"]
[136,"امال زيدان كمال الدين حسن",31105142601561,"انثى","مسلم","الثاني أ","أيتام","مستجد"]
[137,"امل محمود احمد جادالكريم",31102092602783,"انثى","مسلم","الثاني أ","لم يسدد","مستجد"]
[138,"اميره الشبراوي عبده علي",31102012615065,"انثى","مسلم","الثاني أ","سدد","مستجد"]
[139,"اميمه حسين محمد السيد",31102082601487,"انثى","مسلم","الثاني أ","سدد","مستجد"]
[140,"امينه ايمن حمدي مدني",31105142602169,"انثى","مسلم","الثاني أ","سدد","مستجد"]
[141,"ايه احمد محمود احمد",31010142601404,"انثى","مسلم","الثاني أ","سدد","مستجد"]
[142,"ايه عبود أحمد محمود",31107142602404,"انثى","مسلم","الثاني أ","سدد","مستجد"]
[143,"ايه عمر محمود محمد",31104202603546,"انثى","مسلم","الثاني أ","سدد","مستجد"]
[144,"ايه محمد علي ابراهيم",31001102601283,"انثى","مسلم","الثاني أ","لم يسدد","مستجد"]
[145,"جنات السيد كمال عبدالمجيد",31011012611889,"انثى","مسلم","الثاني أ","لم يسدد","مستجد"]
[146,"جنات جمعه مفتاح محمد",31107012615202,"انثى","مسلم","الثاني أ","سدد","مستجد"]
[147,"جنة الله رسلان صابر زيدان",30912062603066,"انثى","مسلم","الثاني أ","سدد","مستجد"]
[148,"جنى لادهم خلف ظهران",31108102605148,"انثى","مسلم","الثاني أ","لم يسدد","مستجد"]
[149,"حبيبه اسعد احمد زيدان",31006202602289,"انثى","مسلم","الثاني أ","لم يسدد","مستجد"]
[150,"حبيبه اشرف احمد عبدالرحمن",31102012602648,"انثى","مسلم","الثاني أ","سدد","مستجد"]
[151,"حبيبه عبدالرازق بخيت علي",31010252601221,"انثى","مسلم","الثاني أ","سدد","مستجد"]
[152,"حبيبه محمود محمد شاكر",31104142603444,"انثى","مسلم","الثاني أ","لم يسدد","مستجد"]
[153,"حسناء هيثم خليفه رسلان",31003142600843,"انثى","مسلم","الثاني أ","لم يسدد","مستجد"]
[154,"حفصه اسعد احمد زيدان",31006202602262,"انثى","مسلم","الثاني أ","سدد","مستجد"]
[155,"حفصه ايمن حمدان جبريل",31103192602043,"انثى","مسلم","الثاني أ","سدد","مستجد"]
[156,"حميده رفاعي محمود محمد",31107072604307,"انثى","مسلم","الثاني أ","لم يسدد","مستجد"]
[157,"حنين السيد احمد صديق",31106122604862,"انثى","مسلم","الثاني أ","سدد","مستجد"]
[158,"حنين عبدالراضى نظير احمد",31101232601484,"انثى","مسلم","الثاني أ","لم يسدد","مستجد"]
[159,"حنين عرفات محمود عبد المطلب",31011232603321,"انثى","مسلم","الثاني أ","سدد","مستجد"]
[160,"حنين محمود صابر حسين",31101012626788,"انثى","مسلم","الثاني أ","لم يسدد","مستجد"]
[161,"خلود ابراهيم احمد جادالكريم",31011062602902,"انثى","مسلم","الثاني أ","سدد","مستجد"]
[162,"خلود ايمن مصطفى مرسى",31011242602781,"انثى","مسلم","الثاني أ","لم يسدد","مستجد"]
[163,"دنيا ابو السعود فتحي عبد الموجود",31011202606121,"انثى","مسلم","الثاني أ","سدد","مستجد"]
[164,"رانيا محمود صابر مرسي",31102122601027,"انثى","مسلم","الثاني أ","سدد","مستجد"]
[165,"رحاب احمد محمد على",31009012609863,"انثى","مسلم","الثاني أ","سدد","مستجد"]
[166,"رشا محروس الصغير احمد",31104012615823,"انثى","مسلم","الثاني أ","لم يسدد","مستجد"]
[167,"رقيه سليم عبدالنعيم السيد",31107202608148,"انثى","مسلم","الثاني أ","لم يسدد","مستجد"]
[168,"رهيفه عبدالمنعم عبدالسميع ابوالحسن",31108042602721,"انثى","مسلم","الثاني أ","لم يسدد","مستجد"]
[169,"ريهام عادل محمد فهيم",31009012622363,"انثى","مسلم","الثاني أ","سدد","مستجد"]
[170,"ريهام عبدالخالق عبدالشافي احمد",31005022605003,"انثى","مسلم","الثاني أ","لم يسدد","مستجد"]
[171,"ريهام محمد حمدي عبدالعال",31109082602305,"انثى","مسلم","الثاني أ","لم يسدد","مستجد"]
[172,"زينب صبري سلامه محمد",31106052603502,"انثى","مسلم","الثاني أ","لم يسدد","مستجد"]
[173,"زينب لادهم خلف ظهران",31108102605164,"انثى","مسلم","الثاني أ","لم يسدد","مستجد"]
[174,"ساره ابراهيم عبده ابوالعلا",31012012614604,"انثى","مسلم","الثاني أ","سدد","مستجد"]
[175,"شروق شحاتة يونس ابراهيم",31012012621708,"انثى","مسلم","الثاني أ","سدد","مستجد"]
[176,"شهد جابر احمد سليمان",31107012612963,"انثى","مسلم","الثاني أ","سدد","مستجد"]
[177,"شهد حسام محمد محمود طلب",31101122602582,"انثى","مسلم","الثاني أ","لم يسدد","مستجد"]
[178,"شهد شعبان صالح محمد",31001012610887,"انثى","مسلم","الثاني أ","لم يسدد","مستجد"]
[179,"شيماء احمد محمود عبداللاه",31011062602988,"انثى","مسلم","الثاني أ","لم يسدد","مستجد"]
[180,"شيماء شعبان تمساح عبد الموجود",31104012615963,"انثى","مسلم","الثاني أ","لم يسدد","مستجد"]
[181,"صفاء ابراهيم محمد علي",31105052604049,"انثى","مسلم","الثاني أ","سدد","مستجد"]
[182,"عزه عبدالراضي عبداللطيف علي",31109012616341,"انثى","مسلم","الثاني أ","سدد","مستجد"]
[183,"علياء جمال ابوالعلا بدوي ابراهيم",31103012613581,"انثى","مسلم","الثاني أ","لم يسدد","مستجد"]
[184,"فاطمه قنديل الديب فندي محمد",31108042602802,"انثى","مسلم","الثاني أ","سدد","مستجد"]
[185,"فاطمه كليب على خربطلى",31003142600746,"انثى","مسلم","الثاني أ","سدد","مستجد"]
[186,"فرحه احمد عبدالرحيم محمد",31010142601447,"انثى","مسلم","الثاني أ","لم يسدد","مستجد"]
[187,"فرحه على حمدى عبدالعال",31101012626826,"انثى","مسلم","الثاني أ","لم يسدد","مستجد"]
[188,"قمر ايمن رضا عابدين",31102172601249,"انثى","مسلم","الثاني أ","سدد","مستجد"]
[189,"قمر خلف احمد حسين",31102172601125,"انثى","مسلم","الثاني أ","أيتام","مستجد"]
[190,"ليالى اشرف محمد محمود",31102172601184,"انثى","مسلم","الثاني أ","لم يسدد","مستجد"]
[191,"مروه عماد محمود علي",31101012626869,"انثى","مسلم","الثاني أ","لم يسدد","مستجد"]
[192,"مروه محمود فايز محمد",31102052603744,"انثى","مسلم","الثاني أ","سدد","مستجد"]
[193,"مريم احمد عبدالستار فاضل",31105202604182,"انثى","مسلم","الثاني أ","لم يسدد","مستجد"]
[194,"مريم بسيوني مهران محمد",31010142601366,"انثى","مسلم","الثاني أ","سدد","مستجد"]
[195,"ملك رفاعى بخيت مدنى",31106202606645,"انثى","مسلم","الثاني أ","سدد","مستجد"]
[196,"ملك عاشور مصطفى عثمان خربطلي",31107202608121,"انثى","مسلم","الثاني أ","لم يسدد","مستجد"]
[197,"ملك عامر محمد عبد الباسط",31012102601625,"انثى","مسلم","الثاني أ","سدد","مستجد"]
[198,"ملك علي عثمان علي",31107142602447,"انثى","مسلم","الثاني أ","سدد","مستجد"]
[199,"ملك محمد زكى عثمان",31010252601248,"انثى","مسلم","الثاني أ","سدد","مستجد"]
[200,"منار احمد الديب احمد",31105202604263,"انثى","مسلم","الثاني أ","سدد","مستجد"]
[201,"منار هيثم حمدي مدني",31012122608405,"انثى","مسلم","الثاني أ","سدد","مستجد"]
[202,"منى عبد الناصر محمد عبد الراضي",31005012603029,"انثى","مسلم","الثاني أ","سدد","مستجد"]
[203,"مي هشام شبيب عبد الراضي",31101262602604,"انثى","مسلم","الثاني أ","لم يسدد","مستجد"]
[204,"نجلاء عبدالرحيم محمد عبدالرحيم",31109082602089,"انثى","مسلم","الثاني أ","سدد","مستجد"]
[205,"ندى عبدالواحد صابر مرسي",31102122600985,"انثى","مسلم","الثاني أ","سدد","مستجد"]
[206,"ندى علاء محمد عبد اللاه",31102242601985,"انثى","مسلم","الثاني أ","سدد","مستجد"]
[207,"ندى محمدالصغير احمد عبدالرحيم",31011202606202,"انثى","مسلم","الثاني أ","لم يسدد","مستجد"]
[208,"ندين أحمد شاكر ابراهيم",31202128800581,"انثى","مسلم","الثاني أ","لم يسدد","مستجد"]
[209,"نسمه شعبان محمد فهيم",31106202606661,"انثى","مسلم","الثاني أ","لم يسدد","مستجد"]
[210,"نسمه عبدالنظير طلب حسن",31103162602189,"انثى","مسلم","الثاني أ","لم يسدد","مستجد"]
[211,"نور خلف احمد حسن",31102172601141,"انثى","مسلم","الثاني أ","أيتام","مستجد"]
[212,"نيجار ممدوح عبدالعليم احمد",31103122602585,"انثى","مسلم","الثاني أ","لم يسدد","مستجد"]
[213,"هاجر عبد الحميد طاهر بهلول",31101122602701,"انثى","مسلم","الثاني أ","سدد","مستجد"]
[214,"هاجر عبدالمنصف عبدالحميد رضا",31109202601901,"انثى","مسلم","الثاني أ","سدد","مستجد"]
[215,"هاله ابو الحجاج محمود ابراهيم",31105202604247,"انثى","مسلم","الثاني أ","سدد","مستجد"]
[216,"هدى بسام ابوالعلا احمد",31011012612001,"انثى","مسلم","الثاني أ","لم يسدد","مستجد"]
[217,"هناء جابر مصطفي النادى",31010142601463,"انثى","مسلم","الثاني أ","سدد","مستجد"]
[218,"ورده حمدي فوزي ابراهيم",31107202608164,"انثى","مسلم","الثاني أ","لم يسدد","مستجد"]
[219,"ولاء معلاوى شحاتة شاكر",31012102601609,"انثى","مسلم","الثاني أ","سدد","مستجد"]
[220,"ياسمين جمعه مفتاح محمد",31107012615229,"انثى","مسلم","الثاني أ","سدد","مستجد"]
[221,"ياسمين حماده عبدالصبور حسين",31011122600823,"انثى","مسلم","الثاني أ","سدد","مستجد"]
[222,"ياسمين سلامه فتحي عبد الموجود",31105052604103,"انثى","مسلم","الثاني أ","سدد","مستجد"]
[223,"ياسمين سيف النصر عبدالسلام حسين",31106162603265,"انثى","مسلم","الثاني أ","سدد","مستجد"]
[224,"ياسمين صبري حمدي قايد",31108102605245,"انثى","مسلم","الثاني أ","لم يسدد","مستجد"]
[225,"ياسمين عيد شحاته شاكر",31102122601043,"انثى","مسلم","الثاني أ","لم يسدد","مستجد"]
[1,"ابوالمجد كرم ابوالمجد على",31004102605113,"ذكر","مسلم","الثالث أ","سدد","مستجد"]
[2,"احمد الجرو عبدالحميد جميل",31005202603297,"ذكر","مسلم","الثالث أ","سدد","مستجد"]
[3,"احمد بهلول خليفه فاضل",31007242603152,"ذكر","مسلم","الثالث أ",null,"مستجد"]
[4,"احمد حماده حمدان عباس",31003012603514,"ذكر","مسلم","الثالث أ",null,"مستجد"]
[5,"احمد حمدى محمد حسن",30910252604597,"ذكر","مسلم","الثالث أ","سدد","مستجد"]
[6,"احمد عبدالموجود تمساح عبدالموجود",31001012602558,"ذكر","مسلم","الثالث أ","سدد","مستجد"]
[7,"احمد علي محمد عبدالله",31007242603179,"ذكر","مسلم","الثالث أ","سدد","مستجد"]
[8,"ادهم عبدالمنصف كليب صابر",31004242601975,"ذكر","مسلم","الثالث أ","سدد","مستجد"]
[9,"ادهم محمد على محمد",31003142601238,"ذكر","مسلم","الثالث أ",null,"مستجد"]
[10,"اسامه حسين احمد بطيخ",31002132603139,"ذكر","مسلم","الثالث أ","سدد","مستجد"]
[11,"اسعد ابراهيم عبادى عبدالمولى",31008102603698,"ذكر","مسلم","الثالث أ",null,"مستجد"]
[12,"اسلام على محمد عبدالمجيد",31003212601753,"ذكر","مسلم","الثالث أ",null,"مستجد"]
[13,"اسلام عيد صابر رضا",31003212601737,"ذكر","مسلم","الثالث أ","سدد","مستجد"]
[14,"ايمن تلاصون سعيد جرجس",30911022600971,"ذكر","مسيحى","الثالث أ","سدد","مستجد"]
[15,"بشار الشنبرى ابوالنجا محمد",30805252604831,"ذكر","مسلم","الثالث أ",null,"باق"]
[16,"توفيق ضاحى العبد محمد",31009252607051,"ذكر","مسلم","الثالث أ","سدد","مستجد"]
[17,"جرجس ماهر عبدالله جبرائيل",31008102603752,"ذكر","مسيحى","الثالث أ","سدد","مستجد"]
[18,"حازم عبداللاه حسن كمال الدين",31003252602876,"ذكر","مسلم","الثالث أ",null,"مستجد"]
[19,"حسن مختار عبد النعيم عبد السميع",31002202605312,"ذكر","مسلم","الثالث أ","سدد","مستجد"]
[20,"حسن مطاوع حنفي محمد",31003012603611,"ذكر","مسلم","الثالث أ","سدد","مستجد"]
[21,"حمدي شعبان محمد عثمان",31008012613236,"ذكر","مسلم","الثالث أ","سدد","مستجد"]
[22,"حمدي وليد عبدالنظير عابدين",31002012602074,"ذكر","مسلم","الثالث أ",null,"مستجد"]
[23,"خالد رمضان عبداللاه صابر",31004182602454,"ذكر","مسلم","الثالث أ",null,"مستجد"]
[24,"خالد عاطف عبدالعليم عوض",31005152602936,"ذكر","مسلم","الثالث أ","سدد","مستجد"]
[25,"زياد محمد محمود حمزه",31003142601211,"ذكر","مسلم","الثالث أ","سدد","مستجد"]
[26,"زياد محمدالسعيد على بدوى",31001012602515,"ذكر","مسلم","الثالث أ","سدد","مستجد"]
[27,"سالمان طه صابر محمد",31008142603496,"ذكر","مسلم","الثالث أ","سدد","مستجد"]
[28,"سليمان عبدالجبار احمد سليمان",31008142603313,"ذكر","مسلم","الثالث أ","سدد","مستجد"]
[29,"شنوده غالى نعيم ميخائيل",31005012603231,"ذكر","مسيحى","الثالث أ",null,"مستجد"]
[30,"صبري خلف عبدالعظيم محمد",31002082600796,"ذكر","مسلم","الثالث أ","سدد","مستجد"]
[31,"طارق عباس شبيب على",31004182602438,"ذكر","مسلم","الثالث أ","سدد","مستجد"]
[32,"عبدالحميد عبد الشافي عبدالحميد علي",31001012612855,"ذكر","مسلم","الثالث أ",null,"مستجد"]
[33,"عبدالرحمن خالد عبدالرحيم احمد",31006222603672,"ذكر","مسلم","الثالث أ",null,"مستجد"]
[34,"عبدالرحمن رجب فهيم عبدالعاطى",31005032602991,"ذكر","مسلم","الثالث أ","سدد","مستجد"]
[35,"عبدالرحمن عبد الحميد عبد الراضى عبد الموجود",30911262600316,"ذكر","مسلم","الثالث أ","سدد","مستجد"]
[36,"عبدالرحمن محمود عبدالعظيم أحمد",31007172601955,"ذكر","مسلم","الثالث أ",null,"مستجد"]
[37,"عبدالرحمن وليد رفعت حشمت",31006222603699,"ذكر","مسلم","الثالث أ","سدد","مستجد"]
[38,"عبداللطيف رمضان عبداللطيف محمد",31007172601971,"ذكر","مسلم","الثالث أ","سدد","مستجد"]
[39,"عبدالله احمد كليب على",31010012621136,"ذكر","مسلم","الثالث أ",null,"مستجد"]
[40,"عبدالله الشريف الديب فندى",31006102604314,"ذكر","مسلم","الثالث أ",null,"مستجد"]
[41,"عبدالله راضي عبدالرحمن علي",31009252607035,"ذكر","مسلم","الثالث أ",null,"مستجد"]
[42,"عبدالله رضا عابدين محمود",30912062603112,"ذكر","مسلم","الثالث أ","أيتام","مستجد"]
[43,"عبدالله رمضان حماد احمد",31003012603476,"ذكر","مسلم","الثالث أ","سدد","مستجد"]
[44,"عبدالله سليم فوزى ابراهيم",30911012608273,"ذكر","مسلم","الثالث أ",null,"مستجد"]
[45,"عبدالله عامر عبدالحميد حفنى",30912122602994,"ذكر","مسلم","الثالث أ","سدد","مستجد"]
[46,"عبدالله محمود على محمود",31001172600853,"ذكر","مسلم","الثالث أ","سدد","مستجد"]
[47,"عبدالله ناجح حشمت احمد",31002142600898,"ذكر","مسلم","الثالث أ",null,"مستجد"]
[48,"عرفات خيرى عبدالعليم عبدالنعيم",30912062603171,"ذكر","مسلم","الثالث أ",null,"مستجد"]
[49,"عسران جلال السيد جادالكريم",30902152603299,"ذكر","مسلم","الثالث أ","سدد","مستجد"]
[50,"علاء حسن مصطفى محمود",31001292601438,"ذكر","مسلم","الثالث أ",null,"مستجد"]
[51,"علاء مبارك عبدالغفار عثمان",31008142603275,"ذكر","مسلم","الثالث أ","سدد","مستجد"]
[52,"على صبري رضا عابدين",30909052604195,"ذكر","مسلم","الثالث أ",null,"مستجد"]
[53,"على محمد على حافظ",31002142600936,"ذكر","مسلم","الثالث أ","سدد","مستجد"]
[54,"عماد حمدى طاهر ابوالحسن",31002102600615,"ذكر","مسلم","الثالث أ",null,"مستجد"]
[55,"عمر ابراهيم على محمد",30902012613979,"ذكر","مسلم","الثالث أ",null,"مستجد"]
[56,"عمر خالد ابراهيم توفيق",31006062602534,"ذكر","مسلم","الثالث أ","سدد","مستجد"]
[57,"عمرو العبد عمر حسن",30911222600372,"ذكر","مسلم","الثالث أ","سدد","مستجد"]
[58,"عمرو ايمن راجح السيد",31001012602574,"ذكر","مسلم","الثالث أ","سدد","مستجد"]
[59,"عمرو قاعود حمدى أحمد",31003252602914,"ذكر","مسلم","الثالث أ","سدد","مستجد"]
[60,"عوض قنعاوى مدنى محمد",30905012601015,"ذكر","مسلم","الثالث أ",null,"مستجد"]
[61,"غانم صلاح مختار محمد",31006202602939,"ذكر","مسلم","الثالث أ","سدد","مستجد"]
[62,"فارس ابوالعلا محمد عبدالاه",31001102601895,"ذكر","مسلم","الثالث أ","سدد","مستجد"]
[63,"فاروق عبدالمنعم فاروق عبدالحميد",31008202605191,"ذكر","مسلم","الثالث أ",null,"مستجد"]
[64,"كرم عبده جادالكريم رضوان",31008142603291,"ذكر","مسلم","الثالث أ","سدد","مستجد"]
[65,"كريم ربيع محمد الكحلاوي ابراهيم",31008012623878,"ذكر","مسلم","الثالث أ","سدد","مستجد"]
[66,"كريم صالح عبدالكريم أبوالحمد",31006222603575,"ذكر","مسلم","الثالث أ","سدد","مستجد"]
[67,"كريم عبدالحميد عبدالسميع عابدين",31002082600672,"ذكر","مسلم","الثالث أ",null,"مستجد"]
[68,"كيرلس ايمن سعيد جرجس",31001192600051,"ذكر","مسيحى","الثالث أ","سدد","مستجد"]
[69,"محمد أبوبكر محمد محمود",31002012602058,"ذكر","مسلم","الثالث أ",null,"مستجد"]
[70,"محمد احمد محمد محمود",31007012612438,"ذكر","مسلم","الثالث أ","سدد","مستجد"]
[71,"محمد السيد جادالكريم احمد",31001012612774,"ذكر","مسلم","الثالث أ",null,"مستجد"]
[72,"محمد الطيب محمود احمد",31007242603136,"ذكر","مسلم","الثالث أ",null,"مستجد"]
[73,"محمد حازم رمضان محمود",31004182602411,"ذكر","مسلم","الثالث أ",null,"مستجد"]
[74,"محمد رشاد وعد محمد",30912052604315,"ذكر","مسلم","الثالث أ",null,"مستجد"]
[75,"محمد رمضان رفاعى عبد القادر",31007192602273,"ذكر","مسلم","الثالث أ","سدد","مستجد"]
[76,"محمد عاشور محمد فايز",31006222603656,"ذكر","مسلم","الثالث أ","سدد","مستجد"]
[77,"محمد عبد الراضى زكى عثمان",31009012623394,"ذكر","مسلم","الثالث أ","سدد","مستجد"]
[78,"محمد عبدالرحيم السيد محمود",30911152600957,"ذكر","مسلم","الثالث أ",null,"مستجد"]
[79,"محمد عرفات ابوالمجد على",30911222600453,"ذكر","مسلم","الثالث أ","سدد","مستجد"]
[80,"محمد على محمود على",31003212601699,"ذكر","مسلم","الثالث أ","سدد","مستجد"]
[81,"محمود ابراهيم العراقى عبداللاه",31008242603515,"ذكر","مسلم","الثالث أ","سدد","مستجد"]
[82,"محمود احمد حمدى عبدالعال",31005262601838,"ذكر","مسلم","الثالث أ","سدد","مستجد"]
[83,"محمود احمد عبدالصبور حسين",31001102601879,"ذكر","مسلم","الثالث أ",null,"مستجد"]
[84,"محمود عابدين فاروق عابدين",31004182602497,"ذكر","مسلم","الثالث أ",null,"مستجد"]
[85,"محمود عبد العاطي زكي ابو المجد",31001172600799,"ذكر","مسلم","الثالث أ","سدد","مستجد"]
[86,"محمود عبده عبدالراضى على",31005102606175,"ذكر","مسلم","الثالث أ",null,"مستجد"]
[87,"محمود مشوادى احمد ابراهيم",31006102604292,"ذكر","مسلم","الثالث أ","سدد","مستجد"]
[88,"محمود ناجح عبدالغفار عبدالمولى",31002152600896,"ذكر","مسلم","الثالث أ",null,"مستجد"]
[89,"مصطفى محمود حسونه عبدالحميد",31008202605175,"ذكر","مسلم","الثالث أ",null,"مستجد"]
[90,"معاز حميد صدقى عبداللطيف",31004012612196,"ذكر","مسلم","الثالث أ","سدد","مستجد"]
[91,"معتز عادل عبد النظير نور الدين",31008142603437,"ذكر","مسلم","الثالث أ",null,"مستجد"]
[92,"ناصر عوض محمود زيدان",30909092609335,"ذكر","مسلم","الثالث أ",null,"مستجد"]
[93,"وائل قناوى خليفه فاضل",31009012623378,"ذكر","مسلم","الثالث أ",null,"مستجد"]
[94,"وليد خالد حمدي قايد",31004182602519,"ذكر","مسلم","الثالث أ",null,"مستجد"]
[95,"ياسين علاء على السيد",30908092603292,"ذكر","مسلم","الثالث أ","سدد","مستجد"]
[96,"يوسف حمدى احمد بطيخ",31002082600699,"ذكر","مسلم","الثالث أ","سدد","مستجد"]
[97,"يوسف خليفه كامل احمد",31002082600818,"ذكر","مسلم","الثالث أ",null,"مستجد"]
[98,"يوسف عطا فوزي ابوالعلا",31004082602015,"ذكر","مسلم","الثالث أ",null,"مستجد"]
[99,"اسراء احمد شاكر ابراهيم",30901068800406,"انثى","مسلم","الثالث أ",null,"مستجد"]
[100,"اسراء عابدين عبدالنظير نورالدين",31008102603701,"انثى","مسلم","الثالث أ","سدد","مستجد"]
[101,"اسراء عادل الصافى سباق",31001172600748,"انثى","مسلم","الثالث أ","سدد","مستجد"]
[102,"اسراء عبدالشافى حمدان عبداللاه",31008012612302,"انثى","مسلم","الثالث أ",null,"مستجد"]
[103,"اسماء احمد شاكر ابراهيم",31002142600626,"انثى","مسلم","الثالث أ",null,"مستجد"]
[104,"اسماء الوهجانى احمد عبدالحميد",31004242601606,"انثى","مسلم","الثالث أ",null,"مستجد"]
[105,"اسماء صبري محمد محمود",31007012611083,"انثى","مسلم","الثالث أ",null,"مستجد"]
[106,"اسماء على احمد زيدان",31005202602703,"انثى","مسلم","الثالث أ","سدد","مستجد"]
[107,"الزهراء محمد حمدى عجور",31009142605649,"انثى","مسلم","الثالث أ",null,"مستجد"]
[108,"امل وافى عبدالراؤف رضا",31008102603728,"انثى","مسلم","الثالث أ","سدد","مستجد"]
[109,"اميره شعبان مشوادي مدني",31001102601321,"انثى","مسلم","الثالث أ",null,"مستجد"]
[110,"انجى عبدالصبور السيد موسى",30911172602883,"انثى","مسلم","الثالث أ","سدد","مستجد"]
[111,"انجى وليد محمد عبدالرحيم",31005202602762,"انثى","مسلم","الثالث أ",null,"مستجد"]
[112,"ايمان طارق هلال زيدان",31004102607426,"انثى","مسلم","الثالث أ",null,"مستجد"]
[113,"بسمه صديق على السيد",31007242602423,"انثى","مسلم","الثالث أ","سدد","مستجد"]
[114,"جنات حشمت احمد برعي",31006012616046,"انثى","مسلم","الثالث أ","سدد","مستجد"]
[115,"جنات ياسر زهران عبدالنبي",31006222603141,"انثى","مسلم","الثالث أ",null,"مستجد"]
[116,"حبيبه عامر صلاح محمد",30910012619546,"انثى","مسلم","الثالث أ",null,"مستجد"]
[117,"حبيبه مصطفى احمد بطيخ",31007012611229,"انثى","مسلم","الثالث أ","سدد","مستجد"]
[118,"حنان عزالعرب كليب صادق",31004012612404,"انثى","مسلم","الثالث أ","سدد","مستجد"]
[119,"حنين عبدالخالق عبدالستار احمد",31001012602221,"انثى","مسلم","الثالث أ",null,"مستجد"]
[120,"حنين محمد عيد رضوان",30910012630604,"انثى","مسلم","الثالث أ","سدد","مستجد"]
[121,"خديجه محمود مفتاح محمد",31009112600626,"انثى","مسلم","الثالث أ",null,"مستجد"]
[122,"خلود ايمن على عبدالعظيم",30911082600903,"انثى","مسلم","الثالث أ","سدد","مستجد"]
[123,"دعاء احمد عجور عبدالنبى",30910122601146,"انثى","مسلم","الثالث أ",null,"مستجد"]
[124,"دعاء احمد محمود عبد اللاه",30910102602928,"انثى","مسلم","الثالث أ","سدد","مستجد"]
[125,"دنيا شحات عبدالعال جاد",30902082600629,"انثى","مسلم","الثالث أ",null,"مستجد"]
[126,"رانيا شحاته صابر عبداللطيف",31002202605363,"انثى","مسلم","الثالث أ",null,"مستجد"]
[127,"رحاب يسين عسران السيد",31009052605763,"انثى","مسلم","الثالث أ",null,"مستجد"]
[128,"رضوه ممدوح مختار محمد",31004242601568,"انثى","مسلم","الثالث أ",null,"مستجد"]
[129,"روان حماده خلف عبدالهادى",31008102603647,"انثى","مسلم","الثالث أ","سدد","مستجد"]
[130,"روان حمدى يونس محمد",30910252604503,"انثى","مسلم","الثالث أ",null,"مستجد"]
[131,"روان محمود مدكور محمود",31006012616062,"انثى","مسلم","الثالث أ",null,"مستجد"]
[132,"ريناد عماد عبدالستار فاضل",31006012616003,"انثى","مسلم","الثالث أ","أيتام","مستجد"]
[133,"ريهام سالم عبدالعليم محمد",31003032602786,"انثى","مسلم","الثالث أ","سدد","مستجد"]
[134,"زينب عبدالسلام نورالدين عبداللطيف",31007102604329,"انثى","مسلم","الثالث أ",null,"مستجد"]
[135,"ساره احمد عبدالحميد عبدالباسط",30910252604465,"انثى","مسلم","الثالث أ","لم يسدد","مستجد"]
[136,"ساره كمال احمد عبدالمولى",31005072601629,"انثى","مسلم","الثالث أ","سدد","مستجد"]
[137,"سحر احمد رفاعى احمد",31007012611245,"انثى","مسلم","الثالث أ","سدد","مستجد"]
[138,"سمر عبدالرحمن عبداللطيف على",30901182602843,"انثى","مسلم","الثالث أ","سدد","مستجد"]
[139,"سوسنا شنوده صديق شنوده",31004012612463,"انثى","مسيحى","الثالث أ",null,"مستجد"]
[140,"شاهندا اسماعيل عبده احمد",30912122602528,"انثى","مسلم","الثالث أ",null,"مستجد"]
[141,"شرين الجرو عبدالحميد جميل",31005202602681,"انثى","مسلم","الثالث أ","سدد","مستجد"]
[142,"شهد جمال عبدالحميد أحمد",31002142600669,"انثى","مسلم","الثالث أ","سدد","مستجد"]
[143,"شهد عابد العبد جادالكريم",31010012619085,"انثى","مسلم","الثالث أ",null,"مستجد"]
[144,"شهد فراج صلاح عبد اللاه",31001012610585,"انثى","مسلم","الثالث أ",null,"مستجد"]
[145,"شهد محمد طاهر محمد",31005082603107,"انثى","مسلم","الثالث أ",null,"مستجد"]
[146,"شهد وليد عيد محمد",30910012619589,"انثى","مسلم","الثالث أ","سدد","مستجد"]
[147,"شيرين ابوبكر مختار محمد",30904012602163,"انثى","مسلم","الثالث أ","سدد","مستجد"]
[148,"شيرين كليب ابو العلا حسن",30905172600449,"انثى","مسلم","الثالث أ",null,"مستجد"]
[149,"شيماء عباس احمد زيدان",30911082600946,"انثى","مسلم","الثالث أ","سدد","مستجد"]
[150,"شيماء علي كمال عبدالمجيد",30910012605901,"انثى","مسلم","الثالث أ",null,"مستجد"]
[151,"شيماء فراج عبدالكريم علي",31005082603123,"انثى","مسلم","الثالث أ",null,"مستجد"]
[152,"شيماء محمد فهيم برعي",30907052602025,"انثى","مسلم","الثالث أ",null,"مستجد"]
[153,"عبير رفعت احمد حسن",30906072600464,"انثى","مسلم","الثالث أ",null,"مستجد"]
[154,"عبير عيد رمضان علي",31005012603061,"انثى","مسلم","الثالث أ","سدد","مستجد"]
[155,"علياء حماده موسى كامل",31009122600829,"انثى","مسلم","الثالث أ",null,"مستجد"]
[156,"فاطمه شحات احمد عبد الحق",31009252606527,"انثى","مسلم","الثالث أ","سدد","مستجد"]
[157,"فاطمه صبرى طلعات رضوان",30910192600929,"انثى","مسلم","الثالث أ",null,"مستجد"]
[158,"فرحه الجيلانى عاصم توفيق",31001242600767,"انثى","مسلم","الثالث أ","سدد","مستجد"]
[159,"فرحه محمد طاهر بهلول",31006222603087,"انثى","مسلم","الثالث أ","سدد","مستجد"]
[160,"ليالي حسين أمين حسن",31009012609901,"انثى","مسلم","الثالث أ",null,"مستجد"]
[161,"ليلى أحمد رجائى عبدالمنصف",30910282602327,"انثى","مسلم","الثالث أ",null,"مستجد"]
[162,"ليلى عبدالحميد العربى عبدلى",31003142600703,"انثى","مسلم","الثالث أ",null,"مستجد"]
[163,"مروه احمد اسماعيل احمد",31007102604345,"انثى","مسلم","الثالث أ","سدد","مستجد"]
[164,"مروه رمضان حمدي عجور",31003012603824,"انثى","مسلم","الثالث أ","سدد","مستجد"]
[165,"مريم عبدالحميد ابراهيم كامل",31009012622401,"انثى","مسلم","الثالث أ","سدد","مستجد"]
[166,"مريم عبدالعظيم جاد عبدالحميد",31002212604101,"انثى","مسلم","الثالث أ",null,"مستجد"]
[167,"مريم محمد زغلول احمد",31010012619166,"انثى","مسلم","الثالث أ",null,"مستجد"]
[168,"ملك خلف على صادق",30909272603424,"انثى","مسلم","الثالث أ",null,"مستجد"]
[169,"ملك شحاته حسنى عبدالحميد",31008142602848,"انثى","مسلم","الثالث أ",null,"مستجد"]
[170,"ملك على ابراهيم احمد",31007012611148,"انثى","مسلم","الثالث أ","سدد","مستجد"]
[171,"ملك محمد النبوى ابراهيم",31009202604841,"انثى","مسلم","الثالث أ",null,"مستجد"]
[172,"ملك محمد عبدالراووف رضا",30910122602266,"انثى","مسلم","الثالث أ","سدد","مستجد"]
[173,"منار على عبدالستار احمد",31008012612329,"انثى","مسلم","الثالث أ",null,"مستجد"]
[174,"منال فراج أبوالحمد أحمد",31003242600344,"انثى","مسلم","الثالث أ","أيتام","مستجد"]
[175,"منه عبدالخالق محمد جميل",30908232603344,"انثى","مسلم","الثالث أ","سدد","مستجد"]
[176,"ميرنا يسرى بخيت جرجس",30910252604449,"انثى","مسيحى","الثالث أ",null,"مستجد"]
[177,"نجلاء احمد عسران محمد",30911082600849,"انثى","مسلم","الثالث أ","سدد","مستجد"]
[178,"ندى رياض حشمت محمد",31005202602789,"انثى","مسلم","الثالث أ","سدد","مستجد"]
[179,"نسمه احمد محمد احمد",31001012610666,"انثى","مسلم","الثالث أ",null,"مستجد"]
[180,"نسمه السيد عيد ابوالعلا",31004182602209,"انثى","مسلم","الثالث أ",null,"مستجد"]
[181,"نور سامى العربى كامل",30911082600962,"انثى","مسلم","الثالث أ","سدد","مستجد"]
[182,"نور شعبان محمد على",30905102601685,"انثى","مسلم","الثالث أ",null,"مستجد"]
[183,"نوره جاد عبدالحميد جادالكريم",31002202605487,"انثى","مسلم","الثالث أ",null,"مستجد"]
[184,"نورهان عبدالعليم حمدى عجور",30910252604481,"انثى","مسلم","الثالث أ","سدد","مستجد"]
[185,"هاجر نورالدين أحمد عبدالعظيم",30911012612564,"انثى","مسلم","الثالث أ","سدد","مستجد"]
[186,"هايدى إمام فهلى عبدالسلام",31003032602808,"انثى","مسلم","الثالث أ",null,"مستجد"]
[187,"هبه محروس عجور عبدالنبى",31006202602203,"انثى","مسلم","الثالث أ",null,"مستجد"]
[188,"هدى ضاحى العبد محمد",30908092600528,"انثى","مسلم","الثالث أ",null,"مستجد"]
[189,"هدى هاني رفاعي حشمت",30912122602447,"انثى","مسلم","الثالث أ",null,"مستجد"]
[190,"هنادى مازن كامل طلب",31003102607861,"انثى","مسلم","الثالث أ","سدد","مستجد"]
[191,"هند حازم حسني فهلي",30904202603263,"انثى","مسلم","الثالث أ",null,"مستجد"]
[192,"ولاء احمد رفاعي احمد",30801132603429,"انثى","مسلم","الثالث أ","سدد","مستجد"]
[193,"ولاء احمد محمود ابراهيم",31008032602869,"انثى","مسلم","الثالث أ","سدد","مستجد"]
[194,"ياسمين راضي عبدالشافي علي",31005112602429,"انثى","مسلم","الثالث أ",null,"مستجد"]
[195,"ياسمين صابر عبدالنظير صادق",31009122600802,"انثى","مسلم","الثالث أ","أيتام","مستجد"]
[196,"ياسمين عاطف احمد عبداللاه",31008202605043,"انثى","مسلم","الثالث أ","سدد","مستجد"]
[197,"ياسمين عبده عبدالراضي امين",31002202605428,"انثى","مسلم","الثالث أ",null,"مستجد"]
[198,"ياسمين محمود احمد علي",31006102603709,"انثى","مسلم","الثالث أ","سدد","مستجد"]
[1,"ابراهيم على محمد عبدالا",30703252604192,"ذكر","مسلم","الرابع",null,"مستجد"]
[2,"احمد ابراهيم منصور رضا",30902082600335,"ذكر","مسلم","الرابع",null,"مستجد"]
[3,"احمد حمدى احمد عبداللاه",30908152606334,"ذكر","مسلم","الرابع",null,"مستجد"]
[4,"احمد رفاعى أبوالمجد صادق",30901252603915,"ذكر","مسلم","الرابع",null,"مستجد"]
[5,"احمد شبيب عبدالراضى امين",30902082600351,"ذكر","مسلم","الرابع","أيتام","مستجد"]
[6,"احمد عيد شحاته شاكر",30812142602511,"ذكر","مسلم","الرابع",null,"مستجد"]
[7,"احمد محمد كليب حمدى",30909202604113,"ذكر","مسلم","الرابع",null,"مستجد"]
[8,"احمد ناصر كليب صادق",30906212600834,"ذكر","مسلم","الرابع",null,"مستجد"]
[9,"ادهم عبد اللاه صابر رضا",30810262601958,"ذكر","مسلم","الرابع",null,"مستجد"]
[10,"اسامه أنور أسعد محمود",30804262602253,"ذكر","مسلم","الرابع",null,"مستجد"]
[11,"اسلام فوزى ابوالمجد صادق",30810262601893,"ذكر","مسلم","الرابع",null,"مستجد"]
[12,"اسلام يونس الصغير أحمد",30809072600817,"ذكر","مسلم","الرابع",null,"مستجد"]
[13,"اكرم عمر عبدالعظيم محمود",30905172600392,"ذكر","مسلم","الرابع",null,"مستجد"]
[14,"الديب ممدوح خلف محمد",30902152603272,"ذكر","مسلم","الرابع",null,"مستجد"]
[15,"السيد محروس عجور عبدالنبى",30906012603731,"ذكر","مسلم","الرابع",null,"مستجد"]
[16,"الهامى مدنى عبدالحميد ابرهيم",30903222602798,"ذكر","مسلم","الرابع",null,"مستجد"]
[17,"ايمن منصور محمد محمود",30908092600536,"ذكر","مسلم","الرابع",null,"مستجد"]
[18,"بدر ايمن قنديل احمد",30904262601235,"ذكر","مسلم","الرابع",null,"مستجد"]
[19,"بدرالدين عبدالراضى نظير احمد",30902152603213,"ذكر","مسلم","الرابع",null,"مستجد"]
[20,"بسام حمدى خلف عبدالهادى",30908152606296,"ذكر","مسلم","الرابع",null,"مستجد"]
[21,"جسار حمدى خلف عبدالهادى",30704152604914,"ذكر","مسلم","الرابع",null,"مستجد"]
[22,"حسام حجاب مصطفى عثمان",30906142600335,"ذكر","مسلم","الرابع",null,"مستجد"]
[23,"حسام حسن مصطفى محمود",30804262602296,"ذكر","مسلم","الرابع",null,"باق"]
[24,"حشمت عبداللاه حشمت عبدلى",30904262601294,"ذكر","مسلم","الرابع",null,"مستجد"]
[25,"حماده أحمد محمود محمد",30908012601294,"ذكر","مسلم","الرابع",null,"مستجد"]
[26,"حماده عبدالشافى حمدان عبداللاه",30902222603119,"ذكر","مسلم","الرابع",null,"مستجد"]
[27,"حمدى بكرى محمد فندى",30901182602878,"ذكر","مسلم","الرابع",null,"مستجد"]
[28,"حمزه ممدوح حشمت مدنى",30908162602671,"ذكر","مسلم","الرابع",null,"مستجد"]
[29,"خالد محمد بكرى محمد",30907122600513,"ذكر","مسلم","الرابع",null,"مستجد"]
[30,"خالد هانى رفاعى حشمت",30901182602851,"ذكر","مسلم","الرابع",null,"مستجد"]
[31,"رفعت عبداللاه ابراهيم جادالرب",30903082601435,"ذكر","مسلم","الرابع",null,"مستجد"]
[32,"رفعت فراج محمد أحمد",30811012608856,"ذكر","مسلم","الرابع",null,"مستجد"]
[33,"سيف الله حمام عابدين محمود",30905172600457,"ذكر","مسلم","الرابع",null,"مستجد"]
[34,"سيف على احمد بطيخ",30812072600435,"ذكر","مسلم","الرابع",null,"مستجد"]
[35,"سيف علي كمال حسونه",30902152603256,"ذكر","مسلم","الرابع",null,"مستجد"]
[36,"شريف أشرف عبدالحميد عبدالعال",30910012621753,"ذكر","مسلم","الرابع",null,"مستجد"]
[37,"شهاب احمد محمد على",30803012607571,"ذكر","مسلم","الرابع",null,"باق"]
[38,"صابر محمد زغلول أحمد",30811172600711,"ذكر","مسلم","الرابع",null,"مستجد"]
[39,"صبرى علاء حمدى قايد",30804262602172,"ذكر","مسلم","الرابع",null,"مستجد"]
[40,"طلال حسام عبدالستار عبدالمعبود",30906072600812,"ذكر","مسلم","الرابع",null,"مستجد"]
[41,"عاطف محمود على اسماعيل",30901122600752,"ذكر","مسلم","الرابع",null,"مستجد"]
[42,"عبدالباقى عادل عبدالباقى أحمد",30908092600552,"ذكر","مسلم","الرابع",null,"مستجد"]
[43,"عبدالحميد أبوالحلقان العربى عبدلى",30908012601332,"ذكر","مسلم","الرابع",null,"مستجد"]
[44,"عبدالحميد عبدالمنصف عبدالحميد رضا",30808242602317,"ذكر","مسلم","الرابع",null,"مستجد"]
[45,"عبدالرحمن جابر اسماعيل محمد",30908012616313,"ذكر","مسلم","الرابع",null,"مستجد"]
[46,"عبداللاه على عبداللاه صابر",30810012614558,"ذكر","مسلم","الرابع",null,"مستجد"]
[47,"عبدالله حسين محمود عوض",30908092600471,"ذكر","مسلم","الرابع",null,"مستجد"]
[48,"علاء محمود عسران محمد",30803012607679,"ذكر","مسلم","الرابع",null,"باق"]
[49,"على ابراهيم اسماعيل ابراهيم",30704012614871,"ذكر","مسلم","الرابع",null,"مستجد"]
[50,"على الديب على صادق",30810202603714,"ذكر","مسلم","الرابع",null,"مستجد"]
[51,"على سليمان أحمد على",30901112600819,"ذكر","مسلم","الرابع",null,"مستجد"]
[52,"على عاطف أحمد عبداللاه",30903012610097,"ذكر","مسلم","الرابع",null,"مستجد"]
[53,"على عبداللاه حسن كمال الدين",30809082600998,"ذكر","مسلم","الرابع",null,"مستجد"]
[54,"على علاء حماد عبدالحميد",30907012613857,"ذكر","مسلم","الرابع",null,"مستجد"]
[55,"عماد عبدالحميد محمد أحمد",30902022604617,"ذكر","مسلم","الرابع",null,"مستجد"]
[56,"عمر حمدى كمال الدين حسن",30903082601478,"ذكر","مسلم","الرابع",null,"مستجد"]
[57,"عمر عبدالحميد عمر حسن",30905242601057,"ذكر","مسلم","الرابع",null,"مستجد"]
[58,"عمر عبدالناصر عبده على",30904202602755,"ذكر","مسلم","الرابع",null,"مستجد"]
[59,"فارس عبدالله محمود عبدالرحيم",30902012613952,"ذكر","مسلم","الرابع",null,"مستجد"]
[60,"فهد السيد محمد السيد",30904262601251,"ذكر","مسلم","الرابع",null,"مستجد"]
[61,"كريم ابوالعلا عبدالقادر عبداللاه",30810192601734,"ذكر","مسلم","الرابع",null,"مستجد"]
[62,"كريم خلف صديق عبداللاه",30904142600812,"ذكر","مسلم","الرابع",null,"مستجد"]
[63,"كريم عبدالعليم منصور رضا",30907182603775,"ذكر","مسلم","الرابع","أيتام","مستجد"]
[64,"محمد ابراهيم عبداللطيف رضا",30904262601278,"ذكر","مسلم","الرابع",null,"مستجد"]
[65,"محمد أحمد محمود أحمد",30712280102134,"ذكر","مسلم","الرابع",null,"مستجد"]
[66,"محمد السيد حسن محمد",30811172600754,"ذكر","مسلم","الرابع",null,"مستجد"]
[67,"محمد السيد عباس السيد",30812062600372,"ذكر","مسلم","الرابع",null,"مستجد"]
[68,"محمد الصدام فوزى أحمد",30808082611799,"ذكر","مسلم","الرابع",null,"مستجد"]
[69,"محمد بخيت سعدالدين سليم",30809011808318,"ذكر","مسلم","الرابع",null,"مستجد"]
[70,"محمد عبدالحميد محمد بطيخ",30903082601451,"ذكر","مسلم","الرابع",null,"مستجد"]
[71,"محمد عصام حناوى جيلانى",30907012613997,"ذكر","مسلم","الرابع",null,"مستجد"]
[72,"محمد محمود أحمد جادالكريم",30812142602457,"ذكر","مسلم","الرابع",null,"مستجد"]
[73,"محمود صديق على السيد",30903222602755,"ذكر","مسلم","الرابع",null,"مستجد"]
[74,"محمود عبدالفتاح حماد عبدالمبدى",30811172600738,"ذكر","مسلم","الرابع",null,"مستجد"]
[75,"محمود عدلى ابراهيم محمود",30908162602698,"ذكر","مسلم","الرابع",null,"مستجد"]
[76,"محمود محمد أحمد محمود",30910012621737,"ذكر","مسلم","الرابع",null,"مستجد"]
[77,"محمود ياسر عبدالحميد جادالكريم",30810202603773,"ذكر","مسلم","الرابع",null,"مستجد"]
[78,"مختار قاسم مختار محمد",30905132602651,"ذكر","مسلم","الرابع",null,"مستجد"]
[79,"مروان محمود صالح محمد",30901182602916,"ذكر","مسلم","الرابع",null,"مستجد"]
[80,"مروان محمود فايز محمد",30901182602894,"ذكر","مسلم","الرابع",null,"مستجد"]
[81,"نورالدين صبرى حمدى قايد",30812212601356,"ذكر","مسلم","الرابع",null,"مستجد"]
[82,"وليد محمود فهيم برعى",30812072600419,"ذكر","مسلم","الرابع",null,"مستجد"]
[83,"يسى صبرى صدقى شنوده",30908012616356,"ذكر","مسيحى","الرابع",null,"مستجد"]
[84,"يوسف السيد أحمد صديق",30908012601316,"ذكر","مسلم","الرابع",null,"مستجد"]
[85,"يوسف محمد محمود احمد",30907122600572,"ذكر","مسلم","الرابع",null,"مستجد"]
[86,"احلام راضى محمود ابراهيم",30902012612727,"انثى","مسلم","الرابع",null,"مستجد"]
[87,"اسماء أحمد عبداللاه صابر",30908192602064,"انثى","مسلم","الرابع",null,"مستجد"]
[88,"اسماء خيرى عبدالعليم عبدالمنعم",30709012609004,"انثى","مسلم","الرابع",null,"مستجد"]
[89,"اسماء سلامه فتحى عبدالموجود",30902152602845,"انثى","مسلم","الرابع",null,"مستجد"]
[90,"اسماء على محمد عبدالا",30906212600729,"انثى","مسلم","الرابع",null,"مستجد"]
[91,"اسماء محمد ابراهيم توفيق",30908012613861,"انثى","مسلم","الرابع",null,"مستجد"]
[92,"اشرقت موسى علي بديوي",30907012612524,"انثى","مسلم","الرابع",null,"مستجد"]
[93,"انجي محمد رمضان محمد",30908042603208,"انثى","مسلم","الرابع",null,"مستجد"]
[94,"ايات عصام محمد محمود",30905032600848,"انثى","مسلم","الرابع",null,"مستجد"]
[95,"ايمان بسيونى على محمود",30908092600587,"انثى","مسلم","الرابع","أيتام","مستجد"]
[96,"ايه بلال محمد شاكر",30903032605669,"انثى","مسلم","الرابع",null,"مستجد"]
[97,"ايه محمد حمدى عبدالعال",30810262602024,"انثى","مسلم","الرابع",null,"مستجد"]
[98,"بسمه جمال أحمد ابراهيم",30908092600463,"انثى","مسلم","الرابع",null,"مستجد"]
[99,"بشاير انوار احمد بطيخ",30907122600467,"انثى","مسلم","الرابع",null,"مستجد"]
[100,"بشاير بهلول صلاح عبداللاه",30902222602422,"انثى","مسلم","الرابع",null,"مستجد"]
[101,"حبيبه عبده محمود طلب",30812212601208,"انثى","مسلم","الرابع","أيتام","مستجد"]
[102,"خديجه أيمن جمال محمد",30811012607841,"انثى","مسلم","الرابع",null,"مستجد"]
[103,"خلود صبرى عبدالرحيم عبداللطيف",30905032600864,"انثى","مسلم","الرابع",null,"مستجد"]
[104,"خلود عبد الحفيظ شفاعى محمد",30801202604967,"انثى","مسلم","الرابع",null,"مستجد"]
[105,"دعاء عبدالحميد محمود عبدالمطلب",30909272603408,"انثى","مسلم","الرابع",null,"مستجد"]
[106,"دنيا السيد خليفه رسلان",30904202603247,"انثى","مسلم","الرابع",null,"مستجد"]
[107,"دنيا جمال عبدالناصر فاروق",30909262606808,"انثى","مسلم","الرابع",null,"مستجد"]
[108,"دينا ابراهيم كيلانى محمد",30903152603562,"انثى","مسلم","الرابع",null,"مستجد"]
[109,"رباب هاشم مصطفى أحمد",30811232600724,"انثى","مسلم","الرابع",null,"مستجد"]
[110,"رحاب حماده حمدان عباس",30801012637621,"انثى","مسلم","الرابع",null,"مستجد"]
[111,"رشا راجح اسماعيل محمد",30810262601966,"انثى","مسلم","الرابع",null,"مستجد"]
[112,"روان بدوى محمد فرج",30907052602009,"انثى","مسلم","الرابع",null,"مستجد"]
[113,"ريهام بندر محمد جميل",30905172600481,"انثى","مسلم","الرابع",null,"مستجد"]
[114,"ريهام عصمت حمدان مصطفى",30905242600824,"انثى","مسلم","الرابع",null,"مستجد"]
[115,"زهراء محمد حسين محمد",30910012617284,"انثى","مسلم","الرابع",null,"مستجد"]
[116,"ساره رفاعى فوزى احمد",30902082600548,"انثى","مسلم","الرابع",null,"مستجد"]
[117,"سحر عبدالحميد صديق عبدالحميد",30803082601368,"انثى","مسلم","الرابع",null,"مستجد"]
[118,"سلوى عادل محمد حسن",30803122602982,"انثى","مسلم","الرابع",null,"مستجد"]
[119,"سماح صالح عبدالكريم أبوالحمد",30812212600961,"انثى","مسلم","الرابع",null,"مستجد"]
[120,"شيماء أشرف أسعد محمود",30901122600701,"انثى","مسلم","الرابع",null,"مستجد"]
[121,"شيماء زيدان كمال المدنى",30812142602244,"انثى","مسلم","الرابع","أيتام","مستجد"]
[122,"شيماء معلاوى شحاته شاكر",30812142602325,"انثى","مسلم","الرابع",null,"مستجد"]
[123,"صفاء محمود عبدالعظيم محمد",30905102601766,"انثى","مسلم","الرابع",null,"مستجد"]
[124,"عائشه عجور احمد محمد",30901182602746,"انثى","مسلم","الرابع",null,"مستجد"]
[125,"عبير حماد فهيم برعى",30809212602424,"انثى","مسلم","الرابع",null,"مستجد"]
[126,"عبير مدنى كمال محمود",30906012602409,"انثى","مسلم","الرابع",null,"مستجد"]
[127,"فاطمه هلال فاضل رضوان",30804162601489,"انثى","مسلم","الرابع",null,"مستجد"]
[128,"فرحه أشرف أسعد محمود",30901122600728,"انثى","مسلم","الرابع",null,"مستجد"]
[129,"فرحه عامر كليب صادق",30909092607782,"انثى","مسلم","الرابع",null,"مستجد"]
[130,"فرحه عبدالعليم منصور رضا",30807042601344,"انثى","مسلم","الرابع","أيتام","مستجد"]
[131,"فردوس علي حمدي عبدالعال",30809212602343,"انثى","مسلم","الرابع",null,"مستجد"]
[132,"قمر مختار حسن أحمد",30905012600868,"انثى","مسلم","الرابع",null,"مستجد"]
[133,"كنزى عبدالحميد طاهر بهلول",30904142603064,"انثى","مسلم","الرابع",null,"مستجد"]
[134,"لبنى احمد محمود احمد",30810262601982,"انثى","مسلم","الرابع",null,"مستجد"]
[135,"لقاء على عبداللاه عبداللطيف",30810012612644,"انثى","مسلم","الرابع",null,"مستجد"]
[136,"لمياء ايمن حمدان جبريل",30903152603503,"انثى","مسلم","الرابع",null,"مستجد"]
[137,"مدنيه محمد أحمد جادالكريم",30805302601022,"انثى","مسلم","الرابع",null,"مستجد"]
[138,"مروه رمضان على أبوالحسن",30906012602441,"انثى","مسلم","الرابع",null,"مستجد"]
[139,"مريم اشرف حليم كراس",30812212600988,"انثى","مسيحى","الرابع","أيتام","مستجد"]
[140,"مريم الشريف الديب فندى",30811012607868,"انثى","مسلم","الرابع",null,"مستجد"]
[141,"مريم عنتر محمد احمد",30906212600702,"انثى","مسلم","الرابع",null,"مستجد"]
[142,"مشيره حازم خلف احمد",30905172600465,"انثى","مسلم","الرابع",null,"مستجد"]
[143,"ملك حسين محمد السيد",30901252603508,"انثى","مسلم","الرابع",null,"مستجد"]
[144,"ملك سلامه عبدالحميد عبدالعال",30907052602149,"انثى","مسلم","الرابع",null,"مستجد"]
[145,"منار حربى عبدالسميع أبوالحسن",30905102601723,"انثى","مسلم","الرابع",null,"مستجد"]
[146,"منار محمود على اسماعيل",30802262601106,"انثى","مسلم","الرابع",null,"مستجد"]
[147,"منة الله عبدالناصر محمود احمد",30905172600546,"انثى","مسلم","الرابع",null,"مستجد"]
[148,"منه أحمد مشوادى ماجد",30909272603343,"انثى","مسلم","الرابع",null,"مستجد"]
[149,"منه سالمان محمد علي",30901112600703,"انثى","مسلم","الرابع",null,"مستجد"]
[150,"منى كامل سليم كامل",30905102601707,"انثى","مسلم","الرابع",null,"مستجد"]
[151,"مياده رفعت عبد الغفار عثمان",30608052604969,"انثى","مسلم","الرابع",null,"مستجد"]
[152,"نجاه عادل عبدالسميع عبداللطيف",30902082600521,"انثى","مسلم","الرابع",null,"مستجد"]
[153,"نجاه عاطف عبدالله جبريل",30902012612743,"انثى","مسيحى","الرابع",null,"مستجد"]
[154,"ندى محمد محمود احمد",30907122600483,"انثى","مسلم","الرابع",null,"مستجد"]
[155,"نسمه شحاته يونس ابراهيم",30801132602627,"انثى","مسلم","الرابع",null,"مستجد"]
[156,"نسمه محمد على محمد",30802032600208,"انثى","مسلم","الرابع",null,"مستجد"]
[157,"نور عيد عبدالنظير نورالدين",30906072600502,"انثى","مسلم","الرابع",null,"مستجد"]
[158,"نورهان حمد فتحى احمد",30901252603567,"انثى","مسلم","الرابع",null,"مستجد"]
[159,"نورهان رفاعى محمد أحمد",30801202605009,"انثى","مسلم","الرابع",null,"مستجد"]
[160,"نيفين جمال خلف احمد",30905172600503,"انثى","مسلم","الرابع",null,"مستجد"]
[161,"هايدى عمران جبريل محمد",30903222602607,"انثى","مسلم","الرابع",null,"مستجد"]
[162,"هبه فوزى محمد بهلول",30903012608548,"انثى","مسلم","الرابع",null,"مستجد"]
[163,"هدى ناجح فتحى العربى",30810262602067,"انثى","مسلم","الرابع",null,"مستجد"]
[164,"وفاء عادل ابراهيم محمود",30904192601844,"انثى","مسلم","الرابع",null,"مستجد"]
[165,"وفاء معتمد كليب صادق",30810212603305,"انثى","مسلم","الرابع",null,"مستجد"]
[166,"ولاء ابوالعلا عبداللطيف موسى",30812212601046,"انثى","مسلم","الرابع",null,"مستجد"]
[167,"ياسمين اسعد الديب فندى",30901122600744,"انثى","مسلم","الرابع",null,"مستجد"]
[168,"ياسمين عاطف محمود عبدالغفار",30808242601728,"انثى","مسلم","الرابع",null,"مستجد"]
[169,"ياسمين عرفات أحمد محمد",30909272603386,"انثى","مسلم","الرابع",null,"مستجد"]
[1,"ابراهيم محمد طاهر محمد",30810012614531,"ذكر","مسلم","الخامس",null,"مستجد"]
[2,"ابوالعلا رمضان عبدالحميد أحمد",30808082611756,"ذكر","مسلم","الخامس","أيتام","مستجد"]
[3,"احمد ابراهيم عبداللطيف رضا",30804012618413,"ذكر","مسلم","الخامس",null,"مستجد"]
[4,"احمد حماده عبدالصبور حسين",30808282602395,"ذكر","مسلم","الخامس",null,"مستجد"]
[5,"احمد صديق عبدالعليم مصطفى",30804012618456,"ذكر","مسلم","الخامس",null,"مستجد"]
[6,"احمد طه فتح الباب محمد",30807012613836,"ذكر","مسلم","الخامس",null,"مستجد"]
[7,"احمد عبدالحميد محمود محمد",30804262602156,"ذكر","مسلم","الخامس",null,"مستجد"]
[8,"احمد عطا نورالدين سليمان",30805012613779,"ذكر","مسلم","الخامس",null,"مستجد"]
[9,"احمد على كمال عبدالمجيد",30801012641971,"ذكر","مسلم","الخامس",null,"مستجد"]
[10,"احمد محمد حناوى توفيق",30809012610015,"ذكر","مسلم","الخامس",null,"مستجد"]
[11,"احمد محمد عبدالعزيز ابراهيم",30801012641793,"ذكر","مسلم","الخامس",null,"مستجد"]
[12,"احمد واليد أحمد محمد",30712252601397,"ذكر","مسلم","الخامس",null,"مستجد"]
[13,"احمد يونس على احمد",30711182603013,"ذكر","مسلم","الخامس",null,"مستجد"]
[14,"اسامه ثورى عبدالعليم على",30809212602777,"ذكر","مسلم","الخامس",null,"مستجد"]
[15,"اسلام أحمد كمال محمد",30710072600357,"ذكر","مسلم","الخامس",null,"مستجد"]
[16,"اسلام رفعت عبدالغفار عثمان",30809142603037,"ذكر","مسلم","الخامس",null,"مستجد"]
[17,"اسلام عبد الحميد عبد الراضى عبد الموجود",30711162601375,"ذكر","مسلم","الخامس",null,"مستجد"]
[18,"اشرف رفعت فاروق ابراهيم",30802102607876,"ذكر","مسلم","الخامس",null,"مستجد"]
[19,"السيد محمد علي نورالدين",30705102604731,"ذكر","مسلم","الخامس",null,"مستجد"]
[20,"العلى محمود العراقى عبد اللاه",30612162602799,"ذكر","مسلم","الخامس",null,"مستجد"]
[21,"انور حمدي احمد بطيخ",30806012613791,"ذكر","مسلم","الخامس",null,"مستجد"]
[22,"ايمن عادل السيد مدنى",30706162602173,"ذكر","مسلم","الخامس","أيتام","باق"]
[23,"جمال عبدالخالق عبدالستار أحمد",30801012641858,"ذكر","مسلم","الخامس",null,"مستجد"]
[24,"حارس عوض حسونه حسانين",30801052603312,"ذكر","مسلم","الخامس",null,"مستجد"]
[25,"حسن الجيلانى عاصم توفيق",30807252603153,"ذكر","مسلم","الخامس",null,"مستجد"]
[26,"حسين الجيلانى عاصم توفيق",30807252603196,"ذكر","مسلم","الخامس",null,"مستجد"]
[27,"خالد أحمد حمدى قايد",30708262601177,"ذكر","مسلم","الخامس",null,"مستجد"]
[28,"خالد صبرى عبدالرحيم عبداللطيف",30801012641831,"ذكر","مسلم","الخامس",null,"مستجد"]
[29,"خالد صبرى محمد محمود",30805012613817,"ذكر","مسلم","الخامس",null,"مستجد"]
[30,"خالد ناصر أحمد عبدالغفار",30809092601992,"ذكر","مسلم","الخامس",null,"مستجد"]
[31,"رزق محمد علي محمد",30601222600594,"ذكر","مسلم","الخامس",null,"باق"]
[32,"رفيع حمدى فاروق ابراهيم",30806152604598,"ذكر","مسلم","الخامس",null,"مستجد"]
[33,"زياد عبد اللاه حشمت عبدلى",30708252602531,"ذكر","مسلم","الخامس",null,"مستجد"]
[34,"عبدالحميد أبوبكر محمد محمود",30801132602538,"ذكر","مسلم","الخامس",null,"مستجد"]
[35,"عبدالرحمن عادل عبدالرؤف عبدالرحيم",30807012613771,"ذكر","مسلم","الخامس",null,"مستجد"]
[36,"عبدالرحيم أبوالحجاج محمود إبراهيم",30806152604539,"ذكر","مسلم","الخامس",null,"مستجد"]
[37,"عبدالرحيم صبره عبدالرحيم عبداللطيف",30801012641815,"ذكر","مسلم","الخامس",null,"مستجد"]
[38,"عبدالشافى عبدالهادى احمد عبدالعظيم",30807202607875,"ذكر","مسلم","الخامس",null,"مستجد"]
[39,"عبدالله اشرف محمد محمود",30806222602415,"ذكر","مسلم","الخامس",null,"مستجد"]
[40,"عبدالله السيد محمد عبدالحى",30808082611691,"ذكر","مسلم","الخامس",null,"مستجد"]
[41,"عبدالله محمد حسين محمد",30805192600513,"ذكر","مسلم","الخامس",null,"مستجد"]
[42,"عبده شبيب عبد الراضى امين",30709152611211,"ذكر","مسلم","الخامس","أيتام","مستجد"]
[43,"علي كليب على خربطلى",30802022602598,"ذكر","مسلم","الخامس",null,"مستجد"]
[44,"فارس على ابراهيم أحمد",30802102607833,"ذكر","مسلم","الخامس",null,"مستجد"]
[45,"فاروق عابدين فاروق عابدين",30711182602998,"ذكر","مسلم","الخامس",null,"مستجد"]
[46,"فضل ابراهيم عبادى عبد المولى",30711182603072,"ذكر","مسلم","الخامس",null,"مستجد"]
[47,"فهد نصرى العبد طلب",30805112601514,"ذكر","مسلم","الخامس",null,"مستجد"]
[48,"فوزى الصدام فوزى احمد",30602262600399,"ذكر","مسلم","الخامس",null,"باق"]
[49,"كريم خالد حمدى قايد",30801012641998,"ذكر","مسلم","الخامس",null,"مستجد"]
[50,"محمد ابوزيد كمال محمود",30801272601957,"ذكر","مسلم","الخامس",null,"مستجد"]
[51,"محمد احمد عبدالصبور حسين",30804162601497,"ذكر","مسلم","الخامس",null,"مستجد"]
[52,"محمد احمد عبدالعزيز ابراهيم",30710012612852,"ذكر","مسلم","الخامس",null,"مستجد"]
[53,"محمد احمد مشوادى ماجد",30710212601391,"ذكر","مسلم","الخامس",null,"مستجد"]
[54,"محمد بسام ابو العلا احمد",30806012613775,"ذكر","مسلم","الخامس",null,"مستجد"]
[55,"محمد حمدى السيد محمد",30808242602333,"ذكر","مسلم","الخامس","أيتام","مستجد"]
[56,"محمد دياب محمد جادالكريم",30807202607891,"ذكر","مسلم","الخامس",null,"مستجد"]
[57,"محمد زيدان هلال زيدان",30808172602233,"ذكر","مسلم","الخامس",null,"مستجد"]
[58,"محمد شحات احمد عبد الحق",30809142603096,"ذكر","مسلم","الخامس",null,"مستجد"]
[59,"محمد عبدالرحمن عبداللطيف سليمان",30609122603457,"ذكر","مسلم","الخامس",null,"مستجد"]
[60,"محمد عبده عبد الراضى امين",30809212602734,"ذكر","مسلم","الخامس",null,"مستجد"]
[61,"محمد على محمد طلب",30803222600618,"ذكر","مسلم","الخامس",null,"مستجد"]
[62,"محمد محمود فهيم برعى",30711042603692,"ذكر","مسلم","الخامس",null,"مستجد"]
[63,"محمود صابر الصغير محمد",30802262601254,"ذكر","مسلم","الخامس",null,"مستجد"]
[64,"محمود عبدالخالق فتحى مدنى",30805012613752,"ذكر","مسلم","الخامس",null,"مستجد"]
[65,"محمود على احمد على",30810012614515,"ذكر","مسلم","الخامس",null,"مستجد"]
[66,"محمود محمد حسونه عبد الحميد",30805012613892,"ذكر","مسلم","الخامس",null,"مستجد"]
[67,"مروان محمد فهيم ابراهيم",30807252603234,"ذكر","مسلم","الخامس",null,"مستجد"]
[68,"مصطفى ابراهيم محمد على",30806252600034,"ذكر","مسلم","الخامس",null,"مستجد"]
[69,"مصطفى أسعد احمد زيدان",30711172603139,"ذكر","مسلم","الخامس",null,"مستجد"]
[70,"مصطفى جابر مصطفي النادي",30807252603218,"ذكر","مسلم","الخامس",null,"مستجد"]
[71,"مصطفى صبره صابر زيدان",30801012642013,"ذكر","مسلم","الخامس",null,"مستجد"]
[72,"مصطفى عصام حناوى جيلانى",30805182600434,"ذكر","مسلم","الخامس",null,"مستجد"]
[73,"مصطفى قنعاوى مدنى محمد",30711182602971,"ذكر","مسلم","الخامس",null,"مستجد"]
[74,"مصطفى محمود محمد أحمد",30801012641734,"ذكر","مسلم","الخامس",null,"مستجد"]
[75,"مكرم اشرف عبدالحميد رضا",30803232600217,"ذكر","مسلم","الخامس",null,"مستجد"]
[76,"هشام عباس شبيب على",30803012607598,"ذكر","مسلم","الخامس",null,"مستجد"]
[77,"وائل عامر عبدالحميد حفنى",30711182603099,"ذكر","مسلم","الخامس",null,"مستجد"]
[78,"وليد قصيدى حمدان برعى",30809012610031,"ذكر","مسلم","الخامس",null,"مستجد"]
[79,"يحيى حمدي صدقي عبداللطيف",30808282602433,"ذكر","مسلم","الخامس",null,"مستجد"]
[80,"يوسف منصور محمد محمود",30801132602597,"ذكر","مسلم","الخامس",null,"مستجد"]
[81,"ابتسام جمال أبوالعلا بدوى",30807012613267,"انثى","مسلم","الخامس",null,"مستجد"]
[82,"احلام حماده موسى كامل",30711182602963,"انثى","مسلم","الخامس",null,"مستجد"]
[83,"اروى عبد الناصر محمد على",30709232601241,"انثى","مسلم","الخامس",null,"مستجد"]
[84,"اروى عبده عبد الراضى على",30707172602488,"انثى","مسلم","الخامس",null,"مستجد"]
[85,"اروى عرفات أحمد برعى",30808082611322,"انثى","مسلم","الخامس",null,"مستجد"]
[86,"اسراء أحمد عبدالرحيم مرسى",30711042603447,"انثى","مسلم","الخامس",null,"مستجد"]
[87,"اسراء محمود على محمود",30803162600621,"انثى","مسلم","الخامس",null,"مستجد"]
[88,"اسراء نصر الدين محمود عبد اللاه",30711152601725,"انثى","مسلم","الخامس",null,"مستجد"]
[89,"انجى الامير احمد محمد",30610042601222,"انثى","مسلم","الخامس",null,"مستجد"]
[90,"ايات الجرو عبد الحميد جميل",30711102604987,"انثى","مسلم","الخامس",null,"مستجد"]
[91,"ايمان ناجح عبد الغفار عبد المولى",30807132603583,"انثى","مسلم","الخامس",null,"مستجد"]
[92,"ايه ابو السعود فتحى عبد الموجود",30804012617522,"انثى","مسلم","الخامس",null,"مستجد"]
[93,"ايه رمضان حشمت محمد",30710072600748,"انثى","مسلم","الخامس",null,"مستجد"]
[94,"ايه عاطف محمد عبداللاه",30711102605045,"انثى","مسلم","الخامس",null,"مستجد"]
[95,"بسمه النحاس محمد محمد",30710252601084,"انثى","مسلم","الخامس",null,"مستجد"]
[96,"بشاير محمد على ابراهيم",30711182603048,"انثى","مسلم","الخامس",null,"مستجد"]
[97,"بشاير محمود العربى عبدلى",30711042603463,"انثى","مسلم","الخامس",null,"مستجد"]
[98,"حبيبه حفنى محمد فندى",30712092602383,"انثى","مسلم","الخامس",null,"مستجد"]
[99,"حسناء احمد عسران محمد",30710162601603,"انثى","مسلم","الخامس",null,"مستجد"]
[100,"حلاوتهم محمد شاكر ابراهيم",30806062602723,"انثى","مسلم","الخامس",null,"مستجد"]
[101,"خلود عبدالناصر فايز محمد",30802102607906,"انثى","مسلم","الخامس",null,"مستجد"]
[102,"خلود وافى عبدالراوف رضا",30806222602385,"انثى","مسلم","الخامس",null,"مستجد"]
[103,"داليا عبد الناصر محمد على",30707172602526,"انثى","مسلم","الخامس",null,"مستجد"]
[104,"دعاء عبد العال عبد الحميد عبد العال",30802102607884,"انثى","مسلم","الخامس",null,"مستجد"]
[105,"دنيا عوض محمود زيدان",30803012607326,"انثى","مسلم","الخامس",null,"مستجد"]
[106,"دينا علم الدين عبد اللاه حسين",30710162601646,"انثى","مسلم","الخامس",null,"مستجد"]
[107,"دينا فراج عبدالكريم على",30806012613902,"انثى","مسلم","الخامس",null,"مستجد"]
[108,"دينا ناصر فتحى أحمد",30808012615584,"انثى","مسلم","الخامس",null,"مستجد"]
[109,"رحاب ابراهيم احمد محمود",30712012613908,"انثى","مسلم","الخامس",null,"مستجد"]
[110,"رحاب عاطف مهدى السيد",30806152604547,"انثى","مسلم","الخامس",null,"مستجد"]
[111,"رحاب على احمد عبد الحق",30705142601786,"انثى","مسلم","الخامس",null,"مستجد"]
[112,"رشا ايمن مصطفى مرسى",30809282602324,"انثى","مسلم","الخامس",null,"مستجد"]
[113,"ريهام قاعود حمدي احمد",30808282602107,"انثى","مسلم","الخامس",null,"مستجد"]
[114,"ساره رفعت عزت محمد",30612052604168,"انثى","مسلم","الخامس",null,"مستجد"]
[115,"ساره عبد الخالق عبدالصبور ابوالعلا",30801202604983,"انثى","مسلم","الخامس",null,"مستجد"]
[116,"سحر محمد عبدالعظيم احمد",30808242601825,"انثى","مسلم","الخامس",null,"مستجد"]
[117,"شروق عماد عبدالستار فاضل",30808012615568,"انثى","مسلم","الخامس","أيتام","مستجد"]
[118,"شريهان احمد السيد ابوبكر",30807252602823,"انثى","مسلم","الخامس",null,"مستجد"]
[119,"شهد باهى كمال هلال",30802022602342,"انثى","مسلم","الخامس",null,"مستجد"]
[120,"شهده عبداللاه على احمد",30809212602327,"انثى","مسلم","الخامس",null,"مستجد"]
[121,"شيرين محمد السيد على",30607312601008,"انثى","مسلم","الخامس",null,"مستجد"]
[122,"شيماء حماده محمود على",30806062602707,"انثى","مسلم","الخامس","أيتام","مستجد"]
[123,"شيماء طارق هلال زيدان",30804262602148,"انثى","مسلم","الخامس",null,"مستجد"]
[124,"شيماء محمد على خربطلى",30710072600721,"انثى","مسلم","الخامس",null,"مستجد"]
[125,"صابره محمد زغلول احمد",30701012643422,"انثى","مسلم","الخامس",null,"مستجد"]
[126,"عبير ايمن فوزى محمد",30711252604829,"انثى","مسلم","الخامس",null,"مستجد"]
[127,"عبير عبد الرؤوف مسعد أحمد",30711252604861,"انثى","مسلم","الخامس",null,"مستجد"]
[128,"فاطمه على محمد عثمان",30807052602721,"انثى","مسلم","الخامس","أيتام","مستجد"]
[129,"لقاء محمد يوسف محمود",30711182602947,"انثى","مسلم","الخامس",null,"مستجد"]
[130,"مروه عبدالحارس صابر مرسى",30711252604802,"انثى","مسلم","الخامس",null,"مستجد"]
[131,"مروه محمد على محمود",30807052602748,"انثى","مسلم","الخامس",null,"مستجد"]
[132,"مريم حسن محمد بهلول",30802102600502,"انثى","مسلم","الخامس",null,"مستجد"]
[133,"مريم حمدى فوزى ابراهيم",30803082601325,"انثى","مسلم","الخامس",null,"مستجد"]
[134,"مريم سيف النصر عبد السلام حسين",30707252601709,"انثى","مسلم","الخامس",null,"مستجد"]
[135,"ملك عادل عبدالنظير نورالدين",30806062602847,"انثى","مسلم","الخامس",null,"مستجد"]
[136,"ملك قنديل حمدان محمد",30807202607549,"انثى","مسلم","الخامس",null,"مستجد"]
[137,"منار عادل السيد مدنى",30706162602025,"انثى","مسلم","الخامس","أيتام","باق"]
[138,"منار محمود احمد على",30807012613127,"انثى","مسلم","الخامس",null,"مستجد"]
[139,"منه عبدالراضى مدنى حسب",30810012612601,"انثى","مسلم","الخامس",null,"مستجد"]
[140,"منه كامل سليم كامل",30801012637648,"انثى","مسلم","الخامس",null,"مستجد"]
[141,"منه هاشم احمد بطيخ",30802262601084,"انثى","مسلم","الخامس",null,"مستجد"]
[142,"مها كامل ابراهيم جاد الرب",30803012607261,"انثى","مسلم","الخامس",null,"مستجد"]
[143,"مياده عاطف العربى توفيق",30807012613186,"انثى","مسلم","الخامس",null,"مستجد"]
[144,"مياده عبد الخالق عبدالشافى احمد",30710072600683,"انثى","مسلم","الخامس",null,"مستجد"]
[145,"نجلاء رفعت عمر هلال",30808172601822,"انثى","مسلم","الخامس",null,"مستجد"]
[146,"نجوى احمد عجور عبد النبى",30807052605046,"انثى","مسلم","الخامس",null,"مستجد"]
[147,"ندى الادهم ثابت ابراهيم",30806152604601,"انثى","مسلم","الخامس",null,"مستجد"]
[148,"نسمه عزت احمد صادق",30704012613786,"انثى","مسلم","الخامس",null,"مستجد"]
[149,"نهى عاطف حمدان عبدالحميد",30805132602584,"انثى","مسلم","الخامس",null,"مستجد"]
[150,"نوال عاطف رشاد توفيق",30809072601104,"انثى","مسلم","الخامس",null,"مستجد"]
[151,"نورا جابر أحمد سليمان",30806012613929,"انثى","مسلم","الخامس",null,"مستجد"]
[152,"نورا عباس أحمد زيدان",30809072601082,"انثى","مسلم","الخامس",null,"مستجد"]
[153,"نورهان حسين عبد الظاهر عبد النبى",30707252601741,"انثى","مسلم","الخامس",null,"مستجد"]
[154,"نورهان كمال عيد ابو العلا",30804162601527,"انثى","مسلم","الخامس",null,"مستجد"]
[155,"هنا شحاته صابر عبد اللطيف",30808012615606,"انثى","مسلم","الخامس",null,"مستجد"]
[156,"ورده شحات عبد العال جاد",30711182603005,"انثى","مسلم","الخامس",null,"مستجد"]
[157,"وفاء ابو الحجاج محمد ثابت",30808242601744,"انثى","مسلم","الخامس",null,"مستجد"]
[158,"ولاء خالد ابراهيم توفيق",30711182603064,"انثى","مسلم","الخامس",null,"مستجد"]
[159,"ولاء شعبان محمد عثمان",30809212602408,"انثى","مسلم","الخامس",null,"مستجد"]
[160,"ياسمين حمدى على محمود",30808112602749,"انثى","مسلم","الخامس",null,"مستجد"]
[161,"ياسمين صالح عبداللاه طلب",30806222602342,"انثى","مسلم","الخامس",null,"مستجد"]
[162,"ياسمين على عثمان على",30808282602085,"انثى","مسلم","الخامس",null,"مستجد"]
[163,"ياسمين فاروق عبد الرحمن عبد الرحيم",30804012617506,"انثى","مسلم","الخامس",null,"مستجد"]
[1,"ابراهيم علي حمدي عبدالعال",30701012649854,"ذكر","مسلم","السادس",null,"مستجد"]
[2,"ابراهيم قنديل الديب فندى",30701132602754,"ذكر","مسلم","السادس",null,"مستجد"]
[3,"ابوالخير عاشور مصطفى عثمان",30701132602797,"ذكر","مسلم","السادس",null,"مستجد"]
[4,"احمد العبد عسران عابدين",30704012614936,"ذكر","مسلم","السادس",null,"مستجد"]
[5,"احمد بكري محمد فندي",30612012612699,"ذكر","مسلم","السادس",null,"مستجد"]
[6,"احمد خلف جاد شفاعي",30710012612879,"ذكر","مسلم","السادس",null,"مستجد"]
[7,"احمد عادل عبدالغفار عبدالولي",30709232601535,"ذكر","مسلم","السادس",null,"مستجد"]
[8,"احمد علاء علي السيد",30707012609338,"ذكر","مسلم","السادس",null,"مستجد"]
[9,"احمد محمد حماد عبدالمبدي",30708252602477,"ذكر","مسلم","السادس",null,"مستجد"]
[10,"احمد مطاوع حنفي محمود",30707212601935,"ذكر","مسلم","السادس",null,"مستجد"]
[11,"اسلام أحمد محمود أحمد",30710012612755,"ذكر","مسلم","السادس",null,"مستجد"]
[12,"اسلام جلال السيد عوض",30610062602179,"ذكر","مسلم","السادس",null,"مستجد"]
[13,"اسلام محمود محمد أحمد",30612232602155,"ذكر","مسلم","السادس",null,"مستجد"]
[14,"اسلام مختار عبدالنعيم أبوالحسن",30610292602739,"ذكر","مسلم","السادس",null,"مستجد"]
[15,"البدرى عبدالمؤمن عبدالكريم صابر",30612012612753,"ذكر","مسلم","السادس",null,"مستجد"]
[16,"حاتم شعبان شاكر إبراهيم",30709152604274,"ذكر","مسلم","السادس",null,"مستجد"]
[17,"حسام البدري خلف كامل",30708052602057,"ذكر","مسلم","السادس",null,"مستجد"]
[18,"حشمت الشمبرى حشمت محمد",30706102603537,"ذكر","مسلم","السادس",null,"مستجد"]
[19,"حماده الوهباني أحمد عبدالمجيد",30703012615138,"ذكر","مسلم","السادس",null,"مستجد"]
[20,"خالد احمد فايز محمد",30707012609273,"ذكر","مسلم","السادس",null,"مستجد"]
[21,"خالد علاء احمد عبدالرحيم",30612012612796,"ذكر","مسلم","السادس",null,"مستجد"]
[22,"رياض عبدالشافي حمدان عبداللاه",30611262602773,"ذكر","مسلم","السادس",null,"مستجد"]
[23,"زياد علاء عبده علي",30707282601797,"ذكر","مسلم","السادس",null,"مستجد"]
[24,"شرف الدين محمد فهيم برعي",30607152601197,"ذكر","مسلم","السادس",null,"مستجد"]
[25,"صالح محمود صالح محمد",30706242601577,"ذكر","مسلم","السادس",null,"مستجد"]
[26,"ضياء صابر عبدالنظير صابر",30611182603558,"ذكر","مسلم","السادس","أيتام","مستجد"]
[27,"طارق أحمد عبداللاه صابر",30704212602835,"ذكر","مسلم","السادس",null,"مستجد"]
[28,"طلال هيثم حمدي مدني",30611142603199,"ذكر","مسلم","السادس",null,"مستجد"]
[29,"عبدالراضي عبده عبدالراضي أمين",30702012616499,"ذكر","مسلم","السادس",null,"مستجد"]
[30,"عبدالرحمن رفاعى محمود محمد",30704012615037,"ذكر","مسلم","السادس",null,"مستجد"]
[31,"عبدالرحمن رمضان حماد أحمد",30705122602476,"ذكر","مسلم","السادس",null,"مستجد"]
[32,"عبدالرحمن عصمت محمد جميل",30704252603192,"ذكر","مسلم","السادس",null,"مستجد"]
[33,"عبدالرحيم حمام عابدين محمود",30704012614995,"ذكر","مسلم","السادس",null,"مستجد"]
[34,"عبدالله شبيب عباس السيد",30707072605633,"ذكر","مسلم","السادس",null,"مستجد"]
[35,"عبدالله محمد أحمد محمود",30611262602811,"ذكر","مسلم","السادس",null,"مستجد"]
[36,"عبده أحمد اسماعيل عبدالغفار",30705012611755,"ذكر","مسلم","السادس","أيتام","مستجد"]
[37,"عبده صابر محمد فرج",30704012615053,"ذكر","مسلم","السادس",null,"مستجد"]
[38,"علي حازم حسني فهلي",30609022604138,"ذكر","مسلم","السادس",null,"مستجد"]
[39,"علي حسام عبد الستار عبد المعبود",30706122601859,"ذكر","مسلم","السادس",null,"مستجد"]
[40,"علي خليفه مدني حسب",30705122602433,"ذكر","مسلم","السادس",null,"مستجد"]
[41,"علي عبدالغني البربري حسن",30710012612739,"ذكر","مسلم","السادس",null,"مستجد"]
[42,"عمرو سليم عبداللطيف رضا",30705222602414,"ذكر","مسلم","السادس",null,"مستجد"]
[43,"غندور محمد أحمد عبدالباسط",30612102604814,"ذكر","مسلم","السادس",null,"مستجد"]
[44,"فارس فوزى احمد حسن",30603072602936,"ذكر","مسلم","السادس",null,"مستجد"]
[45,"فارس ناجح العربى عبدلى",30707072605595,"ذكر","مسلم","السادس",null,"مستجد"]
[46,"فرج عبدالعاطى ذكى أبوالمجد",30611072602815,"ذكر","مسلم","السادس",null,"مستجد"]
[47,"فهد علي أحمد بطيخ",30705102604774,"ذكر","مسلم","السادس",null,"مستجد"]
[48,"كريم عابدين عبدالنظير عابدين",30709232601519,"ذكر","مسلم","السادس",null,"مستجد"]
[49,"كريم محمدعصمت مهدى السيد",30709152604258,"ذكر","مسلم","السادس",null,"مستجد"]
[50,"كيلاني إبراهيم كيلاني محمد",30702012616413,"ذكر","مسلم","السادس",null,"مستجد"]
[51,"محمد أحمد محمود محمد",30704152604876,"ذكر","مسلم","السادس",null,"مستجد"]
[52,"محمد رمضان عبدالحميد أحمد",30605072601533,"ذكر","مسلم","السادس","أيتام","مستجد"]
[53,"محمد عبدالناصر محمد ثابت",30710012612798,"ذكر","مسلم","السادس",null,"مستجد"]
[54,"محمد عثمان فوزي عثمان",30704012614952,"ذكر","مسلم","السادس",null,"مستجد"]
[55,"محمد عدلي إبراهيم محمود",30612052604052,"ذكر","مسلم","السادس",null,"مستجد"]
[56,"محمد قصيدي حمدان برعي",30612162602772,"ذكر","مسلم","السادس",null,"مستجد"]
[57,"محمد محمود حسونه عبدالحميد",30704212602851,"ذكر","مسلم","السادس",null,"مستجد"]
[58,"محمد يونس الصغير أحمد",30605072601592,"ذكر","مسلم","السادس",null,"مستجد"]
[59,"محمود ابو الحلقان العربى عبدلى",30705152605151,"ذكر","مسلم","السادس",null,"مستجد"]
[60,"محمود رفعت حمدان عبدالعاطى",30704212602819,"ذكر","مسلم","السادس",null,"مستجد"]
[61,"محمود عبدالحميد صديق عبدالمجيد",30612012612818,"ذكر","مسلم","السادس",null,"مستجد"]
[62,"محمود عبدالراضي عبداللطيف علي",30605012609772,"ذكر","مسلم","السادس",null,"مستجد"]
[63,"محمود عربى حمدى عبدالعاطى",30708252602493,"ذكر","مسلم","السادس",null,"مستجد"]
[64,"محمود علي عبداللاه صابر",30612102604792,"ذكر","مسلم","السادس",null,"مستجد"]
[65,"مروان امبابي ابوناصر عبداللاه",30708112601535,"ذكر","مسلم","السادس",null,"مستجد"]
[66,"مروان رمضان محمد صادق",30505152603257,"ذكر","مسلم","السادس",null,"مستجد"]
[67,"ناجي ماهر عبدالله إسرائيل",30708192601336,"ذكر","مسيحى","السادس",null,"مستجد"]
[68,"هشام أحمد حمدان عباس",30603202603239,"ذكر","مسلم","السادس",null,"باق"]
[69,"ابتسام مصطفى أحمد بطيخ",30706102603286,"انثى","مسلم","السادس",null,"مستجد"]
[70,"استير رأفت بخيت جرجس",30612012613083,"انثى","مسيحى","السادس",null,"مستجد"]
[71,"اسراء بيومى حسين محمد",30709152603308,"انثى","مسلم","السادس",null,"مستجد"]
[72,"اسماء محمد عباس السيد",30704152604841,"انثى","مسلم","السادس",null,"مستجد"]
[73,"الزهراء علي محمود علي",30707252601768,"انثى","مسلم","السادس",null,"مستجد"]
[74,"امل إبراهيم على محمد",30701012643449,"انثى","مسلم","السادس",null,"مستجد"]
[75,"امل محمد خلف كامل",30707282601185,"انثى","مسلم","السادس",null,"مستجد"]
[76,"امل ناصر أحمد عبدالغفار",30611012620482,"انثى","مسلم","السادس",null,"مستجد"]
[77,"اميره السيد عيد أبوالعلاء",30706102603227,"انثى","مسلم","السادس",null,"مستجد"]
[78,"انجى تلاصون سعيد جرجس",30702062602502,"انثى","مسيحى","السادس",null,"مستجد"]
[79,"ايات أبوالعلا عبدالقادر عبداللاه",30706102603243,"انثى","مسلم","السادس",null,"مستجد"]
[80,"ايات أحمد عبدالحميد عبدالباسط",30606202603602,"انثى","مسلم","السادس",null,"مستجد"]
[81,"ايمان جادالكريم عبدالستار عبدالمعبود",30704282602107,"انثى","مسلم","السادس",null,"مستجد"]
[82,"آيه جيلاني عاصم توفيق",30610012623469,"انثى","مسلم","السادس",null,"مستجد"]
[83,"آيه محمود على سليمان",30611072602564,"انثى","مسلم","السادس",null,"مستجد"]
[84,"آيه يونس على أحمد",30605012608288,"انثى","مسلم","السادس",null,"مستجد"]
[85,"بشاير محمد حناوى توفيق",30611112606487,"انثى","مسلم","السادس",null,"مستجد"]
[86,"جهاد على محمد عبدالله",30702012618165,"انثى","مسلم","السادس",null,"مستجد"]
[87,"حبيبه كمال حسونه رضوان",30609132602661,"انثى","مسلم","السادس","أيتام","مستجد"]
[88,"خلود أيمن قنديل أحمد",30611182603108,"انثى","مسلم","السادس",null,"مستجد"]
[89,"خلود فراج صلاح عبداللاه",30708192600909,"انثى","مسلم","السادس",null,"مستجد"]
[90,"خلود ناجح فتحي العربي",30610292602801,"انثى","مسلم","السادس",null,"مستجد"]
[91,"دعاء عبدالمنصف عبده علي",30703012613763,"انثى","مسلم","السادس",null,"مستجد"]
[92,"دنيا محمد بكرى محمد",30706062605183,"انثى","مسلم","السادس",null,"مستجد"]
[93,"دينا حسن مصطفى محمود",30606202603629,"انثى","مسلم","السادس",null,"مستجد"]
[94,"دينا رمضان محمد عثمان",30611252604905,"انثى","مسلم","السادس","أيتام","مستجد"]
[95,"دينا عادل عبدالباقي أحمد",30707172602542,"انثى","مسلم","السادس",null,"مستجد"]
[96,"رباح محمد علي خربطلي",30612012613105,"انثى","مسلم","السادس",null,"مستجد"]
[97,"رحاب هاشم حسن محمد",30611072602548,"انثى","مسلم","السادس",null,"مستجد"]
[98,"رشا راضى محمود إبراهيم",30701012643481,"انثى","مسلم","السادس",null,"مستجد"]
[99,"زهراء رمضان على أبوالحسن",30607082600821,"انثى","مسلم","السادس",null,"مستجد"]
[100,"زهراء عادل الصافي سباق",30708192600941,"انثى","مسلم","السادس",null,"مستجد"]
[101,"زينب جاد عبدالحميد جادالكريم",30612232601884,"انثى","مسلم","السادس",null,"مستجد"]
[102,"زينب صبري طلعات رضوان",30706012609285,"انثى","مسلم","السادس",null,"مستجد"]
[103,"زينب قنديل الديب فندى",30701132603246,"انثى","مسلم","السادس",null,"مستجد"]
[104,"ساره رمضان عبداللاه صابر",30607012602169,"انثى","مسلم","السادس",null,"مستجد"]
[105,"ساميه اشرف حليم كراس",30707012607866,"انثى","مسيحى","السادس","أيتام","مستجد"]
[106,"سلمى اشرف احمد عجور",30711022601545,"انثى","مسلم","السادس",null,"مستجد"]
[107,"سماح صلاح محمد بهلول",30708192600887,"انثى","مسلم","السادس",null,"مستجد"]
[108,"سمر محروس علي أحمد",30704012613743,"انثى","مسلم","السادس",null,"مستجد"]
[109,"سوسن عبدالحميد عبدالسميع عابدين",30706012609307,"انثى","مسلم","السادس",null,"مستجد"]
[110,"شاهنده عباس إبراهيم كامل",30608202606027,"انثى","مسلم","السادس",null,"مستجد"]
[111,"شاهنده كامل سليم كامل",30610292602984,"انثى","مسلم","السادس",null,"مستجد"]
[112,"شاهنده محمود محمد فهيم",30709232601225,"انثى","مسلم","السادس",null,"مستجد"]
[113,"شهد شحاته السبع جادالكريم",30705222602783,"انثى","مسلم","السادس",null,"مستجد"]
[114,"شهيره فراج محمد أحمد",30702012618122,"انثى","مسلم","السادس",null,"مستجد"]
[115,"شيماء قناوى الضبع جادالكريم",30610292602925,"انثى","مسلم","السادس",null,"مستجد"]
[116,"عبير أبوالسعود عبدالسميع أبوالحسن",30612232601868,"انثى","مسلم","السادس",null,"مستجد"]
[117,"عبير عرفات الديب فندي",30705222602724,"انثى","مسلم","السادس",null,"مستجد"]
[118,"عبير علي أحمد علي",30701012643562,"انثى","مسلم","السادس",null,"مستجد"]
[119,"عليا عبدالمنعم حسن محمد",30702202605566,"انثى","مسلم","السادس",null,"مستجد"]
[120,"عليا كليب علي خربطلي",30601012608444,"انثى","مسلم","السادس",null,"مستجد"]
[121,"غدير اشرف حمدى محمد",30701202606485,"انثى","مسلم","السادس",null,"مستجد"]
[122,"فاطمه اسماعيل احمد حسن",30508012609408,"انثى","مسلم","السادس",null,"باق"]
[123,"فاطمه رمضان على أبوالحسن",30607082600805,"انثى","مسلم","السادس",null,"مستجد"]
[124,"فايزه أحمد سليمان محمد",30506122600764,"انثى","مسلم","السادس",null,"مستجد"]
[125,"ماري صبري صدقى شنوده",30705222602767,"انثى","مسيحى","السادس",null,"مستجد"]
[126,"محبات معتمد كليب صادق",30612102604105,"انثى","مسلم","السادس",null,"مستجد"]
[127,"مروه عامر كليب صادق",30703252603129,"انثى","مسلم","السادس",null,"مستجد"]
[128,"مروه عمر محمود عجور",30708272600926,"انثى","مسلم","السادس",null,"مستجد"]
[129,"مروه محمد صدقي عبداللطيف",30610292602968,"انثى","مسلم","السادس",null,"مستجد"]
[130,"مروه محمود عبدالعظيم محمد",30706012609269,"انثى","مسلم","السادس",null,"مستجد"]
[131,"مريم عاطف عبدالله جبرائيل",30706242601003,"انثى","مسيحى","السادس",null,"مستجد"]
[132,"مريم عبدالحميد رضوان توفيق",30707038800869,"انثى","مسلم","السادس",null,"مستجد"]
[133,"مريم عبدالحميد محمود عبدالمطلب",30707212601684,"انثى","مسلم","السادس",null,"مستجد"]
[134,"مريم محمد محمود أحمد",30701232603642,"انثى","مسلم","السادس",null,"مستجد"]
[135,"مشيره أحمد محمد حفنى",30704012613808,"انثى","مسلم","السادس",null,"مستجد"]
[136,"ملك عبدالناصر محمود أحمد",30611142603288,"انثى","مسلم","السادس",null,"مستجد"]
[137,"منار أبوالعلاء عبداللطيف موسى",30704212602843,"انثى","مسلم","السادس",null,"مستجد"]
[138,"منار أحمد عبدالحميد عبدالباسط",30606202603564,"انثى","مسلم","السادس",null,"مستجد"]
[139,"منار السيد أحمد صديق",30703192602381,"انثى","مسلم","السادس",null,"مستجد"]
[140,"منار عباس عبدالباقي أحمد",30703102605867,"انثى","مسلم","السادس",null,"مستجد"]
[141,"منه كحلاوي محمد الصالح",30707072605382,"انثى","مسلم","السادس",null,"مستجد"]
[142,"ندا بسيوني مهران محمد",30701282602043,"انثى","مسلم","السادس",null,"مستجد"]
[143,"نصره قناوي صلاح عبداللاه",30710012610809,"انثى","مسلم","السادس",null,"مستجد"]
[144,"نهال خليفة كامل احمد",30702072603124,"انثى","مسلم","السادس",null,"مستجد"]
[145,"نهال محمدكيلاني كيلاني محمد",30709152603286,"انثى","مسلم","السادس",null,"مستجد"]
[146,"نورا قاعود حمدي أحمد",30701012643546,"انثى","مسلم","السادس",null,"مستجد"]
[147,"نورهان عصام حمدان مصطفى",30706162602084,"انثى","مسلم","السادس",null,"مستجد"]
[148,"نيجار رفاعى محمد أحمد",30707012607645,"انثى","مسلم","السادس",null,"مستجد"]
[149,"هاجر عيد احمد عبدالمولى",30708052103123,"انثى","مسلم","السادس",null,"مستجد"]
[150,"هبه حمدي فهيم برعي",30607152601189,"انثى","مسلم","السادس",null,"مستجد"]
[151,"هويدا عبدالحميد العربي عبدلي",30701132603203,"انثى","مسلم","السادس",null,"مستجد"]
[152,"ورده صديق على السيد",30701282602124,"انثى","مسلم","السادس",null,"مستجد"]
[153,"ياسمين أبوالعلا محمد عبداللاه",30708272600888,"انثى","مسلم","السادس",null,"مستجد"]
[154,"ياسمين بلال محمد شاكر",30708192600925,"انثى","مسلم","السادس",null,"مستجد"]
[155,"ياسمين رجب فهيم عبدالعاطى",30708192600968,"انثى","مسلم","السادس",null,"مستجد"]
[156,"ياسمين عبدالفضيل طلب حسن",30710012610825,"انثى","مسلم","السادس",null,"مستجد"]

{"sheet":"أيتام","index":1,"n_rows":40,"n_cols":8,"rows_kept":40,"cut":false,"hidden":false,"merged":[]}
["م","الاســـــــــــــــــــــــم","الرقم القومي","النوع","الديانة","الصف",null,"حالة القيد"]
[6,"احمد حشمت أحمد برعى",31207012617692,"ذكر","مسلم","الأول أ","أيتام","مستجد"]
[10,"احمد عبدالرحيم السيد محمود",31111112619717,"ذكر","مسلم","الأول أ","أيتام","مستجد"]
[22,"ثروت شبيب حلمي احمد",31202012609558,"ذكر","مسلم","الأول أ","أيتام","مستجد"]
[165,"بسمه محمد فهيم ابراهيم",31105202604204,"انثى","مسلم","الأول أ","أيتام","مستجد"]
[186,"خلود عاطف علي اسماعيل",31112162601521,"انثى","مسلم","الأول أ","أيتام","مستجد"]
[6,"احمد علي محمد عثمان",31108102605016,"ذكر","مسلم","الثاني أ","أيتام","مستجد"]
[32,"زياد إبراهيم محمود عسران حمايت الله",31101012627792,"ذكر","مسلم","الثاني أ","أيتام","مستجد"]
[74,"كريم احمد اسماعيل عبدالغفار",31012252602077,"ذكر","مسلم","الثاني أ","أيتام","مستجد"]
[76,"كريم عبدالشافى يوسف احمد",31103122602275,"ذكر","مسلم","الثاني أ","أيتام","مستجد"]
[94,"محمد عزت محمود احمد",31109202602193,"ذكر","مسلم","الثاني أ","أيتام","مستجد"]
[104,"محمود عاطف علي اسماعيل",30909272603777,"ذكر","مسلم","الثاني أ","أيتام","مستجد"]
[136,"امال زيدان كمال الدين حسن",31105142601561,"انثى","مسلم","الثاني أ","أيتام","مستجد"]
[189,"قمر خلف احمد حسين",31102172601125,"انثى","مسلم","الثاني أ","أيتام","مستجد"]
[211,"نور خلف احمد حسن",31102172601141,"انثى","مسلم","الثاني أ","أيتام","مستجد"]
[42,"عبدالله رضا عابدين محمود",30912062603112,"ذكر","مسلم","الثالث أ","أيتام","مستجد"]
[132,"ريناد عماد عبدالستار فاضل",31006012616003,"انثى","مسلم","الثالث أ","أيتام","مستجد"]
[174,"منال فراج أبوالحمد أحمد",31003242600344,"انثى","مسلم","الثالث أ","أيتام","مستجد"]
[195,"ياسمين صابر عبدالنظير صادق",31009122600802,"انثى","مسلم","الثالث أ","أيتام","مستجد"]
[5,"احمد شبيب عبدالراضى امين",30902082600351,"ذكر","مسلم","الرابع","أيتام","مستجد"]
[63,"كريم عبدالعليم منصور رضا",30907182603775,"ذكر","مسلم","الرابع","أيتام","مستجد"]
[95,"ايمان بسيونى على محمود",30908092600587,"انثى","مسلم","الرابع","أيتام","مستجد"]
[101,"حبيبه عبده محمود طلب",30812212601208,"انثى","مسلم","الرابع","أيتام","مستجد"]
[121,"شيماء زيدان كمال المدنى",30812142602244,"انثى","مسلم","الرابع","أيتام","مستجد"]
[130,"فرحه عبدالعليم منصور رضا",30807042601344,"انثى","مسلم","الرابع","أيتام","مستجد"]
[139,"مريم اشرف حليم كراس",30812212600988,"انثى","مسيحى","الرابع","أيتام","مستجد"]
[2,"ابوالعلا رمضان عبدالحميد أحمد",30808082611756,"ذكر","مسلم","الخامس","أيتام","مستجد"]
[22,"ايمن عادل السيد مدنى",30706162602173,"ذكر","مسلم","الخامس","أيتام","باق"]
[42,"عبده شبيب عبد الراضى امين",30709152611211,"ذكر","مسلم","الخامس","أيتام","مستجد"]
[55,"محمد حمدى السيد محمد",30808242602333,"ذكر","مسلم","الخامس","أيتام","مستجد"]
[117,"شروق عماد عبدالستار فاضل",30808012615568,"انثى","مسلم","الخامس","أيتام","مستجد"]
[122,"شيماء حماده محمود على",30806062602707,"انثى","مسلم","الخامس","أيتام","مستجد"]
[128,"فاطمه على محمد عثمان",30807052602721,"انثى","مسلم","الخامس","أيتام","مستجد"]
[137,"منار عادل السيد مدنى",30706162602025,"انثى","مسلم","الخامس","أيتام","باق"]
[26,"ضياء صابر عبدالنظير صابر",30611182603558,"ذكر","مسلم","السادس","أيتام","مستجد"]
[36,"عبده أحمد اسماعيل عبدالغفار",30705012611755,"ذكر","مسلم","السادس","أيتام","مستجد"]
[52,"محمد رمضان عبدالحميد أحمد",30605072601533,"ذكر","مسلم","السادس","أيتام","مستجد"]
[87,"حبيبه كمال حسونه رضوان",30609132602661,"انثى","مسلم","السادس","أيتام","مستجد"]
[94,"دينا رمضان محمد عثمان",30611252604905,"انثى","مسلم","السادس","أيتام","مستجد"]
[105,"ساميه اشرف حليم كراس",30707012607866,"انثى","مسيحى","السادس","أيتام","مستجد"]

{"sheet":"سدد","index":2,"n_rows":484,"n_cols":8,"rows_kept":484,"cut":false,"hidden":false,"merged":[]}
["م","الاســـــــــــــــــــــــم","الرقم القومي","النوع","الديانة","الصف",null,"حالة القيد"]
[1,"احمد اشرف عبدالحميد رضا",31109292601239,"ذكر","مسلم","الأول أ","سدد","مستجد"]
[2,"احمد بسام ابوالعلا احمد",31202012609493,"ذكر","مسلم","الأول أ","سدد","مستجد"]
[3,"احمد بلال محمد شاكر",31110102603638,"ذكر","مسلم","الأول أ","سدد","مستجد"]
[4,"احمد جابر مصطفى النادي",31207182601677,"ذكر","مسلم","الأول أ","سدد","مستجد"]
[5,"احمد حارس محمود طلب",31210012616298,"ذكر","مسلم","الأول أ","سدد","مستجد"]
[7,"احمد حشمت محمد عبدالا",31101232601433,"ذكر","مسلم","الأول أ","سدد","مستجد"]
[8,"احمد عادل الصافي سباق",31201012623716,"ذكر","مسلم","الأول أ","سدد","مستجد"]
[9,"احمد عاطف رشاد توفيق",31208202606375,"ذكر","مسلم","الأول أ","سدد","مستجد"]
[11,"احمد علاء احمد عبدالرحيم",31208282602014,"ذكر","مسلم","الأول أ","سدد","مستجد"]
[12,"احمد عيد عبدالنظير نورالدين",31204142603392,"ذكر","مسلم","الأول أ","سدد","مستجد"]
[13,"احمد كمال حسونه رضوان",31112102601794,"ذكر","مسلم","الأول أ","سدد","مستجد"]
[14,"احمد مازن كامل طلب",31201252610611,"ذكر","مسلم","الأول أ","سدد","مستجد"]
[15,"احمد محمد الضبع جادالكريم",31201012624453,"ذكر","مسلم","الأول أ","سدد","مستجد"]
[16,"اسلام عيد شحاته شاكر",31205102605917,"ذكر","مسلم","الأول أ","سدد","مستجد"]
[17,"اشرف صابر محمد فرج",31203202604257,"ذكر","مسلم","الأول أ","سدد","مستجد"]
[18,"انس عبدالعليم حمدي عجور",31201252611936,"ذكر","مسلم","الأول أ","سدد","مستجد"]
[19,"ايمن صالح عبداللاه طلب",31110162601219,"ذكر","مسلم","الأول أ","سدد","مستجد"]
[20,"باسم احمد عجور عبدالنبي",31206202601737,"ذكر","مسلم","الأول أ","سدد","مستجد"]
[21,"بدر اشرف حمدي محمد",31103192602094,"ذكر","مسلم","الأول أ","سدد","مستجد"]
[23,"حبيب الله محمد عبدالحميد جادالكريم",31112232601354,"ذكر","مسلم","الأول أ","سدد","مستجد"]
[24,"حسام صبري رضا عابدين",31012012615791,"ذكر","مسلم","الأول أ","سدد","مستجد"]
[25,"حماده أحمد حسين محمد",31208012625152,"ذكر","مسلم","الأول أ","سدد","مستجد"]
[26,"حماده حارس عبدالعليم عثمان",31201252611898,"ذكر","مسلم","الأول أ","سدد","مستجد"]
[27,"حمدي شبيب ابراهيم احمد",31110202603953,"ذكر","مسلم","الأول أ","سدد","مستجد"]
[28,"حمدي محمد حماد عبدالمبدي",31110102603654,"ذكر","مسلم","الأول أ","سدد","مستجد"]
[29,"حمزه عبدالمبدي محمود محمد",31206202601915,"ذكر","مسلم","الأول أ","سدد","مستجد"]
[30,"خالد ابراهيم العربي عبدلا",31202122601978,"ذكر","مسلم","الأول أ","سدد","مستجد"]
[31,"خالد سليمان احمد علي",31206012617513,"ذكر","مسلم","الأول أ","سدد","مستجد"]
[32,"خالد معلاوي شحاته شاكر",31207262600299,"ذكر","مسلم","الأول أ","سدد","مستجد"]
[33,"خلف عطا نورالدين سليمان",31110162601316,"ذكر","مسلم","الأول أ","سدد","مستجد"]
[34,"رفعت فوزي ابوالمجد صادق",31208012611836,"ذكر","مسلم","الأول أ","سدد","مستجد"]
[35,"زياد ابوالعلا محمد عبدالاه",31108042602756,"ذكر","مسلم","الأول أ","سدد","مستجد"]
[36,"زياد رأفت حمدي محمد",31203202605431,"ذكر","مسلم","الأول أ","سدد","مستجد"]
[37,"زياد رفعت فاروق ابراهيم",31203202604273,"ذكر","مسلم","الأول أ","سدد","مستجد"]
[38,"زياد محمود حمدان عبدالحميد",31207012617676,"ذكر","مسلم","الأول أ","سدد","مستجد"]
[39,"سيف رمضان عبداللطيف محمد",31203012614574,"ذكر","مسلم","الأول أ","سدد","مستجد"]
[40,"شريف اشرف اسعد محمود",31208012625314,"ذكر","مسلم","الأول أ","سدد","مستجد"]
[41,"شنوده رأفت بخيت جرجس",31205222601451,"ذكر","مسيحى","الأول أ","سدد","مستجد"]
[42,"طلال ياسر عاطف رشاد",31110202603899,"ذكر","مسلم","الأول أ","سدد","مستجد"]
[43,"عادل حمد فتحي احمد",31203202605458,"ذكر","مسلم","الأول أ","سدد","مستجد"]
[44,"عاطف ناجح فتحي العربي",31204012619394,"ذكر","مسلم","الأول أ","سدد","مستجد"]
[45,"عامر كمال الصغير احمد",31205012618831,"ذكر","مسلم","الأول أ","سدد","مستجد"]
[46,"عبدالحكيم عامر خلف احمد",31207172602659,"ذكر","مسلم","الأول أ","سدد","مستجد"]
[47,"عبدالحميد اشرف عبدالحميد عبدالعال",31203012606954,"ذكر","مسلم","الأول أ","سدد","مستجد"]
[48,"عبدالحميد عيد عبدالحميد عبداللاه",31210012617014,"ذكر","مسلم","الأول أ","سدد","مستجد"]
[49,"عبدالحميد محروس الصغير احمد",31202012609655,"ذكر","مسلم","الأول أ","سدد","مستجد"]
[50,"عبدالرحمن الشريف الديب فندي",31208282601972,"ذكر","مسلم","الأول أ","سدد","مستجد"]
[51,"عبدالرحمن خيري فاضل رضوان",31203012607012,"ذكر","مسلم","الأول أ","سدد","مستجد"]
[52,"عبدالرحمن عبدالشافي عبدالحميد علي",31201252610514,"ذكر","مسلم","الأول أ","سدد","مستجد"]
[53,"عبدالرحمن محمد زكي عثمان",31203202605474,"ذكر","مسلم","الأول أ","سدد","مستجد"]
[54,"عبدالرحمن مصطفى عباس فتحي",31202122601935,"ذكر","مسلم","الأول أ","سدد","مستجد"]
[55,"عبدالرحمن ناصر محمد حمدي",31205012619315,"ذكر","مسلم","الأول أ","سدد","مستجد"]
[56,"عبدالرحيم صالح عبداللاه طلب",31110162601235,"ذكر","مسلم","الأول أ","سدد","مستجد"]
[57,"عبدالعليم عبدالمنعم عبدالسميع ابوالحسن",31208202606456,"ذكر","مسلم","الأول أ","سدد","مستجد"]
[58,"عبداللطيف صبرى عبدالرحيم عبداللطيف",31112102601816,"ذكر","مسلم","الأول أ","سدد","مستجد"]
[59,"عبدالله حارس حمدان محمد",31207152605953,"ذكر","مسلم","الأول أ","سدد","مستجد"]
[60,"عبدالله عبده عبدالمعبود جادالكريم",31201152609497,"ذكر","مسلم","الأول أ","سدد","مستجد"]
[61,"عبدالله محمد حمدي عجور",31201252612371,"ذكر","مسلم","الأول أ","سدد","مستجد"]
[62,"عبدالله نصري العبد طلب",31206012617491,"ذكر","مسلم","الأول أ","سدد","مستجد"]
[63,"عبدالهادي احمد محمود عبداللاه",31202152603754,"ذكر","مسلم","الأول أ","سدد","مستجد"]
[64,"عبده اشرف الصغير احمد",31201012657556,"ذكر","مسلم","الأول أ","سدد","مستجد"]
[65,"علام محمد عدلي احمد",31204042605959,"ذكر","مسلم","الأول أ","سدد","مستجد"]
[66,"علي رمضان علي عبدالرمن",31209192603271,"ذكر","مسلم","الأول أ","سدد","مستجد"]
[67,"علي سالمان محمد علي",31201252611871,"ذكر","مسلم","الأول أ","سدد","مستجد"]
[68,"علي عبدالشافي سليم كامل",31209012626651,"ذكر","مسلم","الأول أ","سدد","مستجد"]
[69,"علي عرفات ابوالمجد علي",31111112619695,"ذكر","مسلم","الأول أ","سدد","مستجد"]
[70,"علي فاضل عبده احمد",31207202602195,"ذكر","مسلم","الأول أ","سدد","مستجد"]
[71,"علي فراج محمد احمد",31111202602732,"ذكر","مسلم","الأول أ","سدد","مستجد"]
[72,"علي محمد عبدالرحيم محمد",31206152605159,"ذكر","مسلم","الأول أ","سدد","مستجد"]
[73,"علي معتمد كليب صادق",31201252610492,"ذكر","مسلم","الأول أ","سدد","مستجد"]
[74,"عمر عبدالناصر محمد علي",31107202608075,"ذكر","مسلم","الأول أ","سدد","مستجد"]
[75,"عمر فندي كمال الدين حسن",31208282602154,"ذكر","مسلم","الأول أ","سدد","مستجد"]
[76,"عمر محمد كليب حمدى",31206122603437,"ذكر","مسلم","الأول أ","سدد","مستجد"]
[77,"عمر محمود حسين محمد",31208282602111,"ذكر","مسلم","الأول أ","سدد","مستجد"]
[78,"عمر ناصر كليب صادق",31205102605976,"ذكر","مسلم","الأول أ","سدد","مستجد"]
[79,"عمر هاني رفاعي حشمت أحمد",31201102605997,"ذكر","مسلم","الأول أ","سدد","مستجد"]
[80,"عمرو السيد محمد عبدالحي",31201012657599,"ذكر","مسلم","الأول أ","سدد","مستجد"]
[81,"عمرو عصمت محمد جميل",31203202605415,"ذكر","مسلم","الأول أ","سدد","مستجد"]
[82,"عمرو علاء عبده علي",31202122601951,"ذكر","مسلم","الأول أ","سدد","مستجد"]
[83,"فادي محمود وادي ابراهيم",31203122603497,"ذكر","مسلم","الأول أ","سدد","مستجد"]
[84,"فاروق ايمن علي عبدالعليم",31112102601832,"ذكر","مسلم","الأول أ","سدد","مستجد"]
[85,"فاروق حازم فاروق عبدالعظيم",31210012616271,"ذكر","مسلم","الأول أ","سدد","مستجد"]
[86,"كامل عامر صلاح محمد",31111012600431,"ذكر","مسلم","الأول أ","سدد","مستجد"]
[87,"كريم رأفت مسعد احمد",31111012612111,"ذكر","مسلم","الأول أ","سدد","مستجد"]
[88,"كريم رفاعي ابوالمجد صادق",31204042605916,"ذكر","مسلم","الأول أ","سدد","مستجد"]
[89,"كريم محمد عبدالراووف رضا",31205202609855,"ذكر","مسلم","الأول أ","سدد","مستجد"]
[90,"كريم محمد محمود حمزه",31112102601875,"ذكر","مسلم","الأول أ","سدد","مستجد"]
[91,"مازن محمد حمدان محمد",31110082101738,"ذكر","مسلم","الأول أ","سدد","مستجد"]
[92,"محمد احمد علي بديوي",31111112619733,"ذكر","مسلم","الأول أ","سدد","مستجد"]
[93,"محمد انور اسعد محمود",31109082602097,"ذكر","مسلم","الأول أ","سدد","مستجد"]
[94,"محمد صالح عبدالكريم ابوالحمد",31206202601672,"ذكر","مسلم","الأول أ","سدد","مستجد"]
[95,"محمد صديق الديب احمد",31201012657572,"ذكر","مسلم","الأول أ","سدد","مستجد"]
[96,"محمد عاطف مهدي السيد",31203012606938,"ذكر","مسلم","الأول أ","سدد","مستجد"]
[97,"محمد عبدالحارس صابر مرسي",31202202603394,"ذكر","مسلم","الأول أ","سدد","مستجد"]
[98,"محمد عبدالحميد ابراهيم كامل",31206012617718,"ذكر","مسلم","الأول أ","سدد","مستجد"]
[99,"محمد عبدالحميد محمد عبدالحميد",31205292602013,"ذكر","مسلم","الأول أ","سدد","مستجد"]
[100,"محمد عبدالله عبدالمنصف محمد",31205252604315,"ذكر","مسلم","الأول أ","سدد","مستجد"]
[101,"محمد عبدالهادي سليم كامل",31203102604497,"ذكر","مسلم","الأول أ","سدد","مستجد"]
[102,"محمد عرفات محمد احمد",31208012625357,"ذكر","مسلم","الأول أ","سدد","مستجد"]
[103,"محمد كليب علي خربطلي",31208202606359,"ذكر","مسلم","الأول أ","سدد","مستجد"]
[104,"محمد محمود ابراهيم محمود",31202132602298,"ذكر","مسلم","الأول أ","سدد","مستجد"]
[105,"محمد وائل شحات عبدالعال",31202202603416,"ذكر","مسلم","الأول أ","سدد","مستجد"]
[106,"محمود احمد عناني احمد",31202152606478,"ذكر","مسلم","الأول أ","سدد","مستجد"]
[107,"محمود السيد عيد ابوالعلا",31201102606039,"ذكر","مسلم","الأول أ","سدد","مستجد"]
[108,"محمود صديق عبدالعليم محمد",31202012609639,"ذكر","مسلم","الأول أ","سدد","مستجد"]
[109,"محمود عبدالحميد محمد عبدالحميد",31205292602056,"ذكر","مسلم","الأول أ","سدد","مستجد"]
[110,"محمود علي عبداللطيف موسى",31201012620377,"ذكر","مسلم","الأول أ","سدد","مستجد"]
[111,"محمود محمد عبدالعظيم احمد",31110162601332,"ذكر","مسلم","الأول أ","سدد","مستجد"]
[112,"مراد احمد عبداللاه صابر",31202012609574,"ذكر","مسلم","الأول أ","سدد","مستجد"]
[113,"مصطفى الطيب محمود احمد",31110062602595,"ذكر","مسلم","الأول أ","سدد","مستجد"]
[114,"مصطفى شعبان مشوادي مدني",31111112619792,"ذكر","مسلم","الأول أ","سدد","مستجد"]
[115,"مصطفى كامل سليم كامل",31112102601778,"ذكر","مسلم","الأول أ","سدد","مستجد"]
[116,"مصطفى محمود مفتاح محمد",31206152605132,"ذكر","مسلم","الأول أ","سدد","مستجد"]
[117,"ممدوح عبدالعليم علي صديق",31208012611917,"ذكر","مسلم","الأول أ","سدد","مستجد"]
[118,"مهند هاشم محمود اسماعيل",31203202605334,"ذكر","مسلم","الأول أ","سدد","مستجد"]
[119,"ناصر حازم حسني فهلي",31106202607196,"ذكر","مسلم","الأول أ","سدد","مستجد"]
[120,"ناصر عباس احمد زيدان",31109062601817,"ذكر","مسلم","الأول أ","سدد","مستجد"]
[121,"هلال زيدان هلال زيدان",31111202602678,"ذكر","مسلم","الأول أ","سدد","مستجد"]
[122,"وليد محمود حسونه عبدالحميد",31202202603378,"ذكر","مسلم","الأول أ","سدد","مستجد"]
[123,"وليد ناصر احمد عبدالغفار",31111162602297,"ذكر","مسلم","الأول أ","سدد","مستجد"]
[124,"ياسر هيثم حناوي توفيق",31203012606873,"ذكر","مسلم","الأول أ","سدد","مستجد"]
[125,"ياسين علي عبدالرؤف رضا",31205012618858,"ذكر","مسلم","الأول أ","سدد","مستجد"]
[126,"ياسين محمد عباس السيد",31209152603538,"ذكر","مسلم","الأول أ","سدد","مستجد"]
[127,"يحيى رفعت عبدالغفار عثمان",31110162601197,"ذكر","مسلم","الأول أ","سدد","مستجد"]
[128,"يوسف اسماعيل عبده احمد",31201012620334,"ذكر","مسلم","الأول أ","سدد","مستجد"]
[129,"يوسف تمام عبداللطيف محمد",31202012609477,"ذكر","مسلم","الأول أ","سدد","مستجد"]
[130,"يوسف جابر اسماعيل محمد",31201252610557,"ذكر","مسلم","الأول أ","سدد","مستجد"]
[131,"يوسف حماد فهيم برعي",31108012617996,"ذكر","مسلم","الأول أ","سدد","مستجد"]
[132,"يوسف عباس ابراهيم كامل",31204042605975,"ذكر","مسلم","الأول أ","سدد","مستجد"]
[133,"يوسف عرفات عابدين محمود علي",31209202601353,"ذكر","مسلم","الأول أ","سدد","مستجد"]
[134,"يوسف علي عبده علي",31110102603611,"ذكر","مسلم","الأول أ","سدد","مستجد"]
[135,"يوسف فراج حمدي عباس",31204022601051,"ذكر","مسلم","الأول أ","سدد","مستجد"]
[136,"يوسف محروس عجور عبدالنبي",31111012612073,"ذكر","مسلم","الأول أ","سدد","مستجد"]
[137,"يوسف محمد احمد محمود",31210012616999,"ذكر","مسلم","الأول أ","سدد","مستجد"]
[138,"يوسف محمود ابراهيم محمود",31207012617714,"ذكر","مسلم","الأول أ","سدد","مستجد"]
[139,"يوسف منصور اسماعيل عبدالغفار",31205222601419,"ذكر","مسلم","الأول أ","سدد","مستجد"]
[140,"احلام احمد نظير احمد",31205222601648,"انثى","مسلم","الأول أ","سدد","مستجد"]
[141,"احلام حماده محمد السيد",31206012616169,"انثى","مسلم","الأول أ","سدد","مستجد"]
[142,"ارزاق قنديل علي جادالكريم",31112022601025,"انثى","مسلم","الأول أ","سدد","مستجد"]
[143,"اروى السيد كمال عبدالمجيد",31205202609383,"انثى","مسلم","الأول أ","سدد","مستجد"]
[144,"اروى حسين أحمد بطيخ",31202132603286,"انثى","مسلم","الأول أ","سدد","مستجد"]
[145,"اروى علي عبداللاه عبداللطيف",31205222601621,"انثى","مسلم","الأول أ","سدد","مستجد"]
[146,"اروى هشام احمد محمود",31112162601505,"انثى","مسلم","الأول أ","سدد","مستجد"]
[147,"ازهار السيد صابر حسين",31203221303144,"انثى","مسلم","الأول أ","سدد","مستجد"]
[148,"اسراء عارف محمد شاكر",31201012651841,"انثى","مسلم","الأول أ","سدد","مستجد"]
[149,"اسماء حمدي ابوالعلا خربطلي",31203012605583,"انثى","مسلم","الأول أ","سدد","مستجد"]
[150,"اسماء شبيب عباس السيد",30912062603104,"انثى","مسلم","الأول أ","سدد","مستجد"]
[151,"اسيه عصام حمدان مصطفى",31204012619483,"انثى","مسلم","الأول أ","سدد","مستجد"]
[152,"افنان عبدالخالق حسن علي",31207182603548,"انثى","مسلم","الأول أ","سدد","مستجد"]
[153,"اكرام محمد العربي عبدلي",31110012613421,"انثى","مسلم","الأول أ","سدد","مستجد"]
[154,"الزهراء موسى علي بديوي",31111112616963,"انثى","مسلم","الأول أ","سدد","مستجد"]
[155,"امل عبدالعاطي احمد حسانين",31210012614465,"انثى","مسلم","الأول أ","سدد","مستجد"]
[156,"امل عماد محمود علي",31206012616142,"انثى","مسلم","الأول أ","سدد","مستجد"]
[157,"امنه ممدوح حشمت مدني",31204042605967,"انثى","مسلم","الأول أ","سدد","مستجد"]
[158,"اميره احمد محمد محمود",31201252608005,"انثى","مسلم","الأول أ","سدد","مستجد"]
[159,"ايريني صبري صدقي شنوده",31204242603101,"انثى","مسيحى","الأول أ","سدد","مستجد"]
[160,"ايمان محمد علي ابراهيم",31108102605202,"انثى","مسلم","الأول أ","سدد","مستجد"]
[161,"ايه خليفه محمد عبدالحق",31102082601843,"انثى","مسلم","الأول أ","سدد","مستجد"]
[162,"ايه محمد عبدالناصر كامل",31207152605384,"انثى","مسلم","الأول أ","سدد","مستجد"]
[163,"ايه منصور مشوادي محمود",31201252608927,"انثى","مسلم","الأول أ","سدد","مستجد"]
[164,"بسمه علي عبده علي",31210012614449,"انثى","مسلم","الأول أ","سدد","مستجد"]
[166,"بسمه يونس عبدالنظير نورالدين",31201012651825,"انثى","مسلم","الأول أ","سدد","مستجد"]
[167,"بسنت هشام شبيب عبدالراضي",31202222605288,"انثى","مسلم","الأول أ","سدد","مستجد"]
[168,"بشاير صلاح احمد سعدالدين",31112232600986,"انثى","مسلم","الأول أ","سدد","مستجد"]
[169,"بيان صلاح محمود احمد",31204242603047,"انثى","مسلم","الأول أ","سدد","مستجد"]
[170,"جنات تمام عبداللطيف محمد",31202012607784,"انثى","مسلم","الأول أ","سدد","مستجد"]
[171,"جنات رمضان رفاعي عبدالقادر",31203012605664,"انثى","مسلم","الأول أ","سدد","مستجد"]
[172,"جنات فاضل عبده احمد",31207202602209,"انثى","مسلم","الأول أ","سدد","مستجد"]
[173,"جنة الله حماده خلف عبدالهادي",31205202609405,"انثى","مسلم","الأول أ","سدد","مستجد"]
[174,"جنى حمدي احمد عبداللاه",31208012611526,"انثى","مسلم","الأول أ","سدد","مستجد"]
[175,"جيهاد الضاحي عبدالراضي عبدالموجود",31205102605887,"انثى","مسلم","الأول أ","سدد","مستجد"]
[176,"حبيبه رفاعي فوزي احمد",31207012616084,"انثى","مسلم","الأول أ","سدد","مستجد"]
[177,"حبيبه محمد فراج ابراهيم",31201252608021,"انثى","مسلم","الأول أ","سدد","مستجد"]
[178,"حسونه حمدي ابوالعلا خربطلي",31203012605702,"انثى","مسلم","الأول أ","سدد","مستجد"]
[179,"حليمه محمود محمد فهيم",31108042602764,"انثى","مسلم","الأول أ","سدد","مستجد"]
[180,"حنين السيد حسن محمد",31112162601386,"انثى","مسلم","الأول أ","سدد","مستجد"]
[181,"حنين السيد خليفه رسلان",31007102604264,"انثى","مسلم","الأول أ","سدد","مستجد"]
[182,"حنين خلف عزت محمود",31207152605244,"انثى","مسلم","الأول أ","سدد","مستجد"]
[183,"حنين قنديل على جادالكريم",31112022601009,"انثى","مسلم","الأول أ","سدد","مستجد"]
[184,"حنين وليد عبدالنظير عابدين",31111112617048,"انثى","مسلم","الأول أ","سدد","مستجد"]
[185,"خلود عاطف حمدي ابوالعلا",31201282603385,"انثى","مسلم","الأول أ","سدد","مستجد"]
[187,"داليا حسين عبدالنظير محمد",31111202602988,"انثى","مسلم","الأول أ","سدد","مستجد"]
[188,"داليا علي محمد طلب",31112142601924,"انثى","مسلم","الأول أ","سدد","مستجد"]
[189,"دعاء محمد علي صادق",31204042605886,"انثى","مسلم","الأول أ","سدد","مستجد"]
[190,"دنيا جمال عبدالعليم عجور",31202012607946,"انثى","مسلم","الأول أ","سدد","مستجد"]
[191,"دنيا عامر كليب صادق",31201102605601,"انثى","مسلم","الأول أ","سدد","مستجد"]
[192,"دينا عبدالشافي حمدان عبداللاه",31205052608529,"انثى","مسلم","الأول أ","سدد","مستجد"]
[193,"دينا عزت محمد فهيم",31205052608588,"انثى","مسلم","الأول أ","سدد","مستجد"]
[194,"رانيا احمد رفاعي احمد",31209012626007,"انثى","مسلم","الأول أ","سدد","مستجد"]
[195,"رتاج عبدالمؤمن عيد محمد",31202012607849,"انثى","مسلم","الأول أ","سدد","مستجد"]
[196,"رحاب عبدالخالق عبدالستار احمد",31109082602267,"انثى","مسلم","الأول أ","سدد","مستجد"]
[197,"رحمه ايمن حمدي مدني",31209012626023,"انثى","مسلم","الأول أ","سدد","مستجد"]
[198,"رشا محمد بكري محمد",31204042605908,"انثى","مسلم","الأول أ","سدد","مستجد"]
[199,"رشا مؤمن حسني علي",31012252601682,"انثى","مسلم","الأول أ","سدد","مستجد"]
[200,"روان علي محمود علي",31208012611461,"انثى","مسلم","الأول أ","سدد","مستجد"]
[201,"رويدا محمد عيد رضوان",31111022602025,"انثى","مسلم","الأول أ","سدد","مستجد"]
[202,"ريهام عبدالرحمن فهلي عبدالسلام",31208202606464,"انثى","مسلم","الأول أ","سدد","مستجد"]
[203,"زاهيه ابراهيم منصور رضا",31205052608561,"انثى","مسلم","الأول أ","سدد","مستجد"]
[204,"زهراء حماده موسى كامل",31205012617983,"انثى","مسلم","الأول أ","سدد","مستجد"]
[205,"زهره عبدالعال عبدالحميد عبدالعال",31106052601585,"انثى","مسلم","الأول أ","سدد","مستجد"]
[206,"ساره عبدالحارس صابر مرسي",31003012603786,"انثى","مسلم","الأول أ","سدد","مستجد"]
[207,"سلمى محمود محمد عجور",31207102606363,"انثى","مسلم","الأول أ","سدد","مستجد"]
[208,"سمر سالم فتحي مدني",31208012611747,"انثى","مسلم","الأول أ","سدد","مستجد"]
[209,"شاهندا ابوالحجاج محمد ثابت",31112012613424,"انثى","مسلم","الأول أ","سدد","مستجد"]
[210,"شاهنده عبدالشافي علي حافظ",31201012619883,"انثى","مسلم","الأول أ","سدد","مستجد"]
[211,"شروق عبدالرحيم محمود عبدالرحيم",31107012613005,"انثى","مسلم","الأول أ","سدد","مستجد"]
[212,"شمس رمضان حمدي عجور",31202012607806,"انثى","مسلم","الأول أ","سدد","مستجد"]
[213,"شهد السيد جادالكريم احمد",31205202609448,"انثى","مسلم","الأول أ","سدد","مستجد"]
[214,"شهد عامر عبدالحميد حفني",31205052608545,"انثى","مسلم","الأول أ","سدد","مستجد"]
[215,"شهد عثمان فهلي محمد",31103032603582,"انثى","مسلم","الأول أ","سدد","مستجد"]
[216,"شهد محمد حشمت محمد",31109202601944,"انثى","مسلم","الأول أ","سدد","مستجد"]
[217,"شهد يسين عسران السيد",31109052607183,"انثى","مسلم","الأول أ","سدد","مستجد"]
[218,"شهده رمضان علي ابوالحسن",31112022601041,"انثى","مسلم","الأول أ","سدد","مستجد"]
[219,"شيرين الشنبري حشمت محمد",31205052608626,"انثى","مسلم","الأول أ","سدد","مستجد"]
[220,"شيرين عمار سعدالدين ابراهيم",31106122603009,"انثى","مسلم","الأول أ","سدد","مستجد"]
[221,"شيماء حمدي محمد حسن",31209202601264,"انثى","مسلم","الأول أ","سدد","مستجد"]
[222,"شيماء محمد ابراهيم توفيق",31110202603902,"انثى","مسلم","الأول أ","سدد","مستجد"]
[223,"صباح محمد عبدالعزيز ابراهيم",31207012616068,"انثى","مسلم","الأول أ","سدد","مستجد"]
[224,"صبرين زيدان هلال زيدان",31111202602848,"انثى","مسلم","الأول أ","سدد","مستجد"]
[225,"عائشه حازم رمضان محمود",31203202604303,"انثى","مسلم","الأول أ","سدد","مستجد"]
[226,"عبير متولي عبداللاه صابر",31110222603488,"انثى","مسلم","الأول أ","سدد","مستجد"]
[227,"عزه قناوي الضبع جادالكريم احمد",31103122602569,"انثى","مسلم","الأول أ","سدد","مستجد"]
[228,"عفاف راضي يونس ابراهيم",31110012613367,"انثى","مسلم","الأول أ","سدد","مستجد"]
[229,"علا عاطف حمدي ابوالعلا",31006202602181,"انثى","مسلم","الأول أ","سدد","مستجد"]
[230,"فاطمه السيد محمد السيد",31202012607822,"انثى","مسلم","الأول أ","سدد","مستجد"]
[231,"فاطمه رفعت عبدالغفار عثمان",31110162601642,"انثى","مسلم","الأول أ","سدد","مستجد"]
[232,"فاطمه عبدالموجود تمساح عبدالموجود",31201252608048,"انثى","مسلم","الأول أ","سدد","مستجد"]
[233,"فرح سلامه عبدالحميد عبدالعال",31203202603005,"انثى","مسلم","الأول أ","سدد","مستجد"]
[234,"كريمان عبدالهادى أحمد عبدالعظيم",31204242603063,"انثى","مسلم","الأول أ","سدد","مستجد"]
[235,"مايا عاطف احمد عبداللاه",31208202606405,"انثى","مسلم","الأول أ","سدد","مستجد"]
[236,"مروه عمر حامد محمد",31202122602508,"انثى","مسلم","الأول أ","سدد","مستجد"]
[237,"مروه محمد علي حافظ",31208202606367,"انثى","مسلم","الأول أ","سدد","مستجد"]
[238,"مريم ابراهيم العراقي عبداللاه",31209052604642,"انثى","مسلم","الأول أ","سدد","مستجد"]
[239,"مريم رمضان حشمت مدني",31207012616106,"انثى","مسلم","الأول أ","سدد","مستجد"]
[240,"مريم علاء زهران عبدالنبي",31208012625926,"انثى","مسلم","الأول أ","سدد","مستجد"]
[241,"مريم ناجح العربي عبدلي",31106122602983,"انثى","مسلم","الأول أ","سدد","مستجد"]
[242,"مريم ناصر العبد محمد",31108012615624,"انثى","مسلم","الأول أ","سدد","مستجد"]
[243,"ملك اشرف السيد عوض",31201012624585,"انثى","مسلم","الأول أ","سدد","مستجد"]
[244,"ملك بخيت عبدالراضي السيد",31106092600743,"انثى","مسلم","الأول أ","سدد","مستجد"]
[245,"ملك حماده العربى عاكف",31201102605563,"انثى","مسلم","الأول أ","سدد","مستجد"]
[246,"ملك حمام عدلي محمد",31208012625985,"انثى","مسلم","الأول أ","سدد","مستجد"]
[247,"ملك رياض حشمت محمد",31108042602748,"انثى","مسلم","الأول أ","سدد","مستجد"]
[248,"ملك شعبان العربي توفيق",31106122602967,"انثى","مسلم","الأول أ","سدد","مستجد"]
[249,"ملك عصمت حمدان مصطفى",31209012625981,"انثى","مسلم","الأول أ","سدد","مستجد"]
[250,"ملك عمادالدين عبدالرحمن علي طلب",31209012626287,"انثى","مسلم","الأول أ","سدد","مستجد"]
[251,"ملك قاعود حمدى احمد",31204142602825,"انثى","مسلم","الأول أ","سدد","مستجد"]
[252,"ملك محروس حسن محمد",31205202609421,"انثى","مسلم","الأول أ","سدد","مستجد"]
[253,"ملك معلاوي شحاته شاكر",31207262600566,"انثى","مسلم","الأول أ","سدد","مستجد"]
[254,"منار عمر كمال أحمد",31111102606285,"انثى","مسلم","الأول أ","سدد","مستجد"]
[255,"منه محمد محمود عبدالعظيم",31208012625969,"انثى","مسلم","الأول أ","سدد","مستجد"]
[256,"ندى شحاته الضبع جادالكريم",31101122602663,"انثى","مسلم","الأول أ","سدد","مستجد"]
[257,"ندى عبدالحميد محمد عبدالحميد",31205292602285,"انثى","مسلم","الأول أ","سدد","مستجد"]
[258,"نرمين ربيع عبدالواحد التهامي",31201102601681,"انثى","مسلم","الأول أ","سدد","مستجد"]
[259,"نسمه محمود قنعاوي مدني",31104232601882,"انثى","مسلم","الأول أ","سدد","مستجد"]
[260,"نور اسعد الديب فندي",31204012619467,"انثى","مسلم","الأول أ","سدد","مستجد"]
[261,"نور العبد عمر حسن",31207012616122,"انثى","مسلم","الأول أ","سدد","مستجد"]
[262,"نور ربيع عطيه محمد فندي",31112102601867,"انثى","مسلم","الأول أ","سدد","مستجد"]
[263,"نور صلاح أحمد محمد",31111202609869,"انثى","مسلم","الأول أ","سدد","مستجد"]
[264,"نور ناصر محمد حمدي",31205012618203,"انثى","مسلم","الأول أ","سدد","مستجد"]
[265,"نورا عبدالفتاح محمد عبدالحكيم",31103292601923,"انثى","مسلم","الأول أ","سدد","مستجد"]
[266,"نوران ايمن راجح السيد",31111112617005,"انثى","مسلم","الأول أ","سدد","مستجد"]
[267,"نوره عاطف زهمول محمد",31205052608642,"انثى","مسلم","الأول أ","سدد","مستجد"]
[268,"نورهان رفعت سيف النصر علي",31206152604403,"انثى","مسلم","الأول أ","سدد","مستجد"]
[269,"نورهان عوض محمود زيدان",31208012625861,"انثى","مسلم","الأول أ","سدد","مستجد"]
[270,"نيجار خلف ابوالعلا احمد",31201012619824,"انثى","مسلم","الأول أ","سدد","مستجد"]
[271,"هاجر ابراهيم كيلاني محمد",31112162601424,"انثى","مسلم","الأول أ","سدد","مستجد"]
[272,"هاجر هيثم حمدي مدني",31110202603961,"انثى","مسلم","الأول أ","سدد","مستجد"]
[273,"هاله محمد صابر عبداللطيف",31209012626082,"انثى","مسلم","الأول أ","سدد","مستجد"]
[274,"هبه محمود فايز محمد",31209012626104,"انثى","مسلم","الأول أ","سدد","مستجد"]
[275,"هدى عيد مصطفى محمد",31203102604268,"انثى","مسلم","الأول أ","سدد","مستجد"]
[276,"هنا عبدالحميد محمود محمد",31104052604425,"انثى","مسلم","الأول أ","سدد","مستجد"]
[277,"ولاء طارق هلال زيدان",31104102608362,"انثى","مسلم","الأول أ","سدد","مستجد"]
[278,"ياسمين احمد عسران محمد",31011012611986,"انثى","مسلم","الأول أ","سدد","مستجد"]
[279,"ياسمين حمدي مصطفى النادى كمال",31111202603046,"انثى","مسلم","الأول أ","سدد","مستجد"]
[280,"ياسمين علي كمال عبدالمجيد",31202122602443,"انثى","مسلم","الأول أ","سدد","مستجد"]
[281,"ياسمين واليد احمد محمد",31102222601288,"انثى","مسلم","الأول أ","سدد","مستجد"]
[282,"ياسمينه ايمن قنديل احمد",31110012613405,"انثى","مسلم","الأول أ","سدد","مستجد"]
[1,"ابراهيم احمد عبد العزيز ابراهيم",31101012627695,"ذكر","مسلم","الثاني أ","سدد","مستجد"]
[2,"ابراهيم كامل ابراهيم جادالرب",31105052604499,"ذكر","مسلم","الثاني أ","سدد","مستجد"]
[4,"احمد رمضان عبدالستار عبدالمعبود",31103022602057,"ذكر","مسلم","الثاني أ","سدد","مستجد"]
[5,"احمد سليمان احمد على",31009202605694,"ذكر","مسلم","الثاني أ","سدد","مستجد"]
[10,"اسلام عمر رمضان شفاعي",31104112603156,"ذكر","مسلم","الثاني أ","سدد","مستجد"]
[12,"اسلام محمود على صادق",31012102601692,"ذكر","مسلم","الثاني أ","سدد","مستجد"]
[15,"المعتصم بالله عبدالراضى على بديوى",31102122600977,"ذكر","مسلم","الثاني أ","سدد","مستجد"]
[16,"ايمن رجب عبدالعزيز محمد",31103122602291,"ذكر","مسلم","الثاني أ","سدد","مستجد"]
[20,"بشير خلف صديق عبداللاه",31108202607954,"ذكر","مسلم","الثاني أ","سدد","مستجد"]
[21,"بهاء عوض حسونه حسانين",31108012618054,"ذكر","مسلم","الثاني أ","سدد","مستجد"]
[24,"حسام رشاد وعد محمد",31102082602157,"ذكر","مسلم","الثاني أ","سدد","مستجد"]
[26,"حماده محمد عباس السيد",31102052603175,"ذكر","مسلم","الثاني أ","سدد","مستجد"]
[27,"حمدى اشرف حمدى محمد",31103192602078,"ذكر","مسلم","الثاني أ","سدد","مستجد"]
[29,"خالد شعبان صابر رضا",31008012613112,"ذكر","مسلم","الثاني أ","سدد","مستجد"]
[31,"خالد ناصر فتحي احمد",31101012627717,"ذكر","مسلم","الثاني أ","سدد","مستجد"]
[33,"زياد احمد كمال محمد",31012202601274,"ذكر","مسلم","الثاني أ","سدد","مستجد"]
[34,"زياد علي كامل محمد",31011062603119,"ذكر","مسلم","الثاني أ","سدد","مستجد"]
[35,"سيف أحمد عبدالفتاح محمود",31107012615636,"ذكر","مسلم","الثاني أ","سدد","مستجد"]
[38,"ضياء عبداللاه عبدالرازق علي",31011062604336,"ذكر","مسلم","الثاني أ","سدد","مستجد"]
[39,"طارق بيومى موسى كامل",31104012616617,"ذكر","مسلم","الثاني أ","سدد","مستجد"]
[42,"عبدالحميد احمد طاهر بهلول",31103192602116,"ذكر","مسلم","الثاني أ","سدد","مستجد"]
[46,"عبدالخالق علي احمد بطيخ",31010142601374,"ذكر","مسلم","الثاني أ","سدد","مستجد"]
[49,"عبدالرحمن عطا احمد صديق",31101062601077,"ذكر","مسلم","الثاني أ","سدد","مستجد"]
[54,"عبداللاه صبري فوزي محمود",31107202608016,"ذكر","مسلم","الثاني أ","سدد","مستجد"]
[57,"عبدالله عبدالراضي زكي عثمان",31107072605753,"ذكر","مسلم","الثاني أ","سدد","مستجد"]
[60,"عبدالله قنعاوي خليفه فاضل",31109202602096,"ذكر","مسلم","الثاني أ","سدد","مستجد"]
[64,"عبدالله هاشم احمد بطيخ",31103222602515,"ذكر","مسلم","الثاني أ","سدد","مستجد"]
[65,"علاء احمد حمدى قايد",31105142601839,"ذكر","مسلم","الثاني أ","سدد","مستجد"]
[66,"علي رمضان خلف محمد",30910122602193,"ذكر","مسلم","الثاني أ","سدد","مستجد"]
[72,"قاسم صلاح محمود أحمد",31012012615813,"ذكر","مسلم","الثاني أ","سدد","مستجد"]
[73,"كريم ابوبكر مختار محمد",31105052604332,"ذكر","مسلم","الثاني أ","سدد","مستجد"]
[78,"كريم عنتر ابراهيم عبدالحميد",31109082602038,"ذكر","مسلم","الثاني أ","سدد","مستجد"]
[80,"محمد احمد كمال محمد",31012202601258,"ذكر","مسلم","الثاني أ","سدد","مستجد"]
[81,"محمد جمال خلف أحمد",31102112601355,"ذكر","مسلم","الثاني أ","سدد","مستجد"]
[84,"محمد رفاعى عبدالغفار عثمان",31102012603172,"ذكر","مسلم","الثاني أ","سدد","مستجد"]
[87,"محمد عامر خلف احمد",31103202606735,"ذكر","مسلم","الثاني أ","سدد","مستجد"]
[89,"محمد عبدالحميد صديق عبدالمجيد",31102012603156,"ذكر","مسلم","الثاني أ","سدد","مستجد"]
[90,"محمد عبدالحميد عمر حسن",31110012612077,"ذكر","مسلم","الثاني أ","سدد","مستجد"]
[92,"محمد عبدالغفار احمد عبدالغفار",31010142601358,"ذكر","مسلم","الثاني أ","سدد","مستجد"]
[93,"محمد عبدالفتاح حماد عبدالمبدى",31012012615856,"ذكر","مسلم","الثاني أ","سدد","مستجد"]
[96,"محمد علي محمود صابر",31106122602975,"ذكر","مسلم","الثاني أ","سدد","مستجد"]
[97,"محمد عمرو مرعي علي",31105302601377,"ذكر","مسلم","الثاني أ","سدد","مستجد"]
[99,"محمد محمود جادالكريم حسن",31105312600719,"ذكر","مسلم","الثاني أ","سدد","مستجد"]
[101,"محمود حربي عبدالسميع ابوالحسن",31010062602493,"ذكر","مسلم","الثاني أ","سدد","مستجد"]
[103,"محمود عادل عبدالسميع عبداللطيف",31011062603054,"ذكر","مسلم","الثاني أ","سدد","مستجد"]
[105,"محمود قناوى عبدالراضى عبدلى",31101122602973,"ذكر","مسلم","الثاني أ","سدد","مستجد"]
[106,"محمود محمد حناوي توفيق",31010062602515,"ذكر","مسلم","الثاني أ","سدد","مستجد"]
[107,"محمود مصطفى محمود عبداللاه",31011072603095,"ذكر","مسلم","الثاني أ","سدد","مستجد"]
[109,"مروان محمد على بديوى",31101122602914,"ذكر","مسلم","الثاني أ","سدد","مستجد"]
[111,"مصطفى سعد علي احمد",31101102601415,"ذكر","مسلم","الثاني أ","سدد","مستجد"]
[112,"مصطفى طه فتح الباب محمد طه",31107072605834,"ذكر","مسلم","الثاني أ","سدد","مستجد"]
[113,"مصطفى عادل عبدالباقى احمد",31101232601395,"ذكر","مسلم","الثاني أ","سدد","مستجد"]
[114,"مكاريوس يسري بخيت جرجس",31106202607153,"ذكر","مسيحى","الثاني أ","سدد","مستجد"]
[115,"منصور إبراهيم منصور رضا",31012252602115,"ذكر","مسلم","الثاني أ","سدد","مستجد"]
[116,"هيثم عيد مصطفى محمد",31103232602572,"ذكر","مسلم","الثاني أ","سدد","مستجد"]
[117,"وليد نورالدين حمدي قايد",31011012612931,"ذكر","مسلم","الثاني أ","سدد","مستجد"]
[118,"ياسر عرفات الديب فندي",31011012612915,"ذكر","مسلم","الثاني أ","سدد","مستجد"]
[119,"يوسف احمد رجائى عبدالمنصف",31107072605699,"ذكر","مسلم","الثاني أ","سدد","مستجد"]
[127,"اثنات عصمت حمدان مصطفى",31101122602647,"انثى","مسلم","الثاني أ","سدد","مستجد"]
[129,"اسماء احمد حناوي جيلاني",31108012615586,"انثى","مسلم","الثاني أ","سدد","مستجد"]
[130,"اسماء احمد محمد احمد",31010252606002,"انثى","مسلم","الثاني أ","سدد","مستجد"]
[135,"اكرام كرم عبد الرحيم السمان",31012252601607,"انثى","مسلم","الثاني أ","سدد","مستجد"]
[138,"اميره الشبراوي عبده علي",31102012615065,"انثى","مسلم","الثاني أ","سدد","مستجد"]
[139,"اميمه حسين محمد السيد",31102082601487,"انثى","مسلم","الثاني أ","سدد","مستجد"]
[140,"امينه ايمن حمدي مدني",31105142602169,"انثى","مسلم","الثاني أ","سدد","مستجد"]
[141,"ايه احمد محمود احمد",31010142601404,"انثى","مسلم","الثاني أ","سدد","مستجد"]
[142,"ايه عبود أحمد محمود",31107142602404,"انثى","مسلم","الثاني أ","سدد","مستجد"]
[143,"ايه عمر محمود محمد",31104202603546,"انثى","مسلم","الثاني أ","سدد","مستجد"]
[146,"جنات جمعه مفتاح محمد",31107012615202,"انثى","مسلم","الثاني أ","سدد","مستجد"]
[147,"جنة الله رسلان صابر زيدان",30912062603066,"انثى","مسلم","الثاني أ","سدد","مستجد"]
[150,"حبيبه اشرف احمد عبدالرحمن",31102012602648,"انثى","مسلم","الثاني أ","سدد","مستجد"]
[151,"حبيبه عبدالرازق بخيت علي",31010252601221,"انثى","مسلم","الثاني أ","سدد","مستجد"]
[154,"حفصه اسعد احمد زيدان",31006202602262,"انثى","مسلم","الثاني أ","سدد","مستجد"]
[155,"حفصه ايمن حمدان جبريل",31103192602043,"انثى","مسلم","الثاني أ","سدد","مستجد"]
[157,"حنين السيد احمد صديق",31106122604862,"انثى","مسلم","الثاني أ","سدد","مستجد"]
[159,"حنين عرفات محمود عبد المطلب",31011232603321,"انثى","مسلم","الثاني أ","سدد","مستجد"]
[161,"خلود ابراهيم احمد جادالكريم",31011062602902,"انثى","مسلم","الثاني أ","سدد","مستجد"]
[163,"دنيا ابو السعود فتحي عبد الموجود",31011202606121,"انثى","مسلم","الثاني أ","سدد","مستجد"]
[164,"رانيا محمود صابر مرسي",31102122601027,"انثى","مسلم","الثاني أ","سدد","مستجد"]
[165,"رحاب احمد محمد على",31009012609863,"انثى","مسلم","الثاني أ","سدد","مستجد"]
[169,"ريهام عادل محمد فهيم",31009012622363,"انثى","مسلم","الثاني أ","سدد","مستجد"]
[174,"ساره ابراهيم عبده ابوالعلا",31012012614604,"انثى","مسلم","الثاني أ","سدد","مستجد"]
[175,"شروق شحاتة يونس ابراهيم",31012012621708,"انثى","مسلم","الثاني أ","سدد","مستجد"]
[176,"شهد جابر احمد سليمان",31107012612963,"انثى","مسلم","الثاني أ","سدد","مستجد"]
[181,"صفاء ابراهيم محمد علي",31105052604049,"انثى","مسلم","الثاني أ","سدد","مستجد"]
[182,"عزه عبدالراضي عبداللطيف علي",31109012616341,"انثى","مسلم","الثاني أ","سدد","مستجد"]
[184,"فاطمه قنديل الديب فندي محمد",31108042602802,"انثى","مسلم","الثاني أ","سدد","مستجد"]
[185,"فاطمه كليب على خربطلى",31003142600746,"انثى","مسلم","الثاني أ","سدد","مستجد"]
[188,"قمر ايمن رضا عابدين",31102172601249,"انثى","مسلم","الثاني أ","سدد","مستجد"]
[192,"مروه محمود فايز محمد",31102052603744,"انثى","مسلم","الثاني أ","سدد","مستجد"]
[194,"مريم بسيوني مهران محمد",31010142601366,"انثى","مسلم","الثاني أ","سدد","مستجد"]
[195,"ملك رفاعى بخيت مدنى",31106202606645,"انثى","مسلم","الثاني أ","سدد","مستجد"]
[197,"ملك عامر محمد عبد الباسط",31012102601625,"انثى","مسلم","الثاني أ","سدد","مستجد"]
[198,"ملك علي عثمان علي",31107142602447,"انثى","مسلم","الثاني أ","سدد","مستجد"]
[199,"ملك محمد زكى عثمان",31010252601248,"انثى","مسلم","الثاني أ","سدد","مستجد"]
[200,"منار احمد الديب احمد",31105202604263,"انثى","مسلم","الثاني أ","سدد","مستجد"]
[201,"منار هيثم حمدي مدني",31012122608405,"انثى","مسلم","الثاني أ","سدد","مستجد"]
[202,"منى عبد الناصر محمد عبد الراضي",31005012603029,"انثى","مسلم","الثاني أ","سدد","مستجد"]
[204,"نجلاء عبدالرحيم محمد عبدالرحيم",31109082602089,"انثى","مسلم","الثاني أ","سدد","مستجد"]
[205,"ندى عبدالواحد صابر مرسي",31102122600985,"انثى","مسلم","الثاني أ","سدد","مستجد"]
[206,"ندى علاء محمد عبد اللاه",31102242601985,"انثى","مسلم","الثاني أ","سدد","مستجد"]
[213,"هاجر عبد الحميد طاهر بهلول",31101122602701,"انثى","مسلم","الثاني أ","سدد","مستجد"]
[214,"هاجر عبدالمنصف عبدالحميد رضا",31109202601901,"انثى","مسلم","الثاني أ","سدد","مستجد"]
[215,"هاله ابو الحجاج محمود ابراهيم",31105202604247,"انثى","مسلم","الثاني أ","سدد","مستجد"]
[217,"هناء جابر مصطفي النادى",31010142601463,"انثى","مسلم","الثاني أ","سدد","مستجد"]
[219,"ولاء معلاوى شحاتة شاكر",31012102601609,"انثى","مسلم","الثاني أ","سدد","مستجد"]
[220,"ياسمين جمعه مفتاح محمد",31107012615229,"انثى","مسلم","الثاني أ","سدد","مستجد"]
[221,"ياسمين حماده عبدالصبور حسين",31011122600823,"انثى","مسلم","الثاني أ","سدد","مستجد"]
[222,"ياسمين سلامه فتحي عبد الموجود",31105052604103,"انثى","مسلم","الثاني أ","سدد","مستجد"]
[223,"ياسمين سيف النصر عبدالسلام حسين",31106162603265,"انثى","مسلم","الثاني أ","سدد","مستجد"]
[1,"ابوالمجد كرم ابوالمجد على",31004102605113,"ذكر","مسلم","الثالث أ","سدد","مستجد"]
[2,"احمد الجرو عبدالحميد جميل",31005202603297,"ذكر","مسلم","الثالث أ","سدد","مستجد"]
[5,"احمد حمدى محمد حسن",30910252604597,"ذكر","مسلم","الثالث أ","سدد","مستجد"]
[6,"احمد عبدالموجود تمساح عبدالموجود",31001012602558,"ذكر","مسلم","الثالث أ","سدد","مستجد"]
[7,"احمد علي محمد عبدالله",31007242603179,"ذكر","مسلم","الثالث أ","سدد","مستجد"]
[8,"ادهم عبدالمنصف كليب صابر",31004242601975,"ذكر","مسلم","الثالث أ","سدد","مستجد"]
[10,"اسامه حسين احمد بطيخ",31002132603139,"ذكر","مسلم","الثالث أ","سدد","مستجد"]
[13,"اسلام عيد صابر رضا",31003212601737,"ذكر","مسلم","الثالث أ","سدد","مستجد"]
[14,"ايمن تلاصون سعيد جرجس",30911022600971,"ذكر","مسيحى","الثالث أ","سدد","مستجد"]
[16,"توفيق ضاحى العبد محمد",31009252607051,"ذكر","مسلم","الثالث أ","سدد","مستجد"]
[17,"جرجس ماهر عبدالله جبرائيل",31008102603752,"ذكر","مسيحى","الثالث أ","سدد","مستجد"]
[19,"حسن مختار عبد النعيم عبد السميع",31002202605312,"ذكر","مسلم","الثالث أ","سدد","مستجد"]
[20,"حسن مطاوع حنفي محمد",31003012603611,"ذكر","مسلم","الثالث أ","سدد","مستجد"]
[21,"حمدي شعبان محمد عثمان",31008012613236,"ذكر","مسلم","الثالث أ","سدد","مستجد"]
[24,"خالد عاطف عبدالعليم عوض",31005152602936,"ذكر","مسلم","الثالث أ","سدد","مستجد"]
[25,"زياد محمد محمود حمزه",31003142601211,"ذكر","مسلم","الثالث أ","سدد","مستجد"]
[26,"زياد محمدالسعيد على بدوى",31001012602515,"ذكر","مسلم","الثالث أ","سدد","مستجد"]
[27,"سالمان طه صابر محمد",31008142603496,"ذكر","مسلم","الثالث أ","سدد","مستجد"]
[28,"سليمان عبدالجبار احمد سليمان",31008142603313,"ذكر","مسلم","الثالث أ","سدد","مستجد"]
[30,"صبري خلف عبدالعظيم محمد",31002082600796,"ذكر","مسلم","الثالث أ","سدد","مستجد"]
[31,"طارق عباس شبيب على",31004182602438,"ذكر","مسلم","الثالث أ","سدد","مستجد"]
[34,"عبدالرحمن رجب فهيم عبدالعاطى",31005032602991,"ذكر","مسلم","الثالث أ","سدد","مستجد"]
[35,"عبدالرحمن عبد الحميد عبد الراضى عبد الموجود",30911262600316,"ذكر","مسلم","الثالث أ","سدد","مستجد"]
[37,"عبدالرحمن وليد رفعت حشمت",31006222603699,"ذكر","مسلم","الثالث أ","سدد","مستجد"]
[38,"عبداللطيف رمضان عبداللطيف محمد",31007172601971,"ذكر","مسلم","الثالث أ","سدد","مستجد"]
[43,"عبدالله رمضان حماد احمد",31003012603476,"ذكر","مسلم","الثالث أ","سدد","مستجد"]
[45,"عبدالله عامر عبدالحميد حفنى",30912122602994,"ذكر","مسلم","الثالث أ","سدد","مستجد"]
[46,"عبدالله محمود على محمود",31001172600853,"ذكر","مسلم","الثالث أ","سدد","مستجد"]
[49,"عسران جلال السيد جادالكريم",30902152603299,"ذكر","مسلم","الثالث أ","سدد","مستجد"]
[51,"علاء مبارك عبدالغفار عثمان",31008142603275,"ذكر","مسلم","الثالث أ","سدد","مستجد"]
[53,"على محمد على حافظ",31002142600936,"ذكر","مسلم","الثالث أ","سدد","مستجد"]
[56,"عمر خالد ابراهيم توفيق",31006062602534,"ذكر","مسلم","الثالث أ","سدد","مستجد"]
[57,"عمرو العبد عمر حسن",30911222600372,"ذكر","مسلم","الثالث أ","سدد","مستجد"]
[58,"عمرو ايمن راجح السيد",31001012602574,"ذكر","مسلم","الثالث أ","سدد","مستجد"]
[59,"عمرو قاعود حمدى أحمد",31003252602914,"ذكر","مسلم","الثالث أ","سدد","مستجد"]
[61,"غانم صلاح مختار محمد",31006202602939,"ذكر","مسلم","الثالث أ","سدد","مستجد"]
[62,"فارس ابوالعلا محمد عبدالاه",31001102601895,"ذكر","مسلم","الثالث أ","سدد","مستجد"]
[64,"كرم عبده جادالكريم رضوان",31008142603291,"ذكر","مسلم","الثالث أ","سدد","مستجد"]
[65,"كريم ربيع محمد الكحلاوي ابراهيم",31008012623878,"ذكر","مسلم","الثالث أ","سدد","مستجد"]
[66,"كريم صالح عبدالكريم أبوالحمد",31006222603575,"ذكر","مسلم","الثالث أ","سدد","مستجد"]
[68,"كيرلس ايمن سعيد جرجس",31001192600051,"ذكر","مسيحى","الثالث أ","سدد","مستجد"]
[70,"محمد احمد محمد محمود",31007012612438,"ذكر","مسلم","الثالث أ","سدد","مستجد"]
[75,"محمد رمضان رفاعى عبد القادر",31007192602273,"ذكر","مسلم","الثالث أ","سدد","مستجد"]
[76,"محمد عاشور محمد فايز",31006222603656,"ذكر","مسلم","الثالث أ","سدد","مستجد"]
[77,"محمد عبد الراضى زكى عثمان",31009012623394,"ذكر","مسلم","الثالث أ","سدد","مستجد"]
[79,"محمد عرفات ابوالمجد على",30911222600453,"ذكر","مسلم","الثالث أ","سدد","مستجد"]
[80,"محمد على محمود على",31003212601699,"ذكر","مسلم","الثالث أ","سدد","مستجد"]
[81,"محمود ابراهيم العراقى عبداللاه",31008242603515,"ذكر","مسلم","الثالث أ","سدد","مستجد"]
[82,"محمود احمد حمدى عبدالعال",31005262601838,"ذكر","مسلم","الثالث أ","سدد","مستجد"]
[85,"محمود عبد العاطي زكي ابو المجد",31001172600799,"ذكر","مسلم","الثالث أ","سدد","مستجد"]
[87,"محمود مشوادى احمد ابراهيم",31006102604292,"ذكر","مسلم","الثالث أ","سدد","مستجد"]
[90,"معاز حميد صدقى عبداللطيف",31004012612196,"ذكر","مسلم","الثالث أ","سدد","مستجد"]
[95,"ياسين علاء على السيد",30908092603292,"ذكر","مسلم","الثالث أ","سدد","مستجد"]
[96,"يوسف حمدى احمد بطيخ",31002082600699,"ذكر","مسلم","الثالث أ","سدد","مستجد"]
[100,"اسراء عابدين عبدالنظير نورالدين",31008102603701,"انثى","مسلم","الثالث أ","سدد","مستجد"]
[101,"اسراء عادل الصافى سباق",31001172600748,"انثى","مسلم","الثالث أ","سدد","مستجد"]
[106,"اسماء على احمد زيدان",31005202602703,"انثى","مسلم","الثالث أ","سدد","مستجد"]
[108,"امل وافى عبدالراؤف رضا",31008102603728,"انثى","مسلم","الثالث أ","سدد","مستجد"]
[110,"انجى عبدالصبور السيد موسى",30911172602883,"انثى","مسلم","الثالث أ","سدد","مستجد"]
[113,"بسمه صديق على السيد",31007242602423,"انثى","مسلم","الثالث أ","سدد","مستجد"]
[114,"جنات حشمت احمد برعي",31006012616046,"انثى","مسلم","الثالث أ","سدد","مستجد"]
[117,"حبيبه مصطفى احمد بطيخ",31007012611229,"انثى","مسلم","الثالث أ","سدد","مستجد"]
[118,"حنان عزالعرب كليب صادق",31004012612404,"انثى","مسلم","الثالث أ","سدد","مستجد"]
[120,"حنين محمد عيد رضوان",30910012630604,"انثى","مسلم","الثالث أ","سدد","مستجد"]
[122,"خلود ايمن على عبدالعظيم",30911082600903,"انثى","مسلم","الثالث أ","سدد","مستجد"]
[124,"دعاء احمد محمود عبد اللاه",30910102602928,"انثى","مسلم","الثالث أ","سدد","مستجد"]
[129,"روان حماده خلف عبدالهادى",31008102603647,"انثى","مسلم","الثالث أ","سدد","مستجد"]
[133,"ريهام سالم عبدالعليم محمد",31003032602786,"انثى","مسلم","الثالث أ","سدد","مستجد"]
[136,"ساره كمال احمد عبدالمولى",31005072601629,"انثى","مسلم","الثالث أ","سدد","مستجد"]
[137,"سحر احمد رفاعى احمد",31007012611245,"انثى","مسلم","الثالث أ","سدد","مستجد"]
[138,"سمر عبدالرحمن عبداللطيف على",30901182602843,"انثى","مسلم","الثالث أ","سدد","مستجد"]
[141,"شرين الجرو عبدالحميد جميل",31005202602681,"انثى","مسلم","الثالث أ","سدد","مستجد"]
[142,"شهد جمال عبدالحميد أحمد",31002142600669,"انثى","مسلم","الثالث أ","سدد","مستجد"]
[146,"شهد وليد عيد محمد",30910012619589,"انثى","مسلم","الثالث أ","سدد","مستجد"]
[147,"شيرين ابوبكر مختار محمد",30904012602163,"انثى","مسلم","الثالث أ","سدد","مستجد"]
[149,"شيماء عباس احمد زيدان",30911082600946,"انثى","مسلم","الثالث أ","سدد","مستجد"]
[154,"عبير عيد رمضان علي",31005012603061,"انثى","مسلم","الثالث أ","سدد","مستجد"]
[156,"فاطمه شحات احمد عبد الحق",31009252606527,"انثى","مسلم","الثالث أ","سدد","مستجد"]
[158,"فرحه الجيلانى عاصم توفيق",31001242600767,"انثى","مسلم","الثالث أ","سدد","مستجد"]
[159,"فرحه محمد طاهر بهلول",31006222603087,"انثى","مسلم","الثالث أ","سدد","مستجد"]
[163,"مروه احمد اسماعيل احمد",31007102604345,"انثى","مسلم","الثالث أ","سدد","مستجد"]
[164,"مروه رمضان حمدي عجور",31003012603824,"انثى","مسلم","الثالث أ","سدد","مستجد"]
[165,"مريم عبدالحميد ابراهيم كامل",31009012622401,"انثى","مسلم","الثالث أ","سدد","مستجد"]
[170,"ملك على ابراهيم احمد",31007012611148,"انثى","مسلم","الثالث أ","سدد","مستجد"]
[172,"ملك محمد عبدالراووف رضا",30910122602266,"انثى","مسلم","الثالث أ","سدد","مستجد"]
[175,"منه عبدالخالق محمد جميل",30908232603344,"انثى","مسلم","الثالث أ","سدد","مستجد"]
[177,"نجلاء احمد عسران محمد",30911082600849,"انثى","مسلم","الثالث أ","سدد","مستجد"]
[178,"ندى رياض حشمت محمد",31005202602789,"انثى","مسلم","الثالث أ","سدد","مستجد"]
[181,"نور سامى العربى كامل",30911082600962,"انثى","مسلم","الثالث أ","سدد","مستجد"]
[184,"نورهان عبدالعليم حمدى عجور",30910252604481,"انثى","مسلم","الثالث أ","سدد","مستجد"]
[185,"هاجر نورالدين أحمد عبدالعظيم",30911012612564,"انثى","مسلم","الثالث أ","سدد","مستجد"]
[190,"هنادى مازن كامل طلب",31003102607861,"انثى","مسلم","الثالث أ","سدد","مستجد"]
[192,"ولاء احمد رفاعي احمد",30801132603429,"انثى","مسلم","الثالث أ","سدد","مستجد"]
[193,"ولاء احمد محمود ابراهيم",31008032602869,"انثى","مسلم","الثالث أ","سدد","مستجد"]
[196,"ياسمين عاطف احمد عبداللاه",31008202605043,"انثى","مسلم","الثالث أ","سدد","مستجد"]
[198,"ياسمين محمود احمد علي",31006102603709,"انثى","مسلم","الثالث أ","سدد","مستجد"]

{"sheet":"لم يسدد","index":3,"n_rows":108,"n_cols":8,"rows_kept":108,"cut":false,"hidden":false,"merged":[]}
["م","الاســـــــــــــــــــــــم","الرقم القومي","النوع","الديانة","الصف",null,"حالة القيد"]
[3,"احمد خلف أحمد محمد",31012202601452,"ذكر","مسلم","الثاني أ","لم يسدد","مستجد"]
[7,"احمد محمد خلف كامل",31011062603151,"ذكر","مسلم","الثاني أ","لم يسدد","مستجد"]
[8,"احمد محمود جادالكريم حسن",31105312600697,"ذكر","مسلم","الثاني أ","لم يسدد","مستجد"]
[9,"احمد مؤمن كليب علي",31102122600993,"ذكر","مسلم","الثاني أ","لم يسدد","مستجد"]
[11,"اسلام محمد حسونه عبدالحميد",31107072605796,"ذكر","مسلم","الثاني أ","لم يسدد","مستجد"]
[13,"اشرف احمد عجور عبدالنبي",31012202601371,"ذكر","مسلم","الثاني أ","لم يسدد","مستجد"]
[14,"اشرف صبري فوزي محمود",31107202608032,"ذكر","مسلم","الثاني أ","لم يسدد","مستجد"]
[17,"ايهاب عاطف عبدالله جبرائيل",31103042600751,"ذكر","مسيحى","الثاني أ","لم يسدد","مستجد"]
[18,"بدر عادل محمد حسن",31103122604154,"ذكر","مسلم","الثاني أ","لم يسدد","مستجد"]
[19,"بشير حماده صبرى بدوى",31108012626057,"ذكر","مسلم","الثاني أ","لم يسدد","مستجد"]
[22,"جمال عبدالناصر محمد ثابت",31105142601871,"ذكر","مسلم","الثاني أ","لم يسدد","مستجد"]
[23,"حامد حمدي خلف عبدالهادي",31109202602134,"ذكر","مسلم","الثاني أ","لم يسدد","مستجد"]
[25,"حسان خيرت محمد جميل",31105102605696,"ذكر","مسلم","الثاني أ","لم يسدد","مستجد"]
[28,"حمزه احمد مدني قايد",31009012623351,"ذكر","مسلم","الثاني أ","لم يسدد","مستجد"]
[30,"خالد عاطف حمدان عبدالحميد",31010062602434,"ذكر","مسلم","الثاني أ","لم يسدد","مستجد"]
[36,"صابر فراج صابر نورالدين",31103232602637,"ذكر","مسلم","الثاني أ","لم يسدد","مستجد"]
[37,"صالح أحمد محمود محمد",31108012618038,"ذكر","مسلم","الثاني أ","لم يسدد","مستجد"]
[40,"عادل عباس عبدالباقي احمد",31012012615872,"ذكر","مسلم","الثاني أ","لم يسدد","مستجد"]
[41,"عبدالحكيم احمد عبدالصبور حسين",31103032603833,"ذكر","مسلم","الثاني أ","لم يسدد","مستجد"]
[43,"عبدالحميد حازم محمد حسن",31108102605032,"ذكر","مسلم","الثاني أ","لم يسدد","مستجد"]
[44,"عبدالحميد عيد حماد احمد",31106012617918,"ذكر","مسلم","الثاني أ","لم يسدد","مستجد"]
[45,"عبدالحميد ياسر عبدالحميد جادالكريم",31102052603213,"ذكر","مسلم","الثاني أ","لم يسدد","مستجد"]
[47,"عبدالرحمن ابوالعلا عبداللطيف موسى",31102012603113,"ذكر","مسلم","الثاني أ","لم يسدد","مستجد"]
[48,"عبدالرحمن احمد حناوي جيلاني",30911262600278,"ذكر","مسلم","الثاني أ","لم يسدد","مستجد"]
[50,"عبدالرحمن محمد عبدالفتاح محمود",31108092603214,"ذكر","مسلم","الثاني أ","لم يسدد","مستجد"]
[51,"عبدالرحيم احمد عبدالرحيم مرسي",31105142601855,"ذكر","مسلم","الثاني أ","لم يسدد","مستجد"]
[52,"عبدالسلام امام فهلى عبدالسلام",31103232602599,"ذكر","مسلم","الثاني أ","لم يسدد","مستجد"]
[53,"عبدالعليم ممدوح عبدالعليم احمد",31109012618972,"ذكر","مسلم","الثاني أ","لم يسدد","مستجد"]
[55,"عبدالله احمد الدكروني احمد",31010202606214,"ذكر","مسلم","الثاني أ","لم يسدد","مستجد"]
[56,"عبدالله احمد كمال عبدالمجيد",31107012617914,"ذكر","مسلم","الثاني أ","لم يسدد","مستجد"]
[58,"عبدالله عبدالرؤوف مسعد احمد عوض",31102082601894,"ذكر","مسلم","الثاني أ","لم يسدد","مستجد"]
[59,"عبدالله قصيدي حمدان برعي",31102122600918,"ذكر","مسلم","الثاني أ","لم يسدد","مستجد"]
[61,"عبدالله محمود محمد شاكر",31104142603959,"ذكر","مسلم","الثاني أ","لم يسدد","مستجد"]
[62,"عبدالله ممدوح خلف محمد",31104142603991,"ذكر","مسلم","الثاني أ","لم يسدد","مستجد"]
[63,"عبدالله نصر الدين احمد على",31009012623416,"ذكر","مسلم","الثاني أ","لم يسدد","مستجد"]
[67,"علي محمد رمضان محمد",31104012616579,"ذكر","مسلم","الثاني أ","لم يسدد","مستجد"]
[68,"علي محمود علي اسماعيل",31005152602855,"ذكر","مسلم","الثاني أ","لم يسدد","مستجد"]
[69,"علي محمود فهيم برعى",31012202601312,"ذكر","مسلم","الثاني أ","لم يسدد","مستجد"]
[70,"عماد حمدى فهيم برعى",31010012621152,"ذكر","مسلم","الثاني أ","لم يسدد","مستجد"]
[71,"فارس علي عبداللاه صابر",31006222603613,"ذكر","مسلم","الثاني أ","لم يسدد","مستجد"]
[75,"كريم رمضان عبدالستار عبدالمعبود",31109082601953,"ذكر","مسلم","الثاني أ","لم يسدد","مستجد"]
[77,"كريم علاء محمد عبد اللاه",31003012603433,"ذكر","مسلم","الثاني أ","لم يسدد","مستجد"]
[79,"محمد ابوالعلا شعبان محمد",31010202606176,"ذكر","مسلم","الثاني أ","لم يسدد","مستجد"]
[82,"محمد حمدي كمال الدين",31010142601315,"ذكر","مسلم","الثاني أ","لم يسدد","مستجد"]
[83,"محمد خلف على صادق",31102172601532,"ذكر","مسلم","الثاني أ","لم يسدد","مستجد"]
[85,"محمد شعبان عبدالعزيز محمد",31109202602118,"ذكر","مسلم","الثاني أ","لم يسدد","مستجد"]
[86,"محمد عادل ابراهيم سباق",31109012619138,"ذكر","مسلم","الثاني أ","لم يسدد","مستجد"]
[88,"محمد عبد الخالق عبد الصبور ابو العلا",31011012612893,"ذكر","مسلم","الثاني أ","لم يسدد","مستجد"]
[91,"محمد عبدالعاطى احمد حسانين",31103192602175,"ذكر","مسلم","الثاني أ","لم يسدد","مستجد"]
[95,"محمد عصام محمد محمود طلب",31107202608059,"ذكر","مسلم","الثاني أ","لم يسدد","مستجد"]
[98,"محمد عنتر محمد احمد",31102052603159,"ذكر","مسلم","الثاني أ","لم يسدد","مستجد"]
[100,"محمد وليد محمد عبدالرحيم",31106012617896,"ذكر","مسلم","الثاني أ","لم يسدد","مستجد"]
[102,"محمود حماده علي صادق",31012102601676,"ذكر","مسلم","الثاني أ","لم يسدد","مستجد"]
[108,"مروان احمد محمد عثمان",31105052604596,"ذكر","مسلم","الثاني أ","لم يسدد","مستجد"]
[110,"مصطفى ابوالعلا عبدالقادر عبداللاه",31011122600858,"ذكر","مسلم","الثاني أ","لم يسدد","مستجد"]
[120,"يوسف اشرف عبدالحميد عبدالعال",31102122600934,"ذكر","مسلم","الثاني أ","لم يسدد","مستجد"]
[121,"يوسف الشنبري ابراهيم توفيق",31109122604675,"ذكر","مسلم","الثاني أ","لم يسدد","مستجد"]
[122,"يوسف عابدين عبد النظير عابدين",31105052604456,"ذكر","مسلم","الثاني أ","لم يسدد","مستجد"]
[123,"يوسف على حمدى عبدالعال",31109062601795,"ذكر","مسلم","الثاني أ","لم يسدد","مستجد"]
[124,"يوسف علي عبد اللاه صابر",31101012627776,"ذكر","مسلم","الثاني أ","لم يسدد","مستجد"]
[125,"يوسف محمد على محمود",31102012603199,"ذكر","مسلم","الثاني أ","لم يسدد","مستجد"]
[126,"ابرار على عبدالباقى فرج",31109082602186,"انثى","مسلم","الثاني أ","لم يسدد","مستجد"]
[128,"اسراء كليب طلب حسن",31102172601222,"انثى","مسلم","الثاني أ","لم يسدد","مستجد"]
[131,"اسماء اسعد محمد محمود",31108202607105,"انثى","مسلم","الثاني أ","لم يسدد","مستجد"]
[132,"اسماء السيد مدني قايد",31102172601168,"انثى","مسلم","الثاني أ","لم يسدد","مستجد"]
[133,"اسماء محمد يوسف محمود",31010142601382,"انثى","مسلم","الثاني أ","لم يسدد","مستجد"]
[134,"افنان عاطف العربى عاكف",31101012626842,"انثى","مسلم","الثاني أ","لم يسدد","مستجد"]
[137,"امل محمود احمد جادالكريم",31102092602783,"انثى","مسلم","الثاني أ","لم يسدد","مستجد"]
[144,"ايه محمد علي ابراهيم",31001102601283,"انثى","مسلم","الثاني أ","لم يسدد","مستجد"]
[145,"جنات السيد كمال عبدالمجيد",31011012611889,"انثى","مسلم","الثاني أ","لم يسدد","مستجد"]
[148,"جنى لادهم خلف ظهران",31108102605148,"انثى","مسلم","الثاني أ","لم يسدد","مستجد"]
[149,"حبيبه اسعد احمد زيدان",31006202602289,"انثى","مسلم","الثاني أ","لم يسدد","مستجد"]
[152,"حبيبه محمود محمد شاكر",31104142603444,"انثى","مسلم","الثاني أ","لم يسدد","مستجد"]
[153,"حسناء هيثم خليفه رسلان",31003142600843,"انثى","مسلم","الثاني أ","لم يسدد","مستجد"]
[156,"حميده رفاعي محمود محمد",31107072604307,"انثى","مسلم","الثاني أ","لم يسدد","مستجد"]
[158,"حنين عبدالراضى نظير احمد",31101232601484,"انثى","مسلم","الثاني أ","لم يسدد","مستجد"]
[160,"حنين محمود صابر حسين",31101012626788,"انثى","مسلم","الثاني أ","لم يسدد","مستجد"]
[162,"خلود ايمن مصطفى مرسى",31011242602781,"انثى","مسلم","الثاني أ","لم يسدد","مستجد"]
[166,"رشا محروس الصغير احمد",31104012615823,"انثى","مسلم","الثاني أ","لم يسدد","مستجد"]
[167,"رقيه سليم عبدالنعيم السيد",31107202608148,"انثى","مسلم","الثاني أ","لم يسدد","مستجد"]
[168,"رهيفه عبدالمنعم عبدالسميع ابوالحسن",31108042602721,"انثى","مسلم","الثاني أ","لم يسدد","مستجد"]
[170,"ريهام عبدالخالق عبدالشافي احمد",31005022605003,"انثى","مسلم","الثاني أ","لم يسدد","مستجد"]
[171,"ريهام محمد حمدي عبدالعال",31109082602305,"انثى","مسلم","الثاني أ","لم يسدد","مستجد"]
[172,"زينب صبري سلامه محمد",31106052603502,"انثى","مسلم","الثاني أ","لم يسدد","مستجد"]
[173,"زينب لادهم خلف ظهران",31108102605164,"انثى","مسلم","الثاني أ","لم يسدد","مستجد"]
[177,"شهد حسام محمد محمود طلب",31101122602582,"انثى","مسلم","الثاني أ","لم يسدد","مستجد"]
[178,"شهد شعبان صالح محمد",31001012610887,"انثى","مسلم","الثاني أ","لم يسدد","مستجد"]
[179,"شيماء احمد محمود عبداللاه",31011062602988,"انثى","مسلم","الثاني أ","لم يسدد","مستجد"]
[180,"شيماء شعبان تمساح عبد الموجود",31104012615963,"انثى","مسلم","الثاني أ","لم يسدد","مستجد"]
[183,"علياء جمال ابوالعلا بدوي ابراهيم",31103012613581,"انثى","مسلم","الثاني أ","لم يسدد","مستجد"]
[186,"فرحه احمد عبدالرحيم محمد",31010142601447,"انثى","مسلم","الثاني أ","لم يسدد","مستجد"]
[187,"فرحه على حمدى عبدالعال",31101012626826,"انثى","مسلم","الثاني أ","لم يسدد","مستجد"]
[190,"ليالى اشرف محمد محمود",31102172601184,"انثى","مسلم","الثاني أ","لم يسدد","مستجد"]
[191,"مروه عماد محمود علي",31101012626869,"انثى","مسلم","الثاني أ","لم يسدد","مستجد"]
[193,"مريم احمد عبدالستار فاضل",31105202604182,"انثى","مسلم","الثاني أ","لم يسدد","مستجد"]
[196,"ملك عاشور مصطفى عثمان خربطلي",31107202608121,"انثى","مسلم","الثاني أ","لم يسدد","مستجد"]
[203,"مي هشام شبيب عبد الراضي",31101262602604,"انثى","مسلم","الثاني أ","لم يسدد","مستجد"]
[207,"ندى محمدالصغير احمد عبدالرحيم",31011202606202,"انثى","مسلم","الثاني أ","لم يسدد","مستجد"]
[208,"ندين أحمد شاكر ابراهيم",31202128800581,"انثى","مسلم","الثاني أ","لم يسدد","مستجد"]
[209,"نسمه شعبان محمد فهيم",31106202606661,"انثى","مسلم","الثاني أ","لم يسدد","مستجد"]
[210,"نسمه عبدالنظير طلب حسن",31103162602189,"انثى","مسلم","الثاني أ","لم يسدد","مستجد"]
[212,"نيجار ممدوح عبدالعليم احمد",31103122602585,"انثى","مسلم","الثاني أ","لم يسدد","مستجد"]
[216,"هدى بسام ابوالعلا احمد",31011012612001,"انثى","مسلم","الثاني أ","لم يسدد","مستجد"]
[218,"ورده حمدي فوزي ابراهيم",31107202608164,"انثى","مسلم","الثاني أ","لم يسدد","مستجد"]
[224,"ياسمين صبري حمدي قايد",31108102605245,"انثى","مسلم","الثاني أ","لم يسدد","مستجد"]
[225,"ياسمين عيد شحاته شاكر",31102122601043,"انثى","مسلم","الثاني أ","لم يسدد","مستجد"]
[135,"ساره احمد عبدالحميد عبدالباسط",30910252604465,"انثى","مسلم","الثالث أ","لم يسدد","مستجد"]